Workbook

Sheet Förklaring
B3: Denna 3:12 modell (demoversion 1.0) är framtagen för att ge stöd åt företagare när beslutet om fördelning mellan lön och utdelning ska tas. Den beräknar ditt privata "kassaflöde" efter samtliga skatter och avgifter i både ditt bolag och för dig privat vid en viss vinst i ditt bolag.
B6: Grundförutsättningar för modellen:
B7: Innan du kan börja använda denna modell måste du läsa texten nedan och acceptera förutsättningarna. Först efter att dessa godkänts kommer modellen att visas. Acceptera genom att klicka på den orangea knapp nedan.
B8: 3:12 Modellen utgår från att all vinst i bolaget under 2017 ska användas till ägarens lön och utdelning. Modellen kan alltså inte räkna ut ditt optimala uttag av lön/utdelning över tid utan ger dig ett förslag på optimering för 2017 års räkenskapsår med antagandet att du vill använda all vinst. Detta innebär att det är mycket möjligt att det klokaste valet för dig är att "spara" vinst till nästkommande år. Du kan själv justera din vinst nedåt i fliken "Input" och kan då pröva vilken skattesats du får vid olika vinster.
B9: Den årslön som modellen föreslår stämmer sannolikt inte överens med din uttagna årslön. Tanken är att du då kan justera din årslön och din deklaration efter vad du och din rådgivare anser är optimalt.
B10: Pension. Modellen beräknar ett uppskattat pensionskassaflöde enbart baserat på 2017 års lön och tar inte i beaktande annat sparande, tidigare eller senare års löner.
B11: Observera att pensionen som modellen beräknar inte kommer användaren "till godo" direkt och för att få tillgodogöra sig hela beloppet över tid krävs att individen erhåller allmän pension under 18 år.
B12: Om användaren anser att "pensionsdelen" blir för abstrakt eller oexakt så kan skattesatsen sättas till 100% i cell C20 i fliken "Input". Då blir pensionskassaflödet noll.
B13: Modellen antar att användaren betalar kyrkoavgift. Detta går ej att justera för i modellen.
B14: Modellen är inte anpassad för bolag med brutna räkenskapsår. Modellen är heller INTE anpassad för fall med närstående.
B16: Användning
B17: Börja med att fylla i de gröna cellerna i fliken "Input". Läs förklaringarna (som syns när ni klickar på respektive cell) till varje grön cell.
B18: Tryck på den oranga knappen "Kalkylera" och analysera sedan utfallet av de olika alternativen. Modellen föreslår en procentuell fördelning mellan lön och utdelning. Dels kan du jämföra nuvarande huvudregel mot förenklingsregeln, dels jämföra nuvarande regelverk mot utredningens förslag.
B19: I fliken "Process" kan användaren följa modellens beräkningar i detalj. Modellen väljer automatiskt procentsatsen från nuvarande huvudregel (cell G11 i fliken "Input"). Vill du se beräkningarna för något av de andra alternativen fyller du i procentsats (cell G5, G18 eller G24 i fliken "Input") för respektive regel i cell C3 i fliken "Process".
B20: Förklaring till dom olika siffrorna synliggörs när ni klickar i respektive cell.
B22: Vid frågor: kontakta c-m.falk@falkogaforetagsradgivning.se
B24: OBSERVERA
B25: Falköga Företagsrådgivning AB och Excel Department tar inte något ansvar för eventuella felberäkningar eller liknande. Detta är endast en demoversion. Vidare förväntas modellen användas med sunt förnuft och vi avråder användaren från att fatta beslut med endast denna modell som underlag. Intentionen är inte att modellen ska vara en "rådgivningsrobot"! Syftet med modellen är att vara ett beslutsstöd och att öka användarens förståelse för mekanismerna i 3:12 regelverket. Om ni vill fatta ett beslut angående lön/utdelning rekommenderar vi er att kontakta er ekonomiska rådgivare för att säkerställa att ert val blir optimalt. Det finns långt fler parametrar som behöver vägas in i ens beslut vad gäller optimal fördelning mellan lön och utdelning än vad denna modell kan ta hänsyn till. Exempelvis ökar sannolikheten för att kunna få ett lån hos banken om användaren tar ut en högre lön.
B26: Alla rättigheter för 3:12 Modellen reserverade Falköga företagsrådgivning AB ©

Sheet Input (hidden)
F2: Förklaring till 312 Modellen, klicka här
F3: 3:12 Modellens förslag på fördelning av lön och utdelning för respektive regelverk | K3: =IF(C7>6000000,"Vinsten i ditt bolag är hög. Det är möjligt att det kan löna sig att dela ut all vinst enligt 30%-regeln. Detta är komplicerat och vi rekommenderar dig att kontakta din rådgivare.","") -> 
B4: Total uppskattad vinst i bolaget 2017 | C4: 825680 | F4: Förenklingsregel | G4: =IFERROR(Process!S2,"Ej Möjlig") -> 169104
B5: Din uttagna årslön hittills under 2017 | C5: 0 | F5: Andel utdelning | G5: =IFERROR(Process!P2,"Ej Möjlig") -> 0.271 | K5: =IF(G7>G13,IF(G6<G17,"Lönen modellen föreslår är lägre än lönekravet (i cell g17). Det kan löna sig att välja en högre lön för att få ta del av ett högre sparat utdelningsutrymme (i cell g18)",""),"") -> 
F6: Årslön för 2017 | G6: =IFERROR((Process!R2),"Ej möjlig") -> 443768.0718
B7: Ditt totala uppskattade rörelseöverskott för 2017 | C7: =C4*C13+C5*(Admin!C3)+C5+C13*C12 -> 825680 | F7: Ditt kassaflöde privat | G7: =IFERROR(Process!Q2,"Ej Möjlig") -> 501140.4769
F8: % Skatt | G8: =1-G7/($C$7) -> 0.3930572656
B9: Kommun | C9: Storfors | F9: Din utdelning (att ta ut 2018) | G9: =G4 -> 169104
B10: Din lön i andra bolag under 2017 | C10: 0 | F10: Huvudgregel | G10: =IFERROR(Process!W2,"Ej Möjlig") -> 205920
B11: Ditt sparade utdelningsutrymme | C11: 0 | F11: Andel utdelning | G11: =IFERROR(Process!T2,"Ej Möjlig") -> 0.33 | K11: =IF(G7<G13,IF(G12>496000,"Lönen modellen föreslår är högre än pensionsgrundande inkomst (496 tkr). Det kan löna sig att välja en lägre lön och spara vinsten till nästkommande räkenskapsår. Observera att det även kan vara klokt att inte ta ut en lägre lön än lönekravet i cell g17",""),IF(G6>496000,"Lönen modellen föreslår är högre än pensionsgrundande inkomst (496 tkr). Det kan löna sig att välja en lägre lön och spara vinsten till nästkommande räkenskapsår. Observera att det även kan vara klokt att inte ta ut en lägre lön än lönekravet i cell g17","")) -> 
B12: Balanserad vinst vid ingången av 2017 | C12: 0 | F12: Årslön för 2017 | G12: =IFERROR(Process!V2,"Ej Möjlig") -> 407852.686
B13: Ägarandel | C13: 1 | F13: Ditt kassaflöde privat | G13: =IFERROR(Process!U2,"Ej Möjlig") -> 505082.0564
B14: Omkostnadsbelopp | C14: 50000 | F14: % Skatt | G14: =1-G13/($C$7) -> 0.3882835282
B15: Total lön hela bolaget under 2017 (inkl. din lön i c5) | C15: 0 | F15: Din utdelning (att ta ut 2018) | G15: =G10 -> 205920
B16: Total lön hela bolaget (exkl. din lön) | C16: =C15-C5 -> 0
F17: Lönekrav 2017 för att få utnyttja huvudregeln | G17: =IFERROR(MIN(Process!C32,Process!C33),"") -> 390047.2379
F18: Sparat utdelningsutrymme (i din K10) efter årets (2017) utdelning om du väljer huvudregeln | G18: =IFERROR(Process!C36-G10,"") -> 9187.378633
B19: År till pension | C19: 10
B20: Uppskattad skatt vid pension | C20: 0.3
B21: Vill du se hur pensionen är beräknad, klicka här!

Sheet Process (hidden)
O1: Tidigare Regelverk | P1: Förenklings-regel: % | Q1: Cash flow till Huvudperson | R1: Bruttolön | S1: Total Utdelning | T1: Huvudregeln:% | U1: Cash flow till Huvudperson | V1: Bruttolön | W1: Total Utdelning | X1: Nytt Regelverk: Förenklings-regel: % | Y1: Cash flow till Huvudperson | Z1: Bruttolön | AA1: Total Utdelning | AB1: Huvuregeln Ny | AC1: Cash flow till Huvudperson | AD1: Bruttolön | AE1: Total Utdelning
P2: =IFERROR(INDEX($P$3:$Q$1003,MATCH(Q2,Q3:Q1003,0),1),"Ej möjlig") -> 0.271 | Q2: =MAX(Q3:Q1003) -> 501140.4769 | R2: =INDEX($P$3:$R$1003,MATCH(Q2,Q3:Q1003,0),3) -> 443768.0718 | S2: =INDEX(Q3:S1003,MATCH(Q2,Q3:Q1003,0),3) -> 169104 | T2: =INDEX($T$3:$U$1003,MATCH(U2,U3:U1003,0),1) -> 0.33 | U2: =MAX(U3:U1003) -> 505082.0564 | V2: =INDEX($T$3:$V$1003,MATCH(U2,U3:U1003,0),3) -> 407852.686 | W2: =INDEX(U3:W1003,MATCH(U2,U3:U1003,0),3) -> 205920 | X2: =IFERROR(INDEX($X$3:$Y$1003,MATCH(Y2,Y3:Y1003,0),1),"Ej möjlig") -> 0 | Y2: =MAX(Y3:Y1003) -> 0 | Z2: =INDEX($X$3:$Z$1003,MATCH(Y2,Y3:Y1003,0),3) -> 0 | AA2: =INDEX(Y3:AA1003,MATCH(Y2,Y3:Y1003,0),3) -> 0 | AB2: =INDEX($AB$3:$AC$1003,MATCH(AC2,AC3:AC1003,0),1) ->  | AC2: =MAX(AC3:AC1003) -> 0 | AD2: =INDEX($AB$3:$AD$1003,MATCH(AC2,AC3:AC1003,0),3) ->  | AE2: =INDEX(AC3:AE1003,MATCH(AC2,AC3:AC1003,0),3) -> 
B3: pct_Utd | C3: 0.33 | P3: 0 | Q3: 447574.2889 | R3: 608735.3523 | S3: 0 | T3: 0 | U3: 447574.2889 | V3: 608735.3523 | W3: 0 | X3: 0 | Y3: 0 | Z3: 0 | AA3: 0 | AB3: 0
B4: pct_Lön | C4: =1-C3 -> 0.67 | P4: 0.001 | Q4: 447677.3028 | R4: 608126.617 | S4: 624 | T4: 0.001 | U4: 447677.3028 | V4: 608126.617 | W4: 624 | X4: 0.001 | Y4: 0 | Z4: 0 | AA4: 0 | AB4: 0.001
P5: 0.002 | Q5: 447780.3168 | R5: 607517.8816 | S5: 1248 | T5: 0.002 | U5: 447780.3168 | V5: 607517.8816 | W5: 1248 | X5: 0.002 | Y5: 0 | Z5: 0 | AA5: 0 | AB5: 0.002
B6: utdelning pre skatt | C6: =$C$3*Input!$C$7 -> 272474.4 | P6: 0.003 | Q6: 448333.9179 | R6: 606909.1462 | S6: 1872 | T6: 0.003 | U6: 448333.9179 | V6: 606909.1462 | W6: 1872 | X6: 0.003 | Y6: 0 | Z6: 0 | AA6: 0 | AB6: 0.003
B7: skattefritt belopp | C7: =Input!$C$12*Input!$C$13 -> 0 | P7: 0.004 | Q7: 448436.4799 | R7: 606300.4109 | S7: 2496 | T7: 0.004 | U7: 448436.4799 | V7: 606300.4109 | W7: 2496 | X7: 0.004 | Y7: 0 | Z7: 0 | AA7: 0 | AB7: 0.004
B8: resultat att beskatta | C8: =MAX(C6-C7,0) -> 272474.4 | P8: 0.005 | Q8: 448539.0419 | R8: 605691.6755 | S8: 3120 | T8: 0.005 | U8: 448539.0419 | V8: 605691.6755 | W8: 3120 | X8: 0.005 | Y8: 0 | Z8: 0 | AA8: 0 | AB8: 0.005
B9: bolagsskatt | C9: =MIN(C8*Admin!$C$4*-1,0) -> -59944.368 | P9: 0.006 | Q9: 448641.6039 | R9: 605082.9402 | S9: 3744 | T9: 0.006 | U9: 448641.6039 | V9: 605082.9402 | W9: 3744 | X9: 0.006 | Y9: 0 | Z9: 0 | AA9: 0 | AB9: 0.006
B10: utdelning innan privat skatt | C10: =MIN(C8+C9+C7,C6) -> 212530.032 | P10: 0.007 | Q10: 449196.5071 | R10: 604474.2048 | S10: 4368 | T10: 0.007 | U10: 449196.5071 | V10: 604474.2048 | W10: 4368 | X10: 0.007 | Y10: 0 | Z10: 0 | AA10: 0 | AB10: 0.007
B11: skatt på utdelning | C11: =C10*Admin!$C$5*-1 -> -42506.0064 | P11: 0.008 | Q11: 449298.6136 | R11: 603865.4695 | S11: 4992 | T11: 0.008 | U11: 449298.6136 | V11: 603865.4695 | W11: 4992 | X11: 0.008 | Y11: 0 | Z11: 0 | AA11: 0 | AB11: 0.008
B12: Cashflow till huvudperson | C12: =C10+C11 -> 170024.0256 | P12: 0.009 | Q12: 449400.72 | R12: 603256.7341 | S12: 5616 | T12: 0.009 | U12: 449400.72 | V12: 603256.7341 | W12: 5616 | X12: 0.009 | Y12: 0 | Z12: 0 | AA12: 0 | AB12: 0.009
P13: 0.01 | Q13: 449502.8265 | R13: 602647.9988 | S13: 6240 | T13: 0.01 | U13: 449502.8265 | V13: 602647.9988 | W13: 6240 | X13: 0.01 | Y13: 0 | Z13: 0 | AA13: 0 | AB13: 0.01
B14: lönekostnad pre skatt | C14: =C4*Input!$C$7 -> 553205.6 | P14: 0.011 | Q14: 450059.0418 | R14: 602039.2634 | S14: 6864 | T14: 0.011 | U14: 450059.0418 | V14: 602039.2634 | W14: 6864 | X14: 0.011 | Y14: 0 | Z14: 0 | AA14: 0 | AB14: 0.011
B15: arbetsgivaravg | C15: =(C14-C14/(1+Admin!C3))*-1 -> -132260.8427 | P15: 0.012 | Q15: 450160.6891 | R15: 601430.5281 | S15: 7488 | T15: 0.012 | U15: 450160.6891 | V15: 601430.5281 | W15: 7488 | X15: 0.012 | Y15: 0 | Z15: 0 | AA15: 0 | AB15: 0.012
B16: Bruttolön | C16: =$C$15+$C$14+Input!$C$10 -> 420944.7573 | P16: 0.013 | Q16: 450262.3365 | R16: 600821.7927 | S16: 8112 | T16: 0.013 | U16: 450262.3365 | V16: 600821.7927 | W16: 8112 | X16: 0.013 | Y16: 0 | Z16: 0 | AA16: 0 | AB16: 0.013
B17: skattetabell | C17: =IFERROR(INDEX(Admin!$E$2:$H$549,MATCH(C16/12,Admin!$E$2:$E$549,1)+1,4),0.55)+IFERROR(INDEX(Admin!$J$2:$N$314,MATCH(Input!C9,Admin!$J$2:$J$314,0),5),0) -> 0.271375 | P17: 0.014 | Q17: 450363.9838 | R17: 600213.0574 | S17: 8736 | T17: 0.014 | U17: 450363.9838 | V17: 600213.0574 | W17: 8736 | X17: 0.014 | Y17: 0 | Z17: 0 | AA17: 0 | AB17: 0.014
B18: inkomstskatt | C18: =IFERROR(C16*C17*-1,0)+IFERROR((Input!$C$10*(INDEX(Admin!$E$2:$H$549,MATCH(Input!$C$10/12,Admin!$E$2:$E$549,1)+1,4)+INDEX(Admin!$J$2:$N$314,MATCH(Input!C9,Admin!$J$2:$J$314,0),5))),0) -> -114233.8835 | P18: 0.015 | Q18: 450921.5215 | R18: 599604.322 | S18: 9360 | T18: 0.015 | U18: 450921.5215 | V18: 599604.322 | W18: 9360 | X18: 0.015 | Y18: 0 | Z18: 0 | AA18: 0 | AB18: 0.015
P19: 0.016 | Q19: 451022.7059 | R19: 598995.5867 | S19: 9984 | T19: 0.016 | U19: 451022.7059 | V19: 598995.5867 | W19: 9984 | X19: 0.016 | Y19: 0 | Z19: 0 | AA19: 0 | AB19: 0.016
B20: Cashflow till huvudperson | C20: =C18+C15+C14 -> 306710.8738 | P20: 0.017 | Q20: 451123.8904 | R20: 598386.8513 | S20: 10608 | T20: 0.017 | U20: 451123.8904 | V20: 598386.8513 | W20: 10608 | X20: 0.017 | Y20: 0 | Z20: 0 | AA20: 0 | AB20: 0.017
B21: Pension | C21: =PensionsBeräkning!C26 -> 43585.30875 | P21: 0.018 | Q21: 451225.0749 | R21: 597778.116 | S21: 11232 | T21: 0.018 | U21: 451225.0749 | V21: 597778.116 | W21: 11232 | X21: 0.018 | Y21: 0 | Z21: 0 | AA21: 0 | AB21: 0.018
B22: Total | P22: 0.019 | Q22: 451783.9453 | R22: 597169.3806 | S22: 11856 | T22: 0.019 | U22: 451783.9453 | V22: 597169.3806 | W22: 11856 | X22: 0.019 | Y22: 0 | Z22: 0 | AA22: 0 | AB22: 0.019
B23: CashFlow till huvudperson | C23: =C12+C20+C21 -> 520320.2081 | P23: 0.02 | Q23: 451884.6633 | R23: 596560.6453 | S23: 12480 | T23: 0.02 | U23: 451884.6633 | V23: 596560.6453 | W23: 12480 | X23: 0.02 | Y23: 0 | Z23: 0 | AA23: 0 | AB23: 0.02
P24: 0.021 | Q24: 451985.3812 | R24: 595951.9099 | S24: 13104 | T24: 0.021 | U24: 451985.3812 | V24: 595951.9099 | W24: 13104 | X24: 0.021 | Y24: 0 | Z24: 0 | AA24: 0 | AB24: 0.021
B25: Max utdelning förenkling | C25: =Admin!C8*Input!C13+(Input!C11*Admin!C16) -> 169125 | P25: 0.022 | Q25: 452086.0991 | R25: 595343.1746 | S25: 13728 | T25: 0.022 | U25: 452086.0991 | V25: 595343.1746 | W25: 13728 | X25: 0.022 | Y25: 0 | Z25: 0 | AA25: 0 | AB25: 0.022
P26: 0.023 | Q26: 452646.3128 | R26: 594734.4392 | S26: 14352 | T26: 0.023 | U26: 452646.3128 | V26: 594734.4392 | W26: 14352 | X26: 0.023 | Y26: 0 | Z26: 0 | AA26: 0 | AB26: 0.023
P27: 0.024 | Q27: 452746.5604 | R27: 594125.7039 | S27: 14976 | T27: 0.024 | U27: 452746.5604 | V27: 594125.7039 | W27: 14976 | X27: 0.024 | Y27: 0 | Z27: 0 | AA27: 0 | AB27: 0.024
P28: 0.025 | Q28: 452846.808 | R28: 593516.9685 | S28: 15600 | T28: 0.025 | U28: 452846.808 | V28: 593516.9685 | W28: 15600 | X28: 0.025 | Y28: 0 | Z28: 0 | AA28: 0 | AB28: 0.025
B29: Omkostnadsmax | C29: =Input!C14*Admin!C9 -> 4635 | P29: 0.026 | Q29: 452947.0556 | R29: 592908.2331 | S29: 16224 | T29: 0.026 | U29: 452947.0556 | V29: 592908.2331 | W29: 16224 | X29: 0.026 | Y29: 0 | Z29: 0 | AA29: 0 | AB29: 0.026
B30: Tot lön hela bolaget = | C30: =Input!C16 -> 0 | P30: 0.027 | Q30: 453508.6231 | R30: 592299.4978 | S30: 16848 | T30: 0.027 | U30: 453508.6231 | V30: 592299.4978 | W30: 16848 | X30: 0.027 | Y30: 0 | Z30: 0 | AA30: 0 | AB30: 0.027
P31: 0.028 | Q31: 453608.3966 | R31: 591690.7624 | S31: 17472 | T31: 0.028 | U31: 453608.3966 | V31: 591690.7624 | W31: 17472 | X31: 0.028 | Y31: 0 | Z31: 0 | AA31: 0 | AB31: 0.028
B32: Fast Lönekrav | C32: =9.6*Admin!C10 -> 590400 | P32: 0.029 | Q32: 453708.1701 | R32: 591082.0271 | S32: 18096 | T32: 0.029 | U32: 453708.1701 | V32: 591082.0271 | W32: 18096 | X32: 0.029 | Y32: 0 | Z32: 0 | AA32: 0 | AB32: 0.029
B33: Rörligt lönekrav | C33: =C30*0.05+((C16-Input!C10)*0.05)+6*Admin!C10 -> 390047.2379 | P33: 0.03 | Q33: 453807.9436 | R33: 590473.2917 | S33: 18720 | T33: 0.03 | U33: 453807.9436 | V33: 590473.2917 | W33: 18720 | X33: 0.03 | Y33: 0 | Z33: 0 | AA33: 0 | AB33: 0.03
P34: 0.031 | Q34: 454370.8756 | R34: 589864.5564 | S34: 19344 | T34: 0.031 | U34: 454370.8756 | V34: 589864.5564 | W34: 19344 | X34: 0.031 | Y34: 0 | Z34: 0 | AA34: 0 | AB34: 0.031
P35: 0.032 | Q35: 454470.1711 | R35: 589255.821 | S35: 19968 | T35: 0.032 | U35: 454470.1711 | V35: 589255.821 | W35: 19968 | X35: 0.032 | Y35: 0 | Z35: 0 | AA35: 0 | AB35: 0.032
B36: Max utdelning huvudregel | C36: =(C16-Input!C10+C30)*0.5*Input!$C$13+C29+(Input!$C$11*Admin!C16) -> 215107.3786 | P36: 0.033 | Q36: 454569.4666 | R36: 588647.0857 | S36: 20592 | T36: 0.033 | U36: 454569.4666 | V36: 588647.0857 | W36: 20592 | X36: 0.033 | Y36: 0 | Z36: 0 | AA36: 0 | AB36: 0.033
P37: 0.034 | Q37: 454668.7621 | R37: 588038.3503 | S37: 21216 | T37: 0.034 | U37: 454668.7621 | V37: 588038.3503 | W37: 21216 | X37: 0.034 | Y37: 0 | Z37: 0 | AA37: 0 | AB37: 0.034
P38: 0.035 | Q38: 455233.0695 | R38: 587429.615 | S38: 21840 | T38: 0.035 | U38: 455233.0695 | V38: 587429.615 | W38: 21840 | X38: 0.035 | Y38: 0 | Z38: 0 | AA38: 0 | AB38: 0.035
P39: 0.036 | Q39: 455331.8832 | R39: 586820.8796 | S39: 22464 | T39: 0.036 | U39: 455331.8832 | V39: 586820.8796 | W39: 22464 | X39: 0.036 | Y39: 0 | Z39: 0 | AA39: 0 | AB39: 0.036
P40: 0.037 | Q40: 455430.6968 | R40: 586212.1443 | S40: 23088 | T40: 0.037 | U40: 455430.6968 | V40: 586212.1443 | W40: 23088 | X40: 0.037 | Y40: 0 | Z40: 0 | AA40: 0 | AB40: 0.037
P41: 0.038 | Q41: 455529.5105 | R41: 585603.4089 | S41: 23712 | T41: 0.038 | U41: 455529.5105 | V41: 585603.4089 | W41: 23712 | X41: 0.038 | Y41: 0 | Z41: 0 | AA41: 0 | AB41: 0.038
P42: 0.039 | Q42: 456095.2043 | R42: 584994.6736 | S42: 24336 | T42: 0.039 | U42: 456095.2043 | V42: 584994.6736 | W42: 24336 | X42: 0.039 | Y42: 0 | Z42: 0 | AA42: 0 | AB42: 0.039
P43: 0.04 | Q43: 456193.5321 | R43: 584385.9382 | S43: 24960 | T43: 0.04 | U43: 456193.5321 | V43: 584385.9382 | W43: 24960 | X43: 0.04 | Y43: 0 | Z43: 0 | AA43: 0 | AB43: 0.04
P44: 0.041 | Q44: 456291.8599 | R44: 583777.2029 | S44: 25584 | T44: 0.041 | U44: 456291.8599 | V44: 583777.2029 | W44: 25584 | X44: 0.041 | Y44: 0 | Z44: 0 | AA44: 0 | AB44: 0.041
P45: 0.042 | Q45: 456859.441 | R45: 583168.4675 | S45: 26208 | T45: 0.042 | U45: 456859.441 | V45: 583168.4675 | W45: 26208 | X45: 0.042 | Y45: 0 | Z45: 0 | AA45: 0 | AB45: 0.042
P46: 0.043 | Q46: 456957.279 | R46: 582559.7322 | S46: 26832 | T46: 0.043 | U46: 456957.279 | V46: 582559.7322 | W46: 26832 | X46: 0.043 | Y46: 0 | Z46: 0 | AA46: 0 | AB46: 0.043
P47: 0.044 | Q47: 457055.117 | R47: 581950.9968 | S47: 27456 | T47: 0.044 | U47: 457055.117 | V47: 581950.9968 | W47: 27456 | X47: 0.044 | Y47: 0 | Z47: 0 | AA47: 0 | AB47: 0.044
P48: 0.045 | Q48: 457152.955 | R48: 581342.2615 | S48: 28080 | T48: 0.045 | U48: 457152.955 | V48: 581342.2615 | W48: 28080 | X48: 0.045 | Y48: 0 | Z48: 0 | AA48: 0 | AB48: 0.045
P49: 0.046 | Q49: 457721.9489 | R49: 580733.5261 | S49: 28704 | T49: 0.046 | U49: 457721.9489 | V49: 580733.5261 | W49: 28704 | X49: 0.046 | Y49: 0 | Z49: 0 | AA49: 0 | AB49: 0.046
P50: 0.047 | Q50: 457819.293 | R50: 580124.7907 | S50: 29328 | T50: 0.047 | U50: 457819.293 | V50: 580124.7907 | W50: 29328 | X50: 0.047 | Y50: 0 | Z50: 0 | AA50: 0 | AB50: 0.047
P51: 0.048 | Q51: 457916.6371 | R51: 579516.0554 | S51: 29952 | T51: 0.048 | U51: 457916.6371 | V51: 579516.0554 | W51: 29952 | X51: 0.048 | Y51: 0 | Z51: 0 | AA51: 0 | AB51: 0.048
P52: 0.049 | Q52: 458013.9812 | R52: 578907.32 | S52: 30576 | T52: 0.049 | U52: 458013.9812 | V52: 578907.32 | W52: 30576 | X52: 0.049 | Y52: 0 | Z52: 0 | AA52: 0 | AB52: 0.049
P53: 0.05 | Q53: 458584.3994 | R53: 578298.5847 | S53: 31200 | T53: 0.05 | U53: 458584.3994 | V53: 578298.5847 | W53: 31200 | X53: 0.05 | Y53: 0 | Z53: 0 | AA53: 0 | AB53: 0.05
P54: 0.051 | Q54: 458681.2455 | R54: 577689.8493 | S54: 31824 | T54: 0.051 | U54: 458681.2455 | V54: 577689.8493 | W54: 31824 | X54: 0.051 | Y54: 0 | Z54: 0 | AA54: 0 | AB54: 0.051
P55: 0.052 | Q55: 458778.0917 | R55: 577081.114 | S55: 32448 | T55: 0.052 | U55: 458778.0917 | V55: 577081.114 | W55: 32448 | X55: 0.052 | Y55: 0 | Z55: 0 | AA55: 0 | AB55: 0.052
P56: 0.053 | Q56: 458874.9378 | R56: 576472.3786 | S56: 33072 | T56: 0.053 | U56: 458874.9378 | V56: 576472.3786 | W56: 33072 | X56: 0.053 | Y56: 0 | Z56: 0 | AA56: 0 | AB56: 0.053
P57: 0.054 | Q57: 459446.7918 | R57: 575863.6433 | S57: 33696 | T57: 0.054 | U57: 459446.7918 | V57: 575863.6433 | W57: 33696 | X57: 0.054 | Y57: 0 | Z57: 0 | AA57: 0 | AB57: 0.054
P58: 0.055 | Q58: 459543.1358 | R58: 575254.9079 | S58: 34320 | T58: 0.055 | U58: 459543.1358 | V58: 575254.9079 | W58: 34320 | X58: 0.055 | Y58: 0 | Z58: 0 | AA58: 0 | AB58: 0.055
P59: 0.056 | Q59: 459639.4799 | R59: 574646.1726 | S59: 34944 | T59: 0.056 | U59: 459639.4799 | V59: 574646.1726 | W59: 34944 | X59: 0.056 | Y59: 0 | Z59: 0 | AA59: 0 | AB59: 0.056
P60: 0.057 | Q60: 459735.8239 | R60: 574037.4372 | S60: 35568 | T60: 0.057 | U60: 459735.8239 | V60: 574037.4372 | W60: 35568 | X60: 0.057 | Y60: 0 | Z60: 0 | AA60: 0 | AB60: 0.057
P61: 0.058 | Q61: 460309.1254 | R61: 573428.7019 | S61: 36192 | T61: 0.058 | U61: 460309.1254 | V61: 573428.7019 | W61: 36192 | X61: 0.058 | Y61: 0 | Z61: 0 | AA61: 0 | AB61: 0.058
P62: 0.059 | Q62: 460404.9631 | R62: 572819.9665 | S62: 36816 | T62: 0.059 | U62: 460404.9631 | V62: 572819.9665 | W62: 36816 | X62: 0.059 | Y62: 0 | Z62: 0 | AA62: 0 | AB62: 0.059
P63: 0.06 | Q63: 460500.8008 | R63: 572211.2312 | S63: 37440 | T63: 0.06 | U63: 460500.8008 | V63: 572211.2312 | W63: 37440 | X63: 0.06 | Y63: 0 | Z63: 0 | AA63: 0 | AB63: 0.06
P64: 0.061 | Q64: 460596.6385 | R64: 571602.4958 | S64: 38064 | T64: 0.061 | U64: 460596.6385 | V64: 571602.4958 | W64: 38064 | X64: 0.061 | Y64: 0 | Z64: 0 | AA64: 0 | AB64: 0.061
P65: 0.062 | Q65: 461171.3994 | R65: 570993.7605 | S65: 38688 | T65: 0.062 | U65: 461171.3994 | V65: 570993.7605 | W65: 38688 | X65: 0.062 | Y65: 0 | Z65: 0 | AA65: 0 | AB65: 0.062
P66: 0.063 | Q66: 461266.7265 | R66: 570385.0251 | S66: 39312 | T66: 0.063 | U66: 461266.7265 | V66: 570385.0251 | W66: 39312 | X66: 0.063 | Y66: 0 | Z66: 0 | AA66: 0 | AB66: 0.063
P67: 0.064 | Q67: 461362.0537 | R67: 569776.2898 | S67: 39936 | T67: 0.064 | U67: 461362.0537 | V67: 569776.2898 | W67: 39936 | X67: 0.064 | Y67: 0 | Z67: 0 | AA67: 0 | AB67: 0.064
P68: 0.065 | Q68: 461457.3808 | R68: 569167.5544 | S68: 40560 | T68: 0.065 | U68: 461457.3808 | V68: 569167.5544 | W68: 40560 | X68: 0.065 | Y68: 0 | Z68: 0 | AA68: 0 | AB68: 0.065
P69: 0.066 | Q69: 462033.6131 | R69: 568558.8191 | S69: 41184 | T69: 0.066 | U69: 462033.6131 | V69: 568558.8191 | W69: 41184 | X69: 0.066 | Y69: 0 | Z69: 0 | AA69: 0 | AB69: 0.066
P70: 0.067 | Q70: 462128.4254 | R70: 567950.0837 | S70: 41808 | T70: 0.067 | U70: 462128.4254 | V70: 567950.0837 | W70: 41808 | X70: 0.067 | Y70: 0 | Z70: 0 | AA70: 0 | AB70: 0.067
P71: 0.068 | Q71: 462223.2376 | R71: 567341.3483 | S71: 42432 | T71: 0.068 | U71: 462223.2376 | V71: 567341.3483 | W71: 42432 | X71: 0.068 | Y71: 0 | Z71: 0 | AA71: 0 | AB71: 0.068
P72: 0.069 | Q72: 462318.0498 | R72: 566732.613 | S72: 43056 | T72: 0.069 | U72: 462318.0498 | V72: 566732.613 | W72: 43056 | X72: 0.069 | Y72: 0 | Z72: 0 | AA72: 0 | AB72: 0.069
P73: 0.07 | Q73: 462895.7657 | R73: 566123.8776 | S73: 43680 | T73: 0.07 | U73: 462895.7657 | V73: 566123.8776 | W73: 43680 | X73: 0.07 | Y73: 0 | Z73: 0 | AA73: 0 | AB73: 0.07
P74: 0.071 | Q74: 462990.0587 | R74: 565515.1423 | S74: 44304 | T74: 0.071 | U74: 462990.0587 | V74: 565515.1423 | W74: 44304 | X74: 0.071 | Y74: 0 | Z74: 0 | AA74: 0 | AB74: 0.071
P75: 0.072 | Q75: 463084.3517 | R75: 564906.4069 | S75: 44928 | T75: 0.072 | U75: 463084.3517 | V75: 564906.4069 | W75: 44928 | X75: 0.072 | Y75: 0 | Z75: 0 | AA75: 0 | AB75: 0.072
P76: 0.073 | Q76: 463178.6447 | R76: 564297.6716 | S76: 45552 | T76: 0.073 | U76: 463178.6447 | V76: 564297.6716 | W76: 45552 | X76: 0.073 | Y76: 0 | Z76: 0 | AA76: 0 | AB76: 0.073
P77: 0.074 | Q77: 463757.8565 | R77: 563688.9362 | S77: 46176 | T77: 0.074 | U77: 463757.8565 | V77: 563688.9362 | W77: 46176 | X77: 0.074 | Y77: 0 | Z77: 0 | AA77: 0 | AB77: 0.074
P78: 0.075 | Q78: 463851.6258 | R78: 563080.2009 | S78: 46800 | T78: 0.075 | U78: 463851.6258 | V78: 563080.2009 | W78: 46800 | X78: 0.075 | Y78: 0 | Z78: 0 | AA78: 0 | AB78: 0.075
P79: 0.076 | Q79: 463945.3951 | R79: 562471.4655 | S79: 47424 | T79: 0.076 | U79: 463945.3951 | V79: 562471.4655 | W79: 47424 | X79: 0.076 | Y79: 0 | Z79: 0 | AA79: 0 | AB79: 0.076
P80: 0.077 | Q80: 464039.1644 | R80: 561862.7302 | S80: 48048 | T80: 0.077 | U80: 464039.1644 | V80: 561862.7302 | W80: 48048 | X80: 0.077 | Y80: 0 | Z80: 0 | AA80: 0 | AB80: 0.077
P81: 0.078 | Q81: 464619.8846 | R81: 561253.9948 | S81: 48672 | T81: 0.078 | U81: 464619.8846 | V81: 561253.9948 | W81: 48672 | X81: 0.078 | Y81: 0 | Z81: 0 | AA81: 0 | AB81: 0.078
P82: 0.079 | Q82: 464713.1257 | R82: 560645.2595 | S82: 49296 | T82: 0.079 | U82: 464713.1257 | V82: 560645.2595 | W82: 49296 | X82: 0.079 | Y82: 0 | Z82: 0 | AA82: 0 | AB82: 0.079
P83: 0.08 | Q83: 464806.3669 | R83: 560036.5241 | S83: 49920 | T83: 0.08 | U83: 464806.3669 | V83: 560036.5241 | W83: 49920 | X83: 0.08 | Y83: 0 | Z83: 0 | AA83: 0 | AB83: 0.08
P84: 0.081 | Q84: 464899.608 | R84: 559427.7888 | S84: 50544 | T84: 0.081 | U84: 464899.608 | V84: 559427.7888 | W84: 50544 | X84: 0.081 | Y84: 0 | Z84: 0 | AA84: 0 | AB84: 0.081
P85: 0.082 | Q85: 465481.8492 | R85: 558819.0534 | S85: 51168 | T85: 0.082 | U85: 465481.8492 | V85: 558819.0534 | W85: 51168 | X85: 0.082 | Y85: 0 | Z85: 0 | AA85: 0 | AB85: 0.082
P86: 0.083 | Q86: 465574.5576 | R86: 558210.3181 | S86: 51792 | T86: 0.083 | U86: 465574.5576 | V86: 558210.3181 | W86: 51792 | X86: 0.083 | Y86: 0 | Z86: 0 | AA86: 0 | AB86: 0.083
P87: 0.084 | Q87: 465667.2661 | R87: 557601.5827 | S87: 52416 | T87: 0.084 | U87: 465667.2661 | V87: 557601.5827 | W87: 52416 | X87: 0.084 | Y87: 0 | Z87: 0 | AA87: 0 | AB87: 0.084
P88: 0.085 | Q88: 465759.9746 | R88: 556992.8474 | S88: 53040 | T88: 0.085 | U88: 465759.9746 | V88: 556992.8474 | W88: 53040 | X88: 0.085 | Y88: 0 | Z88: 0 | AA88: 0 | AB88: 0.085
P89: 0.086 | Q89: 466343.7495 | R89: 556384.112 | S89: 53664 | T89: 0.086 | U89: 466343.7495 | V89: 556384.112 | W89: 53664 | X89: 0.086 | Y89: 0 | Z89: 0 | AA89: 0 | AB89: 0.086
P90: 0.087 | Q90: 466435.9207 | R90: 555775.3767 | S90: 54288 | T90: 0.087 | U90: 466435.9207 | V90: 555775.3767 | W90: 54288 | X90: 0.087 | Y90: 0 | Z90: 0 | AA90: 0 | AB90: 0.087
P91: 0.088 | Q91: 466528.0919 | R91: 555166.6413 | S91: 54912 | T91: 0.088 | U91: 466528.0919 | V91: 555166.6413 | W91: 54912 | X91: 0.088 | Y91: 0 | Z91: 0 | AA91: 0 | AB91: 0.088
P92: 0.089 | Q92: 466620.2631 | R92: 554557.906 | S92: 55536 | T92: 0.089 | U92: 466620.2631 | V92: 554557.906 | W92: 55536 | X92: 0.089 | Y92: 0 | Z92: 0 | AA92: 0 | AB92: 0.089
P93: 0.09 | Q93: 467205.5847 | R93: 553949.1706 | S93: 56160 | T93: 0.09 | U93: 467205.5847 | V93: 553949.1706 | W93: 56160 | X93: 0.09 | Y93: 0 | Z93: 0 | AA93: 0 | AB93: 0.09
P94: 0.091 | Q94: 467297.214 | R94: 553340.4352 | S94: 56784 | T94: 0.091 | U94: 467297.214 | V94: 553340.4352 | W94: 56784 | X94: 0.091 | Y94: 0 | Z94: 0 | AA94: 0 | AB94: 0.091
P95: 0.092 | Q95: 467388.8433 | R95: 552731.6999 | S95: 57408 | T95: 0.092 | U95: 467388.8433 | V95: 552731.6999 | W95: 57408 | X95: 0.092 | Y95: 0 | Z95: 0 | AA95: 0 | AB95: 0.092
P96: 0.093 | Q96: 467480.4725 | R96: 552122.9645 | S96: 58032 | T96: 0.093 | U96: 467480.4725 | V96: 552122.9645 | W96: 58032 | X96: 0.093 | Y96: 0 | Z96: 0 | AA96: 0 | AB96: 0.093
P97: 0.094 | Q97: 468067.3539 | R97: 551514.2292 | S97: 58656 | T97: 0.094 | U97: 468067.3539 | V97: 551514.2292 | W97: 58656 | X97: 0.094 | Y97: 0 | Z97: 0 | AA97: 0 | AB97: 0.094
P98: 0.095 | Q98: 468158.4366 | R98: 550905.4938 | S98: 59280 | T98: 0.095 | U98: 468158.4366 | V98: 550905.4938 | W98: 59280 | X98: 0.095 | Y98: 0 | Z98: 0 | AA98: 0 | AB98: 0.095
P99: 0.096 | Q99: 468249.5192 | R99: 550296.7585 | S99: 59904 | T99: 0.096 | U99: 468249.5192 | V99: 550296.7585 | W99: 59904 | X99: 0.096 | Y99: 0 | Z99: 0 | AA99: 0 | AB99: 0.096
P100: 0.097 | Q100: 468340.6019 | R100: 549688.0231 | S100: 60528 | T100: 0.097 | U100: 468340.6019 | V100: 549688.0231 | W100: 60528 | X100: 0.097 | Y100: 0 | Z100: 0 | AA100: 0 | AB100: 0.097
P101: 0.098 | Q101: 468929.0563 | R101: 549079.2878 | S101: 61152 | T101: 0.098 | U101: 468929.0563 | V101: 549079.2878 | W101: 61152 | X101: 0.098 | Y101: 0 | Z101: 0 | AA101: 0 | AB101: 0.098
P102: 0.099 | Q102: 469019.5875 | R102: 548470.5524 | S102: 61776 | T102: 0.099 | U102: 469019.5875 | V102: 548470.5524 | W102: 61776 | X102: 0.099 | Y102: 0 | Z102: 0 | AA102: 0 | AB102: 0.099
P103: 0.1 | Q103: 469110.1188 | R103: 547861.8171 | S103: 62400 | T103: 0.1 | U103: 469110.1188 | V103: 547861.8171 | W103: 62400 | X103: 0.1 | Y103: 0 | Z103: 0 | AA103: 0 | AB103: 0.1
P104: 0.101 | Q104: 469200.65 | R104: 547253.0817 | S104: 63024 | T104: 0.101 | U104: 469200.65 | V104: 547253.0817 | W104: 63024 | X104: 0.101 | Y104: 0 | Z104: 0 | AA104: 0 | AB104: 0.101
P105: 0.102 | Q105: 469790.691 | R105: 546644.3464 | S105: 63648 | T105: 0.102 | U105: 469790.691 | V105: 546644.3464 | W105: 63648 | X105: 0.102 | Y105: 0 | Z105: 0 | AA105: 0 | AB105: 0.102
P106: 0.103 | Q106: 469880.666 | R106: 546035.611 | S106: 64272 | T106: 0.103 | U106: 469880.666 | V106: 546035.611 | W106: 64272 | X106: 0.103 | Y106: 0 | Z106: 0 | AA106: 0 | AB106: 0.103
P107: 0.104 | Q107: 469970.641 | R107: 545426.8757 | S107: 64896 | T107: 0.104 | U107: 469970.641 | V107: 545426.8757 | W107: 64896 | X107: 0.104 | Y107: 0 | Z107: 0 | AA107: 0 | AB107: 0.104
P108: 0.105 | Q108: 470060.6159 | R108: 544818.1403 | S108: 65520 | T108: 0.105 | U108: 470060.6159 | V108: 544818.1403 | W108: 65520 | X108: 0.105 | Y108: 0 | Z108: 0 | AA108: 0 | AB108: 0.105
P109: 0.106 | Q109: 470652.257 | R109: 544209.405 | S109: 66144 | T109: 0.106 | U109: 470652.257 | V109: 544209.405 | W109: 66144 | X109: 0.106 | Y109: 0 | Z109: 0 | AA109: 0 | AB109: 0.106
P110: 0.107 | Q110: 470741.6709 | R110: 543600.6696 | S110: 66768 | T110: 0.107 | U110: 470741.6709 | V110: 543600.6696 | W110: 66768 | X110: 0.107 | Y110: 0 | Z110: 0 | AA110: 0 | AB110: 0.107
P111: 0.108 | Q111: 470831.0847 | R111: 542991.9343 | S111: 67392 | T111: 0.108 | U111: 470831.0847 | V111: 542991.9343 | W111: 67392 | X111: 0.108 | Y111: 0 | Z111: 0 | AA111: 0 | AB111: 0.108
P112: 0.109 | Q112: 471424.9058 | R112: 542383.1989 | S112: 68016 | T112: 0.109 | U112: 471424.9058 | V112: 542383.1989 | W112: 68016 | X112: 0.109 | Y112: 0 | Z112: 0 | AA112: 0 | AB112: 0.109
P113: 0.11 | Q113: 471513.7536 | R113: 541774.4636 | S113: 68640 | T113: 0.11 | U113: 471513.7536 | V113: 541774.4636 | W113: 68640 | X113: 0.11 | Y113: 0 | Z113: 0 | AA113: 0 | AB113: 0.11
P114: 0.111 | Q114: 471602.6013 | R114: 541165.7282 | S114: 69264 | T114: 0.111 | U114: 471602.6013 | V114: 541165.7282 | W114: 69264 | X114: 0.111 | Y114: 0 | Z114: 0 | AA114: 0 | AB114: 0.111
P115: 0.112 | Q115: 471691.449 | R115: 540556.9928 | S115: 69888 | T115: 0.112 | U115: 471691.449 | V115: 540556.9928 | W115: 69888 | X115: 0.112 | Y115: 0 | Z115: 0 | AA115: 0 | AB115: 0.112
P116: 0.113 | Q116: 472286.9031 | R116: 539948.2575 | S116: 70512 | T116: 0.113 | U116: 472286.9031 | V116: 539948.2575 | W116: 70512 | X116: 0.113 | Y116: 0 | Z116: 0 | AA116: 0 | AB116: 0.113
P117: 0.114 | Q117: 472375.1797 | R117: 539339.5221 | S117: 71136 | T117: 0.114 | U117: 472375.1797 | V117: 539339.5221 | W117: 71136 | X117: 0.114 | Y117: 0 | Z117: 0 | AA117: 0 | AB117: 0.114
P118: 0.115 | Q118: 472463.4562 | R118: 538730.7868 | S118: 71760 | T118: 0.115 | U118: 472463.4562 | V118: 538730.7868 | W118: 71760 | X118: 0.115 | Y118: 0 | Z118: 0 | AA118: 0 | AB118: 0.115
P119: 0.116 | Q119: 472551.7328 | R119: 538122.0514 | S119: 72384 | T119: 0.116 | U119: 472551.7328 | V119: 538122.0514 | W119: 72384 | X119: 0.116 | Y119: 0 | Z119: 0 | AA119: 0 | AB119: 0.116
P120: 0.117 | Q120: 473148.834 | R120: 537513.3161 | S120: 73008 | T120: 0.117 | U120: 473148.834 | V120: 537513.3161 | W120: 73008 | X120: 0.117 | Y120: 0 | Z120: 0 | AA120: 0 | AB120: 0.117
P121: 0.118 | Q121: 473236.5343 | R121: 536904.5807 | S121: 73632 | T121: 0.118 | U121: 473236.5343 | V121: 536904.5807 | W121: 73632 | X121: 0.118 | Y121: 0 | Z121: 0 | AA121: 0 | AB121: 0.118
P122: 0.119 | Q122: 473324.2347 | R122: 536295.8454 | S122: 74256 | T122: 0.119 | U122: 473324.2347 | V122: 536295.8454 | W122: 74256 | X122: 0.119 | Y122: 0 | Z122: 0 | AA122: 0 | AB122: 0.119
P123: 0.12 | Q123: 473411.935 | R123: 535687.11 | S123: 74880 | T123: 0.12 | U123: 473411.935 | V123: 535687.11 | W123: 74880 | X123: 0.12 | Y123: 0 | Z123: 0 | AA123: 0 | AB123: 0.12
P124: 0.121 | Q124: 474010.6978 | R124: 535078.3747 | S124: 75504 | T124: 0.121 | U124: 474010.6978 | V124: 535078.3747 | W124: 75504 | X124: 0.121 | Y124: 0 | Z124: 0 | AA124: 0 | AB124: 0.121
P125: 0.122 | Q125: 474097.8167 | R125: 534469.6393 | S125: 76128 | T125: 0.122 | U125: 474097.8167 | V125: 534469.6393 | W125: 76128 | X125: 0.122 | Y125: 0 | Z125: 0 | AA125: 0 | AB125: 0.122
P126: 0.123 | Q126: 474184.9356 | R126: 533860.904 | S126: 76752 | T126: 0.123 | U126: 474184.9356 | V126: 533860.904 | W126: 76752 | X126: 0.123 | Y126: 0 | Z126: 0 | AA126: 0 | AB126: 0.123
P127: 0.124 | Q127: 474272.0545 | R127: 533252.1686 | S127: 77376 | T127: 0.124 | U127: 474272.0545 | V127: 533252.1686 | W127: 77376 | X127: 0.124 | Y127: 0 | Z127: 0 | AA127: 0 | AB127: 0.124
P128: 0.125 | Q128: 474872.4934 | R128: 532643.4333 | S128: 78000 | T128: 0.125 | U128: 474872.4934 | V128: 532643.4333 | W128: 78000 | X128: 0.125 | Y128: 0 | Z128: 0 | AA128: 0 | AB128: 0.125
P129: 0.126 | Q129: 474959.0257 | R129: 532034.6979 | S129: 78624 | T129: 0.126 | U129: 474959.0257 | V129: 532034.6979 | W129: 78624 | X129: 0.126 | Y129: 0 | Z129: 0 | AA129: 0 | AB129: 0.126
P130: 0.127 | Q130: 475045.558 | R130: 531425.9626 | S130: 79248 | T130: 0.127 | U130: 475045.558 | V130: 531425.9626 | W130: 79248 | X130: 0.127 | Y130: 0 | Z130: 0 | AA130: 0 | AB130: 0.127
P131: 0.128 | Q131: 475132.0902 | R131: 530817.2272 | S131: 79872 | T131: 0.128 | U131: 475132.0902 | V131: 530817.2272 | W131: 79872 | X131: 0.128 | Y131: 0 | Z131: 0 | AA131: 0 | AB131: 0.128
P132: 0.129 | Q132: 475734.2201 | R132: 530208.4919 | S132: 80496 | T132: 0.129 | U132: 475734.2201 | V132: 530208.4919 | W132: 80496 | X132: 0.129 | Y132: 0 | Z132: 0 | AA132: 0 | AB132: 0.129
P133: 0.13 | Q133: 475820.1604 | R133: 529599.7565 | S133: 81120 | T133: 0.13 | U133: 475820.1604 | V133: 529599.7565 | W133: 81120 | X133: 0.13 | Y133: 0 | Z133: 0 | AA133: 0 | AB133: 0.13
P134: 0.131 | Q134: 475906.1007 | R134: 528991.0212 | S134: 81744 | T134: 0.131 | U134: 475906.1007 | V134: 528991.0212 | W134: 81744 | X134: 0.131 | Y134: 0 | Z134: 0 | AA134: 0 | AB134: 0.131
P135: 0.132 | Q135: 475992.041 | R135: 528382.2858 | S135: 82368 | T135: 0.132 | U135: 475992.041 | V135: 528382.2858 | W135: 82368 | X135: 0.132 | Y135: 0 | Z135: 0 | AA135: 0 | AB135: 0.132
P136: 0.133 | Q136: 476595.8767 | R136: 527773.5504 | S136: 82992 | T136: 0.133 | U136: 476595.8767 | V136: 527773.5504 | W136: 82992 | X136: 0.133 | Y136: 0 | Z136: 0 | AA136: 0 | AB136: 0.133
P137: 0.134 | Q137: 476681.2197 | R137: 527164.8151 | S137: 83616 | T137: 0.134 | U137: 476681.2197 | V137: 527164.8151 | W137: 83616 | X137: 0.134 | Y137: 0 | Z137: 0 | AA137: 0 | AB137: 0.134
P138: 0.135 | Q138: 476766.5627 | R138: 526556.0797 | S138: 84240 | T138: 0.135 | U138: 476766.5627 | V138: 526556.0797 | W138: 84240 | X138: 0.135 | Y138: 0 | Z138: 0 | AA138: 0 | AB138: 0.135
P139: 0.136 | Q139: 476851.9057 | R139: 525947.3444 | S139: 84864 | T139: 0.136 | U139: 476851.9057 | V139: 525947.3444 | W139: 84864 | X139: 0.136 | Y139: 0 | Z139: 0 | AA139: 0 | AB139: 0.136
P140: 0.137 | Q140: 477457.4625 | R140: 525338.609 | S140: 85488 | T140: 0.137 | U140: 477457.4625 | V140: 525338.609 | W140: 85488 | X140: 0.137 | Y140: 0 | Z140: 0 | AA140: 0 | AB140: 0.137
P141: 0.138 | Q141: 477542.2027 | R141: 524729.8737 | S141: 86112 | T141: 0.138 | U141: 477542.2027 | V141: 524729.8737 | W141: 86112 | X141: 0.138 | Y141: 0 | Z141: 0 | AA141: 0 | AB141: 0.138
P142: 0.139 | Q142: 477626.9429 | R142: 524121.1383 | S142: 86736 | T142: 0.139 | U142: 477626.9429 | V142: 524121.1383 | W142: 86736 | X142: 0.139 | Y142: 0 | Z142: 0 | AA142: 0 | AB142: 0.139
P143: 0.14 | Q143: 477711.683 | R143: 523512.403 | S143: 87360 | T143: 0.14 | U143: 477711.683 | V143: 523512.403 | W143: 87360 | X143: 0.14 | Y143: 0 | Z143: 0 | AA143: 0 | AB143: 0.14
P144: 0.141 | Q144: 478318.9764 | R144: 522903.6676 | S144: 87984 | T144: 0.141 | U144: 478318.9764 | V144: 522903.6676 | W144: 87984 | X144: 0.141 | Y144: 0 | Z144: 0 | AA144: 0 | AB144: 0.141
P145: 0.142 | Q145: 478403.1082 | R145: 522294.9323 | S145: 88608 | T145: 0.142 | U145: 478403.1082 | V145: 522294.9323 | W145: 88608 | X145: 0.142 | Y145: 0 | Z145: 0 | AA145: 0 | AB145: 0.142
P146: 0.143 | Q146: 478487.2401 | R146: 521686.1969 | S146: 89232 | T146: 0.143 | U146: 478487.2401 | V146: 521686.1969 | W146: 89232 | X146: 0.143 | Y146: 0 | Z146: 0 | AA146: 0 | AB146: 0.143
P147: 0.144 | Q147: 478571.3719 | R147: 521077.4616 | S147: 89856 | T147: 0.144 | U147: 478571.3719 | V147: 521077.4616 | W147: 89856 | X147: 0.144 | Y147: 0 | Z147: 0 | AA147: 0 | AB147: 0.144
P148: 0.145 | Q148: 479180.4174 | R148: 520468.7262 | S148: 90480 | T148: 0.145 | U148: 479180.4174 | V148: 520468.7262 | W148: 90480 | X148: 0.145 | Y148: 0 | Z148: 0 | AA148: 0 | AB148: 0.145
P149: 0.146 | Q149: 479263.9353 | R149: 519859.9909 | S149: 91104 | T149: 0.146 | U149: 479263.9353 | V149: 519859.9909 | W149: 91104 | X149: 0.146 | Y149: 0 | Z149: 0 | AA149: 0 | AB149: 0.146
P150: 0.147 | Q150: 479347.4532 | R150: 519251.2555 | S150: 91728 | T150: 0.147 | U150: 479347.4532 | V150: 519251.2555 | W150: 91728 | X150: 0.147 | Y150: 0 | Z150: 0 | AA150: 0 | AB150: 0.147
P151: 0.148 | Q151: 479430.9711 | R151: 518642.5202 | S151: 92352 | T151: 0.148 | U151: 479430.9711 | V151: 518642.5202 | W151: 92352 | X151: 0.148 | Y151: 0 | Z151: 0 | AA151: 0 | AB151: 0.148
P152: 0.149 | Q152: 480041.7845 | R152: 518033.7848 | S152: 92976 | T152: 0.149 | U152: 480041.7845 | V152: 518033.7848 | W152: 92976 | X152: 0.149 | Y152: 0 | Z152: 0 | AA152: 0 | AB152: 0.149
P153: 0.15 | Q153: 480124.6827 | R153: 517425.0495 | S153: 93600 | T153: 0.15 | U153: 480124.6827 | V153: 517425.0495 | W153: 93600 | X153: 0.15 | Y153: 0 | Z153: 0 | AA153: 0 | AB153: 0.15
P154: 0.151 | Q154: 480207.581 | R154: 516816.3141 | S154: 94224 | T154: 0.151 | U154: 480207.581 | V154: 516816.3141 | W154: 94224 | X154: 0.151 | Y154: 0 | Z154: 0 | AA154: 0 | AB154: 0.151
P155: 0.152 | Q155: 480290.4793 | R155: 516207.5788 | S155: 94848 | T155: 0.152 | U155: 480290.4793 | V155: 516207.5788 | W155: 94848 | X155: 0.152 | Y155: 0 | Z155: 0 | AA155: 0 | AB155: 0.152
P156: 0.153 | Q156: 480903.0766 | R156: 515598.8434 | S156: 95472 | T156: 0.153 | U156: 480903.0766 | V156: 515598.8434 | W156: 95472 | X156: 0.153 | Y156: 0 | Z156: 0 | AA156: 0 | AB156: 0.153
P157: 0.154 | Q157: 480985.3495 | R157: 514990.1081 | S157: 96096 | T157: 0.154 | U157: 480985.3495 | V157: 514990.1081 | W157: 96096 | X157: 0.154 | Y157: 0 | Z157: 0 | AA157: 0 | AB157: 0.154
P158: 0.155 | Q158: 481067.6224 | R158: 514381.3727 | S158: 96720 | T158: 0.155 | U158: 481067.6224 | V158: 514381.3727 | W158: 96720 | X158: 0.155 | Y158: 0 | Z158: 0 | AA158: 0 | AB158: 0.155
P159: 0.156 | Q159: 481149.8953 | R159: 513772.6373 | S159: 97344 | T159: 0.156 | U159: 481149.8953 | V159: 513772.6373 | W159: 97344 | X159: 0.156 | Y159: 0 | Z159: 0 | AA159: 0 | AB159: 0.156
P160: 0.157 | Q160: 481764.2928 | R160: 513163.902 | S160: 97968 | T160: 0.157 | U160: 481764.2928 | V160: 513163.902 | W160: 97968 | X160: 0.157 | Y160: 0 | Z160: 0 | AA160: 0 | AB160: 0.157
P161: 0.158 | Q161: 481845.9345 | R161: 512555.1666 | S161: 98592 | T161: 0.158 | U161: 481845.9345 | V161: 512555.1666 | W161: 98592 | X161: 0.158 | Y161: 0 | Z161: 0 | AA161: 0 | AB161: 0.158
P162: 0.159 | Q162: 481927.5762 | R162: 511946.4313 | S162: 99216 | T162: 0.159 | U162: 481927.5762 | V162: 511946.4313 | W162: 99216 | X162: 0.159 | Y162: 0 | Z162: 0 | AA162: 0 | AB162: 0.159
P163: 0.16 | Q163: 482009.2178 | R163: 511337.6959 | S163: 99840 | T163: 0.16 | U163: 482009.2178 | V163: 511337.6959 | W163: 99840 | X163: 0.16 | Y163: 0 | Z163: 0 | AA163: 0 | AB163: 0.16
P164: 0.161 | Q164: 482625.4319 | R164: 510728.9606 | S164: 100464 | T164: 0.161 | U164: 482625.4319 | V164: 510728.9606 | W164: 100464 | X164: 0.161 | Y164: 0 | Z164: 0 | AA164: 0 | AB164: 0.161
P165: 0.162 | Q165: 482706.4364 | R165: 510120.2252 | S165: 101088 | T165: 0.162 | U165: 482706.4364 | V165: 510120.2252 | W165: 101088 | X165: 0.162 | Y165: 0 | Z165: 0 | AA165: 0 | AB165: 0.162
P166: 0.163 | Q166: 482787.441 | R166: 509511.4899 | S166: 101712 | T166: 0.163 | U166: 482787.441 | V166: 509511.4899 | W166: 101712 | X166: 0.163 | Y166: 0 | Z166: 0 | AA166: 0 | AB166: 0.163
P167: 0.164 | Q167: 482868.4455 | R167: 508902.7545 | S167: 102336 | T167: 0.164 | U167: 482868.4455 | V167: 508902.7545 | W167: 102336 | X167: 0.164 | Y167: 0 | Z167: 0 | AA167: 0 | AB167: 0.164
P168: 0.165 | Q168: 483486.4929 | R168: 508294.0192 | S168: 102960 | T168: 0.165 | U168: 483486.4929 | V168: 508294.0192 | W168: 102960 | X168: 0.165 | Y168: 0 | Z168: 0 | AA168: 0 | AB168: 0.165
P169: 0.166 | Q169: 483566.8543 | R169: 507685.2838 | S169: 103584 | T169: 0.166 | U169: 483566.8543 | V169: 507685.2838 | W169: 103584 | X169: 0.166 | Y169: 0 | Z169: 0 | AA169: 0 | AB169: 0.166
P170: 0.167 | Q170: 483647.2156 | R170: 507076.5485 | S170: 104208 | T170: 0.167 | U170: 483647.2156 | V170: 507076.5485 | W170: 104208 | X170: 0.167 | Y170: 0 | Z170: 0 | AA170: 0 | AB170: 0.167
P171: 0.168 | Q171: 483727.577 | R171: 506467.8131 | S171: 104832 | T171: 0.168 | U171: 483727.577 | V171: 506467.8131 | W171: 104832 | X171: 0.168 | Y171: 0 | Z171: 0 | AA171: 0 | AB171: 0.168
P172: 0.169 | Q172: 484347.4746 | R172: 505859.0778 | S172: 105456 | T172: 0.169 | U172: 484347.4746 | V172: 505859.0778 | W172: 105456 | X172: 0.169 | Y172: 0 | Z172: 0 | AA172: 0 | AB172: 0.169
P173: 0.17 | Q173: 484427.1867 | R173: 505250.3424 | S173: 106080 | T173: 0.17 | U173: 484427.1867 | V173: 505250.3424 | W173: 106080 | X173: 0.17 | Y173: 0 | Z173: 0 | AA173: 0 | AB173: 0.17
P174: 0.171 | Q174: 484506.8988 | R174: 504641.6071 | S174: 106704 | T174: 0.171 | U174: 484506.8988 | V174: 504641.6071 | W174: 106704 | X174: 0.171 | Y174: 0 | Z174: 0 | AA174: 0 | AB174: 0.171
P175: 0.172 | Q175: 484586.6109 | R175: 504032.8717 | S175: 107328 | T175: 0.172 | U175: 484586.6109 | V175: 504032.8717 | W175: 107328 | X175: 0.172 | Y175: 0 | Z175: 0 | AA175: 0 | AB175: 0.172
P176: 0.173 | Q176: 485208.376 | R176: 503424.1364 | S176: 107952 | T176: 0.173 | U176: 485208.376 | V176: 503424.1364 | W176: 107952 | X176: 0.173 | Y176: 0 | Z176: 0 | AA176: 0 | AB176: 0.173
P177: 0.174 | Q177: 485287.4326 | R177: 502815.401 | S177: 108576 | T177: 0.174 | U177: 485287.4326 | V177: 502815.401 | W177: 108576 | X177: 0.174 | Y177: 0 | Z177: 0 | AA177: 0 | AB177: 0.174
P178: 0.175 | Q178: 485366.4893 | R178: 502206.6657 | S178: 109200 | T178: 0.175 | U178: 485366.4893 | V178: 502206.6657 | W178: 109200 | X178: 0.175 | Y178: 0 | Z178: 0 | AA178: 0 | AB178: 0.175
P179: 0.176 | Q179: 485990.8008 | R179: 501597.9303 | S179: 109824 | T179: 0.176 | U179: 485990.8008 | V179: 501597.9303 | W179: 109824 | X179: 0.176 | Y179: 0 | Z179: 0 | AA179: 0 | AB179: 0.176
P180: 0.177 | Q180: 486069.1958 | R180: 500989.1949 | S180: 110448 | T180: 0.177 | U180: 486069.1958 | V180: 500989.1949 | W180: 110448 | X180: 0.177 | Y180: 0 | Z180: 0 | AA180: 0 | AB180: 0.177
P181: 0.178 | Q181: 486147.5907 | R181: 500380.4596 | S181: 111072 | T181: 0.178 | U181: 486147.5907 | V181: 500380.4596 | W181: 111072 | X181: 0.178 | Y181: 0 | Z181: 0 | AA181: 0 | AB181: 0.178
P182: 0.179 | Q182: 486225.9856 | R182: 499771.7242 | S182: 111696 | T182: 0.179 | U182: 486225.9856 | V182: 499771.7242 | W182: 111696 | X182: 0.179 | Y182: 0 | Z182: 0 | AA182: 0 | AB182: 0.179
P183: 0.18 | Q183: 486852.206 | R183: 499162.9889 | S183: 112320 | T183: 0.18 | U183: 486852.206 | V183: 499162.9889 | W183: 112320 | X183: 0.18 | Y183: 0 | Z183: 0 | AA183: 0 | AB183: 0.18
P184: 0.181 | Q184: 486929.9329 | R184: 498554.2535 | S184: 112944 | T184: 0.181 | U184: 486929.9329 | V184: 498554.2535 | W184: 112944 | X184: 0.181 | Y184: 0 | Z184: 0 | AA184: 0 | AB184: 0.181
P185: 0.182 | Q185: 487007.6597 | R185: 497945.5182 | S185: 113568 | T185: 0.182 | U185: 487007.6597 | V185: 497945.5182 | W185: 113568 | X185: 0.182 | Y185: 0 | Z185: 0 | AA185: 0 | AB185: 0.182
P186: 0.183 | Q186: 487085.3866 | R186: 497336.7828 | S186: 114192 | T186: 0.183 | U186: 487085.3866 | V186: 497336.7828 | W186: 114192 | X186: 0.183 | Y186: 0 | Z186: 0 | AA186: 0 | AB186: 0.183
P187: 0.184 | Q187: 487713.5337 | R187: 496728.0475 | S187: 114816 | T187: 0.184 | U187: 487713.5337 | V187: 496728.0475 | W187: 114816 | X187: 0.184 | Y187: 0 | Z187: 0 | AA187: 0 | AB187: 0.184
P188: 0.185 | Q188: 487771.3596 | R188: 496119.3121 | S188: 115440 | T188: 0.185 | U188: 487771.3596 | V188: 496119.3121 | W188: 115440 | X188: 0.185 | Y188: 0 | Z188: 0 | AA188: 0 | AB188: 0.185
P189: 0.186 | Q189: 487785.3825 | R189: 495510.5768 | S189: 116064 | T189: 0.186 | U189: 487785.3825 | V189: 495510.5768 | W189: 116064 | X189: 0.186 | Y189: 0 | Z189: 0 | AA189: 0 | AB189: 0.186
P190: 0.187 | Q190: 487799.4054 | R190: 494901.8414 | S190: 116688 | T190: 0.187 | U190: 487799.4054 | V190: 494901.8414 | W190: 116688 | X190: 0.187 | Y190: 0 | Z190: 0 | AA190: 0 | AB190: 0.187
P191: 0.188 | Q191: 488366.468 | R191: 494293.1061 | S191: 117312 | T191: 0.188 | U191: 488366.468 | V191: 494293.1061 | W191: 117312 | X191: 0.188 | Y191: 0 | Z191: 0 | AA191: 0 | AB191: 0.188
P192: 0.189 | Q192: 488379.8098 | R192: 493684.3707 | S192: 117936 | T192: 0.189 | U192: 488379.8098 | V192: 493684.3707 | W192: 117936 | X192: 0.189 | Y192: 0 | Z192: 0 | AA192: 0 | AB192: 0.189
P193: 0.19 | Q193: 488393.1516 | R193: 493075.6354 | S193: 118560 | T193: 0.19 | U193: 488393.1516 | V193: 493075.6354 | W193: 118560 | X193: 0.19 | Y193: 0 | Z193: 0 | AA193: 0 | AB193: 0.19
P194: 0.191 | Q194: 488406.4934 | R194: 492466.9 | S194: 119184 | T194: 0.191 | U194: 488406.4934 | V194: 492466.9 | W194: 119184 | X194: 0.191 | Y194: 0 | Z194: 0 | AA194: 0 | AB194: 0.191
P195: 0.192 | Q195: 488975.5196 | R195: 491858.1647 | S195: 119808 | T195: 0.192 | U195: 488975.5196 | V195: 491858.1647 | W195: 119808 | X195: 0.192 | Y195: 0 | Z195: 0 | AA195: 0 | AB195: 0.192
P196: 0.193 | Q196: 488988.1737 | R196: 491249.4293 | S196: 120432 | T196: 0.193 | U196: 488988.1737 | V196: 491249.4293 | W196: 120432 | X196: 0.193 | Y196: 0 | Z196: 0 | AA196: 0 | AB196: 0.193
P197: 0.194 | Q197: 489000.8277 | R197: 490640.694 | S197: 121056 | T197: 0.194 | U197: 489000.8277 | V197: 490640.694 | W197: 121056 | X197: 0.194 | Y197: 0 | Z197: 0 | AA197: 0 | AB197: 0.194
P198: 0.195 | Q198: 489013.4818 | R198: 490031.9586 | S198: 121680 | T198: 0.195 | U198: 489013.4818 | V198: 490031.9586 | W198: 121680 | X198: 0.195 | Y198: 0 | Z198: 0 | AA198: 0 | AB198: 0.195
P199: 0.196 | Q199: 489584.4903 | R199: 489423.2233 | S199: 122304 | T199: 0.196 | U199: 489584.4903 | V199: 489423.2233 | W199: 122304 | X199: 0.196 | Y199: 0 | Z199: 0 | AA199: 0 | AB199: 0.196
P200: 0.197 | Q200: 489596.4499 | R200: 488814.4879 | S200: 122928 | T200: 0.197 | U200: 489596.4499 | V200: 488814.4879 | W200: 122928 | X200: 0.197 | Y200: 0 | Z200: 0 | AA200: 0 | AB200: 0.197
... 803 more rows

Sheet Diagram 312 Modellen (hidden)
R4: Värde i endpunkterna
R5: =Process!R2 -> 443768.0718
R7: =Process!S2 -> 169104
R9: =Process!Q2 -> 501140.4769
R11: =Process!U2 -> 505082.0564
R13: =Process!W2 -> 205920
R15: =Process!V2 -> 407852.686

Sheet Manuell version 312 Modellen (hidden)
C1: Fyll endast i dom grönmarkerade cellerna nedan. I denna version av 3:12 Modellen väljer du själv bruttolön och utdelning i c7 och c9. Välj lön först och sedan utdelning. Modellen "utgår" från lönen. Överbliven vinst sparas till nästakommande år.
H3: Nuvarande regelverk
B4: Total vinst i bolaget 2017 | C4: 800000 | E4: Utdelningsutrymme till 20% | F4: =IF($C$7>$F$5,$F$19,$F$20) -> 208561.5 | H4: Förenklingsregel - Din Utdelning | I4: =IFERROR([1]Process!S2,"Ej Möjlig") -> 46800 | K4: Årslön
B5: Din uttagna årslön hittills under 2017 | C5: 0 | E5: Lönekrav | F5: =MIN('Process Manuell version'!$C$33,'Process Manuell version'!$C$34) -> 389392.65
B6: Max möjlig bruttolön | C6: =($C$12/(1+Admin!$C$3)) -> 608735.3523 | H6: Andel utdelning | I6: =IFERROR([1]Process!P2,"Ej Möjlig") -> 0
B7: Vald (din) årslön under 2017 | C7: 407853 | E7: Ditt privata kassaflöde vid vald fördelning mellan lön och utdelning | F7: ='Process Manuell version'!$C$24 -> 505082.3184
B8: Max möjlig utdelning enligt räkenskaperna | C8: =($C$12-$C$7*(1+Admin!$C$3))*(1-Admin!$C$4)+$C$18*$C$17*Admin!$C$4 -> 205919.6782
B9: Vald (din) utdelning att lyfta 2018 | C9: 205920 | E9: Din skatt privat (20%) på vald utdelning (i cell c9) att lyfta 2018 | F9: ='Process Manuell version'!$C$12 -> -41184
B10: Sparad vinst till nästkommande år | C10: =$C$8-$C$9 -> -0.321828 | E10: Arbetsgivaravgifter för din valda lön (cell c7) 2017 som belastar ditt bolag | F10: ='Process Manuell version'!$C$16 -> -128147.4126 | H10: Modellens förslag på din månadslön respektive årslön för 2016 | I10: =IFERROR(([1]Process!R2)/12,"Ej möjlig") -> 58333.33333 | K10: =IFERROR(I10*12,"") -> 700000
E11: Din löneskatt 2017 på vald lön (i c7) | F11: ='Process Manuell version'!$C$19 -> -109736.4484 | H11: Ditt kassaflöde privat | I11: =IFERROR([1]Process!Q2,"Ej Möjlig") -> 543641.6851
B12: Ditt totala uppskattade rörelseöverskott för 2017 | C12: =$C$4*$C$18+$C$18*$C$17+$C$5*(1+Admin!$C$3) -> 800000 | E12: Din löneskatt i procent (%) | F12: =IFERROR(-$F$11/$C$7,"") -> 0.2690588235 | H12: % Skatt | I12: =1-I11/($C$12) -> 0.3204478936
E13: Din behållning från allmännpension för 2017 | F13: ='Process Manuell version'!$C$22 -> 42229.76679
B14: Kommun | C14: Storfors | E14: Ditt totala skattetryck privat och i bolaget | F14: =1-$F$7/($C$12-$C$10*(1+Admin!C4)) -> 0.3686474118 | H14: Huvudgregel - Din Utdelning | I14: =IFERROR([1]Process!W2,"Ej Möjlig") -> 46800
B15: Din lön i andra bolag under 2017 | C15: 0 | E15: Sparat utdelningsutrymme att utnyttja 2019 eller senare vid vald fördelning | F15: =F4-'Process Manuell version'!C9 -> 2641.5 | H15: Andel utdelning | I15: =IFERROR([1]Process!T2,"Ej Möjlig") -> 0
B16: Ditt sparade utdelningsutrymme | C16: 0 | E16: =IF('Process Manuell version'!C10>0,"Utdelning som beskattas i tjänst (på grund av att utdelningsutrymmet till 20% (f4) inte räcker till)","") ->  | F16: =IF('Process Manuell version'!C10>0,'Process Manuell version'!C10,"") -> 
B17: Balanserad vinst vid ingången av 2017 | C17: 0 | E17: =IF('Process Manuell version'!C11>0,"Utdelning som beskattas till 30% (över 90 inkomstbasbelopp)","") ->  | F17: =IF('Process Manuell version'!C11>0,'Process Manuell version'!C11,"") ->  | H17: Huvudregel - Din Utdelning | I17: =IFERROR([1]Process!AE2,"Ej Möjlig") -> 213720
B18: Ägarandel | C18: 1 | H18: Andel utdelning | I18: =IFERROR([1]Process!AB2,"Ej möjlig") -> 0.274
B19: Omkostnadsbelopp | C19: 50000 | E19: Max utdelningutrymme om du uppfyller lönekravet (huvudregel) | F19: ='Process Manuell version'!$C$37 -> 208561.5 | H19: Modellens förslag på din månadslön respektive årslön för 2016 | I19: =IFERROR([1]Process!AD2/12,"Ej Möjlig") -> 46035.61102 | K19: =IFERROR(I19*12,"") -> 552427.3322
B20: Total lön hela bolaget under 2017 (exkl. din lön i c5) | C20: 0 | E20: Max utdelning utrymme om du inte uppfyller lönekravet (förenklingsregeln | F20: ='Process Manuell version'!$C$26 -> 169125 | H20: Ditt kassaflöde privat | I20: =IFERROR([1]Process!AC2,"Ej Möjlig") -> 596654.2575
H21: % Skatt | I21: =1-I20/($C$12) -> 0.2541821781
B23: År till pension | C23: 10 | E23: Av: Carl-Magnus Falk | H23: Lönekrav 2016 för att få utnyttja huvudregeln (nuvarande regelverk) | I23: =IFERROR(MIN([1]Process!C32,[1]Process!C33),"") -> 394000
B24: Uppskattad skatt vid pension | C24: 0.3 | H24: Sparat utdelningsutrymme (i din K10) efter årets utdelning om du väljer huvudregeln (nuvarande regelverk) | I24: =IFERROR([1]Process!C36-I14,"") -> 1075185
B37: =C7<F5 -> FALSE
B38: =C7>C6 -> FALSE
B39: =OR(B37,B38) -> FALSE
B41: =C9>(IF(C7>F5,MAX(F19,F20),F20)) -> FALSE
B42: =C9>C8 -> TRUE
B44: =OR(B41,B42) -> TRUE

Sheet Process Manuell version (hidden)
O1: Tidigare Regelverk | P1: Förenklings-regel: % | Q1: Cash flow till Huvudperson | R1: Bruttolön | S1: Total Utdelning | T1: Huvudregeln:% | U1: Cash flow till Huvudperson | V1: Bruttolön | W1: Total Utdelning | X1: Nytt Regelverk: Förenklings-regel: % | Y1: Cash flow till Huvudperson | Z1: Bruttolön | AA1: Total Utdelning | AB1: Huvuregeln Ny | AC1: Cash flow till Huvudperson | AD1: Bruttolön | AE1: Total Utdelning
P2: =IFERROR(INDEX($P$3:$Q$1003,MATCH(Q2,Q3:Q1003,0),1),"Ej möjlig") -> 0 | Q2: =MAX(Q3:Q1003) -> 543641.6851 | R2: =INDEX($P$3:$R$1003,MATCH(Q2,Q3:Q1003,0),3) -> 700000 | S2: =INDEX(Q3:S1003,MATCH(Q2,Q3:Q1003,0),3) -> 46800 | T2: =INDEX($T$3:$U$1003,MATCH(U2,U3:U1003,0),1) -> 0 | U2: =MAX(U3:U1003) -> 543641.6851 | V2: =INDEX($T$3:$V$1003,MATCH(U2,U3:U1003,0),3) -> 700000 | W2: =INDEX(U3:W1003,MATCH(U2,U3:U1003,0),3) -> 46800 | X2: =IFERROR(INDEX($X$3:$Y$1003,MATCH(Y2,Y3:Y1003,0),1),"Ej möjlig") -> 0.133 | Y2: =MAX(Y3:Y1003) -> 565974.7903 | Z2: =INDEX($X$3:$Z$1003,MATCH(Y2,Y3:Y1003,0),3) -> 659716.9381 | AA2: =INDEX(Y3:AA1003,MATCH(Y2,Y3:Y1003,0),3) -> 103740 | AB2: =INDEX($AB$3:$AC$1003,MATCH(AC2,AC3:AC1003,0),1) -> 0.274 | AC2: =MAX(AC3:AC1003) -> 596654.2575 | AD2: =INDEX($AB$3:$AD$1003,MATCH(AC2,AC3:AC1003,0),3) -> 552427.3322 | AE2: =INDEX(AC3:AE1003,MATCH(AC2,AC3:AC1003,0),3) -> 213720
P3: 0 | Q3: 543641.6851 | R3: 700000 | S3: 46800 | T3: 0 | U3: 543641.6851 | V3: 700000 | W3: 46800 | X3: 0 | Y3: 533359.1753 | Z3: 760919.1904 | AA3: 0 | AB3: 0 | AC3: 533359.1753 | AD3: 760919.1904 | AE3: 0 | AJ3: 30-regeln
B4: utdelning pre skatt | C4: =(' Manuell version 312 Modellen'!$C$9) -> 205920 | P4: 0.001 | Q4: 543641.6851 | R4: 700000 | S4: 46800 | T4: 0.001 | U4: 543641.6851 | V4: 700000 | W4: 46800 | X4: 0.001 | Y4: 533913.2422 | Z4: 760158.2712 | AA4: 780 | AB4: 0.001 | AC4: 533913.2422 | AD4: 760158.2712 | AE4: 780 | AJ4: utdelning pre skatt | AK4: =(' Manuell version 312 Modellen'!$C$9-' Manuell version 312 Modellen'!$C$17)/(1-Admin!$C$4) -> 264000
B5: balanserad vinst (ej skattepliktig för bolagskatt) | C5: =' Manuell version 312 Modellen'!$C$17 -> 0 | P5: 0.002 | Q5: 543641.6851 | R5: 700000 | S5: 46800 | T5: 0.002 | U5: 543641.6851 | V5: 700000 | W5: 46800 | X5: 0.002 | Y5: 534010.3696 | Z5: 759397.352 | AA5: 1560 | AB5: 0.002 | AC5: 534010.3696 | AD5: 759397.352 | AE5: 1560 | AJ5: balanserad vinst (ej skattepliktig för bolagskatt) | AK5: =' Manuell version 312 Modellen'!$C$17 -> 0
B6: resultat att beskatta | C6: =IF($C$4-C5<=0,0,C4-C5) -> 205920 | P6: 0.003 | Q6: 543641.6851 | R6: 700000 | S6: 46800 | T6: 0.003 | U6: 543641.6851 | V6: 700000 | W6: 46800 | X6: 0.003 | Y6: 534107.4971 | Z6: 758636.4328 | AA6: 2340 | AB6: 0.003 | AC6: 534107.4971 | AD6: 758636.4328 | AE6: 2340 | AJ6: resultat att beskatta | AK6: =$C$4 -> 205920
P7: 0.004 | Q7: 543641.6851 | R7: 700000 | S7: 46800 | T7: 0.004 | U7: 543641.6851 | V7: 700000 | W7: 46800 | X7: 0.004 | Y7: 534662.6167 | Z7: 757875.5136 | AA7: 3120 | AB7: 0.004 | AC7: 534662.6167 | AD7: 757875.5136 | AE7: 3120 | AJ7: bolagsskatt | AK7: =-(Admin!$C$4*'Process Manuell version'!$C$6) -> -45302.4
B8: utdelning innan privat skatt | C8: =' Manuell version 312 Modellen'!$C$9+IF(C17>=90*Admin!C10,' Manuell version 312 Modellen'!C7-'Process Manuell version'!C17,0) -> 205920 | P8: 0.005 | Q8: 543641.6851 | R8: 700000 | S8: 46800 | T8: 0.005 | U8: 543641.6851 | V8: 700000 | W8: 46800 | X8: 0.005 | Y8: 534759.2843 | Z8: 757114.5944 | AA8: 3900 | AB8: 0.005 | AC8: 534759.2843 | AD8: 757114.5944 | AE8: 3900 | AJ8: utdelning innan privat skatt | AK8: =' Manuell version 312 Modellen'!$C$9 -> 205920
B9: Utdelning som beskattas till 20% | C9: =IF($C$8-' Manuell version 312 Modellen'!F4<=0,$C$8,' Manuell version 312 Modellen'!F4) -> 205920 | P9: 0.006 | Q9: 543641.6851 | R9: 700000 | S9: 46800 | T9: 0.006 | U9: 543641.6851 | V9: 700000 | W9: 46800 | X9: 0.006 | Y9: 534855.9519 | Z9: 756353.6752 | AA9: 4680 | AB9: 0.006 | AC9: 534855.9519 | AD9: 756353.6752 | AE9: 4680 | AJ9: Utdelning som beskattas till 20% | AK9: =IF($AK$8-' Manuell version 312 Modellen'!F4<=0,$AK$8,' Manuell version 312 Modellen'!F4) -> 205920
B10: Utdelning som beskattas som tjänst | C10: =IF(C8-C9+C17>90*Admin!C10,90*Admin!C10-C17,C8-C9) -> 0 | P10: 0.007 | Q10: 543641.6851 | R10: 700000 | S10: 46800 | T10: 0.007 | U10: 543641.6851 | V10: 700000 | W10: 46800 | X10: 0.007 | Y10: 535412.1313 | Z10: 755592.756 | AA10: 5460 | AB10: 0.007 | AC10: 535412.1313 | AD10: 755592.756 | AE10: 5460 | AJ10: Utdelning som beskattas som tjänst | AK10: =IF('Process Manuell version'!AK17>90*Admin!C10,0,90*Admin!C10-AK17) -> 5127147
B11: Utdelning som beskattas till 30% | C11: =C8-C9-C10 -> 0 | P11: 0.008 | Q11: 543641.6851 | R11: 700000 | S11: 46800 | T11: 0.008 | U11: 543641.6851 | V11: 700000 | W11: 46800 | X11: 0.008 | Y11: 535508.3361 | Z11: 754831.8369 | AA11: 6240 | AB11: 0.008 | AC11: 535508.3361 | AD11: 754831.8369 | AE11: 6240 | AJ11: Utdelning som beskattas till 30% | AK11: =AK8-AK9-AK10 -> -5127147
B12: skatt på utdelning | C12: =(C9*Admin!$C$5+C10*C18+C11*Admin!$C$21)*-1 -> -41184 | P12: 0.009 | Q12: 543641.6851 | R12: 700000 | S12: 46800 | T12: 0.009 | U12: 543641.6851 | V12: 700000 | W12: 46800 | X12: 0.009 | Y12: 535604.5409 | Z12: 754070.9177 | AA12: 7020 | AB12: 0.009 | AC12: 535604.5409 | AD12: 754070.9177 | AE12: 7020 | AJ12: Skatt på utdelning privat | AK12: =(AK9*Admin!$C$5+AK10*AK18+AK11*Admin!$C$21)*-1 -> 117455.9601
B13: Cashflow till huvudperson | C13: =$C$8+$C$12 -> 164736 | P13: 0.01 | Q13: 543641.6851 | R13: 700000 | S13: 46800 | T13: 0.01 | U13: 543641.6851 | V13: 700000 | W13: 46800 | X13: 0.01 | Y13: 536161.7873 | Z13: 753309.9985 | AA13: 7800 | AB13: 0.01 | AC13: 536161.7873 | AD13: 753309.9985 | AE13: 7800 | AJ13: Cashflow till huvudperson | AK13: =AK12+AK8 -> 323375.9601
P14: 0.011 | Q14: 543641.6851 | R14: 700000 | S14: 46800 | T14: 0.011 | U14: 543641.6851 | V14: 700000 | W14: 46800 | X14: 0.011 | Y14: 536257.5265 | Z14: 752549.0793 | AA14: 8580 | AB14: 0.011 | AC14: 536257.5265 | AD14: 752549.0793 | AE14: 8580
B15: lönekostnad pre skatt | C15: =' Manuell version 312 Modellen'!$C$7*(1+Admin!$C$3) -> 536000.4126 | P15: 0.012 | Q15: 543641.6851 | R15: 700000 | S15: 46800 | T15: 0.012 | U15: 543641.6851 | V15: 700000 | W15: 46800 | X15: 0.012 | Y15: 536353.2656 | Z15: 751788.1601 | AA15: 9360 | AB15: 0.012 | AC15: 536353.2656 | AD15: 751788.1601 | AE15: 9360 | AJ15: lönekostnad pre skatt | AK15: =' Manuell version 312 Modellen'!$C$7*(1+Admin!$C$3) -> 536000.4126
B16: arbetsgivaravg | C16: =($C$15-$C$15/(1+Admin!$C$3))*-1 -> -128147.4126 | P16: 0.013 | Q16: 543641.6851 | R16: 700000 | S16: 46800 | T16: 0.013 | U16: 543641.6851 | V16: 700000 | W16: 46800 | X16: 0.013 | Y16: 536911.5863 | Z16: 751027.2409 | AA16: 10140 | AB16: 0.013 | AC16: 536911.5863 | AD16: 751027.2409 | AE16: 10140 | AJ16: arbetsgivaravg | AK16: =($AK$15-$AK$15/(1+Admin!$C$3))*-1 -> -128147.4126
B17: Bruttolön | C17: =IF(' Manuell version 312 Modellen'!C7+' Manuell version 312 Modellen'!C15<90*Admin!C10,$C$16+$C$15+' Manuell version 312 Modellen'!$C$15,90*Admin!C10) -> 407853 | P17: 0.014 | Q17: 543641.6851 | R17: 700000 | S17: 46800 | T17: 0.014 | U17: 543641.6851 | V17: 700000 | W17: 46800 | X17: 0.014 | Y17: 537006.8567 | Z17: 750266.3217 | AA17: 10920 | AB17: 0.014 | AC17: 537006.8567 | AD17: 750266.3217 | AE17: 10920 | AJ17: Bruttolön | AK17: =$AK$16+$AK$15+' Manuell version 312 Modellen'!$C$15 -> 407853
B18: skattetabell | C18: =IFERROR(INDEX(Admin!$E$2:$H$549,MATCH((C17+C10)/12,Admin!$E$2:$E$549,1)+1,4),0.55)+IFERROR(INDEX(Admin!$J$2:$N$314,MATCH(' Manuell version 312 Modellen'!$C$14,Admin!$J$2:$J$314,0),5),0) -> 0.2690588235 | P18: 0.015 | Q18: 543641.6851 | R18: 700000 | S18: 46800 | T18: 0.015 | U18: 543641.6851 | V18: 700000 | W18: 46800 | X18: 0.015 | Y18: 537102.1272 | Z18: 749505.4025 | AA18: 11700 | AB18: 0.015 | AC18: 537102.1272 | AD18: 749505.4025 | AE18: 11700 | AJ18: skattetabell | AK18: =IFERROR(INDEX(Admin!$E$2:$H$549,MATCH(AK17/12,Admin!$E$2:$E$549,1)+1,4),0.55)+IFERROR(INDEX(Admin!$J$2:$N$314,MATCH(' Manuell version 312 Modellen'!$C$14,Admin!$J$2:$J$314,0),5),0) -> 0.2690588235
B19: inkomstskatt | C19: =IFERROR(($C$17-IF(AND(' Manuell version 312 Modellen'!C15>0,' Manuell version 312 Modellen'!C7+' Manuell version 312 Modellen'!C15<90*Admin!C10),' Manuell version 312 Modellen'!C15,0))*$C$18*-1,0) -> -109736.4484 | P19: 0.016 | Q19: 543641.6851 | R19: 700000 | S19: 46800 | T19: 0.016 | U19: 543641.6851 | V19: 700000 | W19: 46800 | X19: 0.016 | Y19: 537661.5294 | Z19: 748744.4833 | AA19: 12480 | AB19: 0.016 | AC19: 537661.5294 | AD19: 748744.4833 | AE19: 12480 | AJ19: inkomstskatt | AK19: =IFERROR($AK$17*$AK$18*-1,0)+IFERROR((' Manuell version 312 Modellen'!$C$15*(INDEX(Admin!$E$2:$H$549,MATCH(' Manuell version 312 Modellen'!$C$15/12,Admin!$E$2:$E$549,1)+1,4)+INDEX(Admin!$J$2:$N$314,MATCH(' Manuell version 312 Modellen'!$C$14,Admin!$J$2:$J$314,0),5))),0) -> -109736.4484
P20: 0.017 | Q20: 543641.6851 | R20: 700000 | S20: 46800 | T20: 0.017 | U20: 543641.6851 | V20: 700000 | W20: 46800 | X20: 0.017 | Y20: 537756.3282 | Z20: 747983.5641 | AA20: 13260 | AB20: 0.017 | AC20: 537756.3282 | AD20: 747983.5641 | AE20: 13260
B21: Cashflow till huvudperson | C21: =$C$19+$C$16+$C$15 -> 298116.5516 | P21: 0.018 | Q21: 543641.6851 | R21: 700000 | S21: 46800 | T21: 0.018 | U21: 543641.6851 | V21: 700000 | W21: 46800 | X21: 0.018 | Y21: 537851.1269 | Z21: 747222.645 | AA21: 14040 | AB21: 0.018 | AC21: 537851.1269 | AD21: 747222.645 | AE21: 14040 | AJ21: Cashflow till huvudperson | AK21: =$C$19+$C$16+$C$15 -> 298116.5516
B22: Pension | C22: =Pe!$C$26 -> 42229.76679 | P22: 0.019 | Q22: 543641.6851 | R22: 700000 | S22: 46800 | T22: 0.019 | U22: 543641.6851 | V22: 700000 | W22: 46800 | X22: 0.019 | Y22: 537945.9257 | Z22: 746461.7258 | AA22: 14820 | AB22: 0.019 | AC22: 537945.9257 | AD22: 746461.7258 | AE22: 14820 | AJ22: Pension | AK22: =Pe!$C$26 -> 42229.76679
B23: Total | P23: 0.02 | Q23: 543641.6851 | R23: 700000 | S23: 46800 | T23: 0.02 | U23: 543641.6851 | V23: 700000 | W23: 46800 | X23: 0.02 | Y23: 538505.9422 | Z23: 745700.8066 | AA23: 15600 | AB23: 0.02 | AC23: 538505.9422 | AD23: 745700.8066 | AE23: 15600 | AJ23: Total
B24: CashFlow till huvudperson | C24: =$C$13+$C$21+$C$22 -> 505082.3184 | P24: 0.021 | Q24: 543641.6851 | R24: 700000 | S24: 46800 | T24: 0.021 | U24: 543641.6851 | V24: 700000 | W24: 46800 | X24: 0.021 | Y24: 538600.2662 | Z24: 744939.8874 | AA24: 16380 | AB24: 0.021 | AC24: 538600.2662 | AD24: 744939.8874 | AE24: 16380 | AJ24: CashFlow till huvudperson | AK24: =$AK$13+$AK$21+$AK$22 -> 663722.2786
P25: 0.022 | Q25: 543641.6851 | R25: 700000 | S25: 46800 | T25: 0.022 | U25: 543641.6851 | V25: 700000 | W25: 46800 | X25: 0.022 | Y25: 538694.5903 | Z25: 744178.9682 | AA25: 17160 | AB25: 0.022 | AC25: 538694.5903 | AD25: 744178.9682 | AE25: 17160
B26: Max utdelning förenkling | C26: =Admin!$C$8*' Manuell version 312 Modellen'!$C$18+(' Manuell version 312 Modellen'!$C$16*Admin!$C$16) -> 169125 | P26: 0.023 | Q26: 543641.6851 | R26: 700000 | S26: 46800 | T26: 0.023 | U26: 543641.6851 | V26: 700000 | W26: 46800 | X26: 0.023 | Y26: 539255.7001 | Z26: 743418.049 | AA26: 17940 | AB26: 0.023 | AC26: 539255.7001 | AD26: 743418.049 | AE26: 17940 | AJ26: Max utdelning förenkling | AK26: =Admin!$C$8*' Manuell version 312 Modellen'!$C$18+(' Manuell version 312 Modellen'!$C$16*Admin!$C$16) -> 169125
P27: 0.024 | Q27: 543641.6851 | R27: 700000 | S27: 46800 | T27: 0.024 | U27: 543641.6851 | V27: 700000 | W27: 46800 | X27: 0.024 | Y27: 539349.5464 | Z27: 742657.1298 | AA27: 18720 | AB27: 0.024 | AC27: 539349.5464 | AD27: 742657.1298 | AE27: 18720
P28: 0.025 | Q28: 543641.6851 | R28: 700000 | S28: 46800 | T28: 0.025 | U28: 543641.6851 | V28: 700000 | W28: 46800 | X28: 0.025 | Y28: 539443.3927 | Z28: 741896.2106 | AA28: 19500 | AB28: 0.025 | AC28: 539443.3927 | AD28: 741896.2106 | AE28: 19500
P29: 0.026 | Q29: 543641.6851 | R29: 700000 | S29: 46800 | T29: 0.026 | U29: 543641.6851 | V29: 700000 | W29: 46800 | X29: 0.026 | Y29: 540005.6034 | Z29: 741135.2914 | AA29: 20280 | AB29: 0.026 | AC29: 540005.6034 | AD29: 741135.2914 | AE29: 20280
B30: Omkostnadsmax | C30: =' Manuell version 312 Modellen'!$C$19*Admin!$C$9 -> 4635 | P30: 0.027 | Q30: 543641.6851 | R30: 700000 | S30: 46800 | T30: 0.027 | U30: 543641.6851 | V30: 700000 | W30: 46800 | X30: 0.027 | Y30: 540098.9688 | Z30: 740374.3722 | AA30: 21060 | AB30: 0.027 | AC30: 540098.9688 | AD30: 740374.3722 | AE30: 21060 | AJ30: Omkostnadsmax | AK30: =' Manuell version 312 Modellen'!$C$19*Admin!$C$9 -> 4635
B31: Tot lön hela bolaget ex ägares uttagna lön= | C31: =' Manuell version 312 Modellen'!$C$20 -> 0 | P31: 0.028 | Q31: 543641.6851 | R31: 700000 | S31: 46800 | T31: 0.028 | U31: 543641.6851 | V31: 700000 | W31: 46800 | X31: 0.028 | Y31: 540192.3342 | Z31: 739613.4531 | AA31: 21840 | AB31: 0.028 | AC31: 540192.3342 | AD31: 739613.4531 | AE31: 21840 | AJ31: Tot lön hela bolaget ex ägares uttagna lön= | AK31: =' Manuell version 312 Modellen'!$C$20 -> 0
P32: 0.029 | Q32: 543641.6851 | R32: 700000 | S32: 46800 | T32: 0.029 | U32: 543641.6851 | V32: 700000 | W32: 46800 | X32: 0.029 | Y32: 540755.6534 | Z32: 738852.5339 | AA32: 22620 | AB32: 0.029 | AC32: 540755.6534 | AD32: 738852.5339 | AE32: 22620
B33: Fast Lönekrav | C33: =9.6*Admin!$C$10 -> 590400 | P33: 0.03 | Q33: 543641.6851 | R33: 700000 | S33: 46800 | T33: 0.03 | U33: 543641.6851 | V33: 700000 | W33: 46800 | X33: 0.03 | Y33: 540848.5349 | Z33: 738091.6147 | AA33: 23400 | AB33: 0.03 | AC33: 540848.5349 | AD33: 738091.6147 | AE33: 23400 | AJ33: Fast Lönekrav | AK33: =9.6*Admin!$C$10 -> 590400
B34: Rörligt lönekrav | C34: =$C$31*0.05+(($C$17-' Manuell version 312 Modellen'!$C$15)*0.05)+6*Admin!$C$10 -> 389392.65 | P34: 0.031 | Q34: 543641.6851 | R34: 700000 | S34: 46800 | T34: 0.031 | U34: 543641.6851 | V34: 700000 | W34: 46800 | X34: 0.031 | Y34: 540941.4163 | Z34: 737330.6955 | AA34: 24180 | AB34: 0.031 | AC34: 540941.4163 | AD34: 737330.6955 | AE34: 24180 | AJ34: Rörligt lönekrav | AK34: =$AK$31*0.05+(($AK$17-' Manuell version 312 Modellen'!$C$15)*0.05)+6*Admin!$C$10 -> 389392.65
P35: 0.032 | Q35: 543641.6851 | R35: 700000 | S35: 46800 | T35: 0.032 | U35: 543641.6851 | V35: 700000 | W35: 46800 | X35: 0.032 | Y35: 541505.8517 | Z35: 736569.7763 | AA35: 24960 | AB35: 0.032 | AC35: 541505.8517 | AD35: 736569.7763 | AE35: 24960
P36: 0.033 | Q36: 543641.6851 | R36: 700000 | S36: 46800 | T36: 0.033 | U36: 543641.6851 | V36: 700000 | W36: 46800 | X36: 0.033 | Y36: 541598.246 | Z36: 735808.8571 | AA36: 25740 | AB36: 0.033 | AC36: 541598.246 | AD36: 735808.8571 | AE36: 25740
B37: Max utdelning huvudregel | C37: =(' Manuell version 312 Modellen'!$C$18*(0.5*($C$31+' Manuell version 312 Modellen'!$C$7)))+$C$30+' Manuell version 312 Modellen'!$C$16*Admin!$C$16 -> 208561.5 | P37: 0.034 | Q37: 543641.6851 | R37: 700000 | S37: 46800 | T37: 0.034 | U37: 543641.6851 | V37: 700000 | W37: 46800 | X37: 0.034 | Y37: 541690.6403 | Z37: 735047.9379 | AA37: 26520 | AB37: 0.034 | AC37: 541690.6403 | AD37: 735047.9379 | AE37: 26520 | AJ37: Max utdelning huvudregel | AK37: =(' Manuell version 312 Modellen'!$C$18*(0.5*($AK$31+' Manuell version 312 Modellen'!$C$7)))+$AK$30+' Manuell version 312 Modellen'!$C$16*Admin!$C$16 -> 208561.5
P38: 0.035 | Q38: 543641.6851 | R38: 700000 | S38: 46800 | T38: 0.035 | U38: 543641.6851 | V38: 700000 | W38: 46800 | X38: 0.035 | Y38: 542256.1995 | Z38: 734287.0187 | AA38: 27300 | AB38: 0.035 | AC38: 542256.1995 | AD38: 734287.0187 | AE38: 27300
P39: 0.036 | Q39: 543641.6851 | R39: 700000 | S39: 46800 | T39: 0.036 | U39: 543641.6851 | V39: 700000 | W39: 46800 | X39: 0.036 | Y39: 542348.1035 | Z39: 733526.0995 | AA39: 28080 | AB39: 0.036 | AC39: 542348.1035 | AD39: 733526.0995 | AE39: 28080
P40: 0.037 | Q40: 543641.6851 | R40: 700000 | S40: 46800 | T40: 0.037 | U40: 543641.6851 | V40: 700000 | W40: 46800 | X40: 0.037 | Y40: 542440.0075 | Z40: 732765.1803 | AA40: 28860 | AB40: 0.037 | AC40: 542440.0075 | AD40: 732765.1803 | AE40: 28860
P41: 0.038 | Q41: 543641.6851 | R41: 700000 | S41: 46800 | T41: 0.038 | U41: 543641.6851 | V41: 700000 | W41: 46800 | X41: 0.038 | Y41: 542531.9115 | Z41: 732004.2611 | AA41: 29640 | AB41: 0.038 | AC41: 542531.9115 | AD41: 732004.2611 | AE41: 29640
B42: Nytt Regelverk | P42: 0.039 | Q42: 543641.6851 | R42: 700000 | S42: 46800 | T42: 0.039 | U42: 543641.6851 | V42: 700000 | W42: 46800 | X42: 0.039 | Y42: 543098.109 | Z42: 731243.342 | AA42: 30420 | AB42: 0.039 | AC42: 543098.109 | AD42: 731243.342 | AE42: 30420
B43: utdelning pre skatt | C43: =#REF!*'[1]3 12 Modellen'!$C$11 ->  | P43: 0.04 | Q43: 543641.6851 | R43: 700000 | S43: 46800 | T43: 0.04 | U43: 543641.6851 | V43: 700000 | W43: 46800 | X43: 0.04 | Y43: 543189.5194 | Z43: 730482.4228 | AA43: 31200 | AB43: 0.04 | AC43: 543189.5194 | AD43: 730482.4228 | AE43: 31200
B44: skattefritt belopp | C44: ='[1]3 12 Modellen'!$C$16*'[1]3 12 Modellen'!$C$17 -> 0 | P44: 0.041 | Q44: 543641.6851 | R44: 700000 | S44: 46800 | T44: 0.041 | U44: 543641.6851 | V44: 700000 | W44: 46800 | X44: 0.041 | Y44: 543280.9298 | Z44: 729721.5036 | AA44: 31980 | AB44: 0.041 | AC44: 543280.9298 | AD44: 729721.5036 | AE44: 31980
B45: resultat att beskatta | C45: =MAX(C43-C44,0) ->  | P45: 0.042 | Q45: 543641.6851 | R45: 700000 | S45: 46800 | T45: 0.042 | U45: 543641.6851 | V45: 700000 | W45: 46800 | X45: 0.042 | Y45: 543848.2638 | Z45: 728960.5844 | AA45: 32760 | AB45: 0.042 | AC45: 543848.2638 | AD45: 728960.5844 | AE45: 32760
B46: bolagsskatt | C46: =MIN(C45*[1]Admin!$C$4*-1,0) ->  | P46: 0.043 | Q46: 543641.6851 | R46: 700000 | S46: 46800 | T46: 0.043 | U46: 543641.6851 | V46: 700000 | W46: 46800 | X46: 0.043 | Y46: 543939.1774 | Z46: 728199.6652 | AA46: 33540 | AB46: 0.043 | AC46: 543939.1774 | AD46: 728199.6652 | AE46: 33540
B47: utdelning innan privat skatt | C47: =MIN(C45+C46+C44,C43) ->  | P47: 0.044 | Q47: 543641.6851 | R47: 700000 | S47: 46800 | T47: 0.044 | U47: 543641.6851 | V47: 700000 | W47: 46800 | X47: 0.044 | Y47: 544030.0911 | Z47: 727438.746 | AA47: 34320 | AB47: 0.044 | AC47: 544030.0911 | AD47: 727438.746 | AE47: 34320
B48: skatt på utdelning | C48: =C47*[1]Admin!$C$27*-1 ->  | P48: 0.045 | Q48: 543641.6851 | R48: 700000 | S48: 46800 | T48: 0.045 | U48: 543641.6851 | V48: 700000 | W48: 46800 | X48: 0.045 | Y48: 544598.5695 | Z48: 726677.8268 | AA48: 35100 | AB48: 0.045 | AC48: 544598.5695 | AD48: 726677.8268 | AE48: 35100
B49: CashFlow till huvudperson | C49: =C47+C48 ->  | P49: 0.046 | Q49: 543641.6851 | R49: 700000 | S49: 46800 | T49: 0.046 | U49: 543641.6851 | V49: 700000 | W49: 46800 | X49: 0.046 | Y49: 544688.983 | Z49: 725916.9076 | AA49: 35880 | AB49: 0.046 | AC49: 544688.983 | AD49: 725916.9076 | AE49: 35880
P50: 0.047 | Q50: 543641.6851 | R50: 700000 | S50: 46800 | T50: 0.047 | U50: 543641.6851 | V50: 700000 | W50: 46800 | X50: 0.047 | Y50: 544779.3966 | Z50: 725155.9884 | AA50: 36660 | AB50: 0.047 | AC50: 544779.3966 | AD50: 725155.9884 | AE50: 36660
B51: lönekostnad pre skatt | C51: =#REF!*'[1]3 12 Modellen'!$C$11 ->  | P51: 0.048 | Q51: 543641.6851 | R51: 700000 | S51: 46800 | T51: 0.048 | U51: 543641.6851 | V51: 700000 | W51: 46800 | X51: 0.048 | Y51: 545349.0275 | Z51: 724395.0692 | AA51: 37440 | AB51: 0.048 | AC51: 545349.0275 | AD51: 724395.0692 | AE51: 37440
B52: arbetsgivaravg | C52: =(C51-C51/(1+[1]Admin!C3))*-1 ->  | P52: 0.049 | Q52: 543641.6851 | R52: 700000 | S52: 46800 | T52: 0.049 | U52: 543641.6851 | V52: 700000 | W52: 46800 | X52: 0.049 | Y52: 545438.9377 | Z52: 723634.1501 | AA52: 38220 | AB52: 0.049 | AC52: 545438.9377 | AD52: 723634.1501 | AE52: 38220
B53: Bruttolön | C53: =C52+C51+'[1]3 12 Modellen'!$C$14 ->  | P53: 0.05 | Q53: 543641.6851 | R53: 700000 | S53: 46800 | T53: 0.05 | U53: 543641.6851 | V53: 700000 | W53: 46800 | X53: 0.05 | Y53: 545528.8478 | Z53: 722873.2309 | AA53: 39000 | AB53: 0.05 | AC53: 545528.8478 | AD53: 722873.2309 | AE53: 39000
B54: skattetabell | C54: =IFERROR(INDEX([1]Admin!$E$2:$H$549,MATCH(C53/12,[1]Admin!$E$2:$E$549,1)+1,4),0.55)+IFERROR(INDEX([1]Admin!$J$2:$N$314,MATCH('[1]3 12 Modellen'!C13,[1]Admin!$J$2:$J$314,0),5),0) -> 0.5498 | P54: 0.051 | Q54: 543641.6851 | R54: 700000 | S54: 46800 | T54: 0.051 | U54: 543641.6851 | V54: 700000 | W54: 46800 | X54: 0.051 | Y54: 546099.6393 | Z54: 722112.3117 | AA54: 39780 | AB54: 0.051 | AC54: 546099.6393 | AD54: 722112.3117 | AE54: 39780
B55: inkomstskatt | C55: =IFERROR(C53*C54*-1,0)+IFERROR(('[1]3 12 Modellen'!$C$14*(INDEX([1]Admin!$E$2:$H$549,MATCH('[1]3 12 Modellen'!$C$14/12,[1]Admin!$E$2:$E$549,1)+1,4)+INDEX([1]Admin!$J$2:$N$314,MATCH('[1]3 12 Modellen'!C13,[1]Admin!$J$2:$J$314,0),5))),0) -> 0 | P55: 0.052 | Q55: 543641.6851 | R55: 700000 | S55: 46800 | T55: 0.052 | U55: 543641.6851 | V55: 700000 | W55: 46800 | X55: 0.052 | Y55: 546189.0428 | Z55: 721351.3925 | AA55: 40560 | AB55: 0.052 | AC55: 546189.0428 | AD55: 721351.3925 | AE55: 40560
C56: =IF(1=2,(IF(C53/12>[1]Admin!$C$6,[1]Admin!$C$7*([1]Process!C52-[1]Admin!$C$6*12)*-1,0)+IF(C53/12>[1]Admin!$C$14,[1]Admin!$C$15*([1]Process!C52-[1]Admin!$C$14*12)*-1,0))-(IF('[1]3 12 Modellen'!$C$14/12>[1]Admin!$C$6,[1]Admin!$C$7*('[1]3 12 Modellen'!$C$14-[1]Admin!$C$6*12)*-1,0)+IF('[1]3 12 Modellen'!$C$14/12>[1]Admin!$C$14,[1]Admin!$C$15*('[1]3 12 Modellen'!$C$14-[1]Admin!$C$14*12)*-1,0)),0) -> 0 | P56: 0.053 | Q56: 543641.6851 | R56: 700000 | S56: 46800 | T56: 0.053 | U56: 543641.6851 | V56: 700000 | W56: 46800 | X56: 0.053 | Y56: 546278.4463 | Z56: 720590.4733 | AA56: 41340 | AB56: 0.053 | AC56: 546278.4463 | AD56: 720590.4733 | AE56: 41340
B57: Cashflow till huvudperson | C57: =C55+C52+C51 ->  | P57: 0.054 | Q57: 543641.6851 | R57: 700000 | S57: 46800 | T57: 0.054 | U57: 543641.6851 | V57: 700000 | W57: 46800 | X57: 0.054 | Y57: 546850.4066 | Z57: 719829.5541 | AA57: 42120 | AB57: 0.054 | AC57: 546850.4066 | AD57: 719829.5541 | AE57: 42120
B58: Pensionskassaflöde | C58: =[1]PensionsBeräkning!C26 -> 51388.23156 | P58: 0.055 | Q58: 543641.6851 | R58: 700000 | S58: 46800 | T58: 0.055 | U58: 543641.6851 | V58: 700000 | W58: 46800 | X58: 0.055 | Y58: 546939.2999 | Z58: 719068.6349 | AA58: 42900 | AB58: 0.055 | AC58: 546939.2999 | AD58: 719068.6349 | AE58: 42900
B59: Total | P59: 0.056 | Q59: 543641.6851 | R59: 700000 | S59: 46800 | T59: 0.056 | U59: 543641.6851 | V59: 700000 | W59: 46800 | X59: 0.056 | Y59: 547028.1933 | Z59: 718307.7157 | AA59: 43680 | AB59: 0.056 | AC59: 547028.1933 | AD59: 718307.7157 | AE59: 43680
B60: Cashflow till huvudperson | C60: =C49+C57+C58 ->  | P60: 0.057 | Q60: 543641.6851 | R60: 700000 | S60: 46800 | T60: 0.057 | U60: 543641.6851 | V60: 700000 | W60: 46800 | X60: 0.057 | Y60: 547601.3308 | Z60: 717546.7965 | AA60: 44460 | AB60: 0.057 | AC60: 547601.3308 | AD60: 717546.7965 | AE60: 44460
P61: 0.058 | Q61: 543641.6851 | R61: 700000 | S61: 46800 | T61: 0.058 | U61: 543641.6851 | V61: 700000 | W61: 46800 | X61: 0.058 | Y61: 547689.7106 | Z61: 716785.8773 | AA61: 45240 | AB61: 0.058 | AC61: 547689.7106 | AD61: 716785.8773 | AE61: 45240
B62: Max utdelning förenkling | C62: =([1]Admin!C28*'[1]3 12 Modellen'!C17)+('[1]3 12 Modellen'!C15*[1]Admin!C16) -> 1130325 | P62: 0.059 | Q62: 543641.6851 | R62: 700000 | S62: 46800 | T62: 0.059 | U62: 543641.6851 | V62: 700000 | W62: 46800 | X62: 0.059 | Y62: 547778.0905 | Z62: 716024.9581 | AA62: 46020 | AB62: 0.059 | AC62: 547778.0905 | AD62: 716024.9581 | AE62: 46020
P63: 0.06 | Q63: 543641.6851 | R63: 700000 | S63: 46800 | T63: 0.06 | U63: 543641.6851 | V63: 700000 | W63: 46800 | X63: 0.06 | Y63: 547866.4703 | Z63: 715264.039 | AA63: 46800 | AB63: 0.06 | AC63: 547866.4703 | AD63: 715264.039 | AE63: 46800
B64: Underlag för Löneutrymme | C64: =((C53-'[1]3 12 Modellen'!C14)+'[1]3 12 Modellen'!#REF!)*'[1]3 12 Modellen'!C17 ->  | P64: 0.061 | Q64: 543641.6851 | R64: 700000 | S64: 46800 | T64: 0.061 | U64: 543641.6851 | V64: 700000 | W64: 46800 | X64: 0.061 | Y64: 548440.2764 | Z64: 714503.1198 | AA64: 47580 | AB64: 0.061 | AC64: 548440.2764 | AD64: 714503.1198 | AE64: 47580
B65: 60 Bas | P65: 0.062 | Q65: 543641.6851 | R65: 700000 | S65: 46800 | T65: 0.062 | U65: 543641.6851 | V65: 700000 | W65: 46800 | X65: 0.062 | Y65: 548528.1393 | Z65: 713742.2006 | AA65: 48360 | AB65: 0.062 | AC65: 548528.1393 | AD65: 713742.2006 | AE65: 48360
B66: Lönsummeunderlag | C66: =IF($C$64>[1]Admin!$C$22,[1]Admin!$C$22,"") ->  | P66: 0.063 | Q66: 543641.6851 | R66: 700000 | S66: 46800 | T66: 0.063 | U66: 543641.6851 | V66: 700000 | W66: 46800 | X66: 0.063 | Y66: 548616.0022 | Z66: 712981.2814 | AA66: 49140 | AB66: 0.063 | AC66: 548616.0022 | AD66: 712981.2814 | AE66: 49140
B67: LöneSum PCT | C67: =IF($C$64>[1]Admin!$C$22,[1]Admin!$D$22,"") ->  | P67: 0.064 | Q67: 543641.6851 | R67: 700000 | S67: 46800 | T67: 0.064 | U67: 543641.6851 | V67: 700000 | W67: 46800 | X67: 0.064 | Y67: 549190.9988 | Z67: 712220.3622 | AA67: 49920 | AB67: 0.064 | AC67: 549190.9988 | AD67: 712220.3622 | AE67: 49920
B68: Utrymme | C68: =IFERROR((C64-C66)*C67,0) -> 0 | P68: 0.065 | Q68: 543641.6851 | R68: 700000 | S68: 46800 | T68: 0.065 | U68: 543641.6851 | V68: 700000 | W68: 46800 | X68: 0.065 | Y68: 549278.3413 | Z68: 711459.443 | AA68: 50700 | AB68: 0.065 | AC68: 549278.3413 | AD68: 711459.443 | AE68: 50700
P69: 0.066 | Q69: 543641.6851 | R69: 700000 | S69: 46800 | T69: 0.066 | U69: 543641.6851 | V69: 700000 | W69: 46800 | X69: 0.066 | Y69: 549365.6837 | Z69: 710698.5238 | AA69: 51480 | AB69: 0.066 | AC69: 549365.6837 | AD69: 710698.5238 | AE69: 51480
B70: 8 Bas | P70: 0.067 | Q70: 543641.6851 | R70: 700000 | S70: 46800 | T70: 0.067 | U70: 543641.6851 | V70: 700000 | W70: 46800 | X70: 0.067 | Y70: 549941.8795 | Z70: 709937.6046 | AA70: 52260 | AB70: 0.067 | AC70: 549941.8795 | AD70: 709937.6046 | AE70: 52260
B71: Lönsummeunderlag | C71: =IF($C$64>[1]Admin!$C$23,[1]Admin!$C$23,"") ->  | P71: 0.068 | Q71: 543641.6851 | R71: 700000 | S71: 46800 | T71: 0.068 | U71: 543641.6851 | V71: 700000 | W71: 46800 | X71: 0.068 | Y71: 550028.698 | Z71: 709176.6854 | AA71: 53040 | AB71: 0.068 | AC71: 550028.698 | AD71: 709176.6854 | AE71: 53040
B72: LöneSum PCT | C72: =IF($C$64>[1]Admin!$C$23,[1]Admin!$D$23,"") ->  | P72: 0.069 | Q72: 543641.6851 | R72: 700000 | S72: 46800 | T72: 0.069 | U72: 543641.6851 | V72: 700000 | W72: 46800 | X72: 0.069 | Y72: 550115.5165 | Z72: 708415.7662 | AA72: 53820 | AB72: 0.069 | AC72: 550115.5165 | AD72: 708415.7662 | AE72: 53820
B73: Utrymme | C73: =IFERROR((C64-C71)*C72,0) -> 0 | P73: 0.07 | Q73: 543641.6851 | R73: 700000 | S73: 46800 | T73: 0.07 | U73: 543641.6851 | V73: 700000 | W73: 46800 | X73: 0.07 | Y73: 550692.92 | Z73: 707654.8471 | AA73: 54600 | AB73: 0.07 | AC73: 550692.92 | AD73: 707654.8471 | AE73: 54600
P74: 0.071 | Q74: 543641.6851 | R74: 700000 | S74: 46800 | T74: 0.071 | U74: 543641.6851 | V74: 700000 | W74: 46800 | X74: 0.071 | Y74: 550779.211 | Z74: 706893.9279 | AA74: 55380 | AB74: 0.071 | AC74: 550779.211 | AD74: 706893.9279 | AE74: 55380
B75: > 8 Bas | P75: 0.072 | Q75: 543641.6851 | R75: 700000 | S75: 46800 | T75: 0.072 | U75: 543641.6851 | V75: 700000 | W75: 46800 | X75: 0.072 | Y75: 550865.502 | Z75: 706133.0087 | AA75: 56160 | AB75: 0.072 | AC75: 550865.502 | AD75: 706133.0087 | AE75: 56160
B76: Lönsummeunderlag | C76: =IFERROR(IF($C$64<[1]Admin!$C$24,C$64,[1]Admin!$C$24),0) -> 0 | P76: 0.073 | Q76: 543641.6851 | R76: 700000 | S76: 46800 | T76: 0.073 | U76: 543641.6851 | V76: 700000 | W76: 46800 | X76: 0.073 | Y76: 551444.122 | Z76: 705372.0895 | AA76: 56940 | AB76: 0.073 | AC76: 551444.122 | AD76: 705372.0895 | AE76: 56940
B77: LöneSum PCT | C77: =[1]Admin!D24 -> 0.15 | P77: 0.074 | Q77: 543641.6851 | R77: 700000 | S77: 46800 | T77: 0.074 | U77: 543641.6851 | V77: 700000 | W77: 46800 | X77: 0.074 | Y77: 551529.8819 | Z77: 704611.1703 | AA77: 57720 | AB77: 0.074 | AC77: 551529.8819 | AD77: 704611.1703 | AE77: 57720
B78: Utrymme | C78: =C76*C77 -> 0 | P78: 0.075 | Q78: 543641.6851 | R78: 700000 | S78: 46800 | T78: 0.075 | U78: 543641.6851 | V78: 700000 | W78: 46800 | X78: 0.075 | Y78: 551615.6418 | Z78: 703850.2511 | AA78: 58500 | AB78: 0.075 | AC78: 551615.6418 | AD78: 703850.2511 | AE78: 58500
P79: 0.076 | Q79: 543641.6851 | R79: 700000 | S79: 46800 | T79: 0.076 | U79: 543641.6851 | V79: 700000 | W79: 46800 | X79: 0.076 | Y79: 552195.4872 | Z79: 703089.3319 | AA79: 59280 | AB79: 0.076 | AC79: 552195.4872 | AD79: 703089.3319 | AE79: 59280
B80: Max utdelning enligt huvudregeln | C80: =([1]Admin!C9*'[1]3 12 Modellen'!C18)+C68+C73+C78+('[1]3 12 Modellen'!C15*[1]Admin!C16) -> 1027335 | P80: 0.077 | Q80: 543641.6851 | R80: 700000 | S80: 46800 | T80: 0.077 | U80: 543641.6851 | V80: 700000 | W80: 46800 | X80: 0.077 | Y80: 552280.7124 | Z80: 702328.4127 | AA80: 60060 | AB80: 0.077 | AC80: 552280.7124 | AD80: 702328.4127 | AE80: 60060
B81: Tot lön hela bolaget | C81: ='[1]3 12 Modellen'!#REF! ->  | P81: 0.078 | Q81: 543641.6851 | R81: 700000 | S81: 46800 | T81: 0.078 | U81: 543641.6851 | V81: 700000 | W81: 46800 | X81: 0.078 | Y81: 552365.9375 | Z81: 701567.4935 | AA81: 60840 | AB81: 0.078 | AC81: 552365.9375 | AD81: 701567.4935 | AE81: 60840
P82: 0.079 | Q82: 543641.6851 | R82: 700000 | S82: 46800 | T82: 0.079 | U82: 543641.6851 | V82: 700000 | W82: 46800 | X82: 0.079 | Y82: 552451.1627 | Z82: 700806.5743 | AA82: 61620 | AB82: 0.079 | AC82: 552451.1627 | AD82: 700806.5743 | AE82: 61620
B83: Andelsägarens lönekrav | C83: =MIN(C64*[1]Admin!C26+8*[1]Admin!C11,15*[1]Admin!C11) ->  | P83: 0.08 | Q83: 543641.6851 | R83: 700000 | S83: 46800 | T83: 0.08 | U83: 543641.6851 | V83: 700000 | W83: 46800 | X83: 0.08 | Y83: 553031.7039 | Z83: 700045.6552 | AA83: 62400 | AB83: 0.08 | AC83: 553031.7039 | AD83: 700045.6552 | AE83: 62400
P84: 0.081 | Q84: 543641.6851 | R84: 700000 | S84: 46800 | T84: 0.081 | U84: 543641.6851 | V84: 700000 | W84: 46800 | X84: 0.081 | Y84: 553116.3907 | Z84: 699284.736 | AA84: 63180 | AB84: 0.081 | AC84: 553116.3907 | AD84: 699284.736 | AE84: 63180
P85: 0.082 | Q85: 543641.6851 | R85: 700000 | S85: 46800 | T85: 0.082 | U85: 543641.6851 | V85: 700000 | W85: 46800 | X85: 0.082 | Y85: 553201.0775 | Z85: 698523.8168 | AA85: 63960 | AB85: 0.082 | AC85: 553201.0775 | AD85: 698523.8168 | AE85: 63960
P86: 0.083 | Q86: 543641.6851 | R86: 700000 | S86: 46800 | T86: 0.083 | U86: 543641.6851 | V86: 700000 | W86: 46800 | X86: 0.083 | Y86: 553782.8583 | Z86: 697762.8976 | AA86: 64740 | AB86: 0.083 | AC86: 553782.8583 | AD86: 697762.8976 | AE86: 64740
P87: 0.084 | Q87: 543641.6851 | R87: 700000 | S87: 46800 | T87: 0.084 | U87: 543641.6851 | V87: 700000 | W87: 46800 | X87: 0.084 | Y87: 553867.003 | Z87: 697001.9784 | AA87: 65520 | AB87: 0.084 | AC87: 553867.003 | AD87: 697001.9784 | AE87: 65520
B88: CashFlow till Huvudperson | C88: =C60 ->  | P88: 0.085 | Q88: 543641.6851 | R88: 700000 | S88: 46800 | T88: 0.085 | U88: 543641.6851 | V88: 700000 | W88: 46800 | X88: 0.085 | Y88: 553951.1477 | Z88: 696241.0592 | AA88: 66300 | AB88: 0.085 | AC88: 553951.1477 | AD88: 696241.0592 | AE88: 66300
P89: 0.086 | Q89: 543641.6851 | R89: 700000 | S89: 46800 | T89: 0.086 | U89: 543641.6851 | V89: 700000 | W89: 46800 | X89: 0.086 | Y89: 554534.1772 | Z89: 695480.14 | AA89: 67080 | AB89: 0.086 | AC89: 554534.1772 | AD89: 695480.14 | AE89: 67080
P90: 0.087 | Q90: 543641.6851 | R90: 700000 | S90: 46800 | T90: 0.087 | U90: 543641.6851 | V90: 700000 | W90: 46800 | X90: 0.087 | Y90: 554617.776 | Z90: 694719.2208 | AA90: 67860 | AB90: 0.087 | AC90: 554617.776 | AD90: 694719.2208 | AE90: 67860
P91: 0.088 | Q91: 543641.6851 | R91: 700000 | S91: 46800 | T91: 0.088 | U91: 543641.6851 | V91: 700000 | W91: 46800 | X91: 0.088 | Y91: 554701.3749 | Z91: 693958.3016 | AA91: 68640 | AB91: 0.088 | AC91: 554701.3749 | AD91: 693958.3016 | AE91: 68640
P92: 0.089 | Q92: 543641.6851 | R92: 700000 | S92: 46800 | T92: 0.089 | U92: 543641.6851 | V92: 700000 | W92: 46800 | X92: 0.089 | Y92: 555285.6623 | Z92: 693197.3824 | AA92: 69420 | AB92: 0.089 | AC92: 555285.6623 | AD92: 693197.3824 | AE92: 69420
P93: 0.09 | Q93: 543641.6851 | R93: 700000 | S93: 46800 | T93: 0.09 | U93: 543641.6851 | V93: 700000 | W93: 46800 | X93: 0.09 | Y93: 555368.7115 | Z93: 692436.4632 | AA93: 70200 | AB93: 0.09 | AC93: 555368.7115 | AD93: 692436.4632 | AE93: 70200
P94: 0.091 | Q94: 543641.6851 | R94: 700000 | S94: 46800 | T94: 0.091 | U94: 543641.6851 | V94: 700000 | W94: 46800 | X94: 0.091 | Y94: 555451.7608 | Z94: 691675.5441 | AA94: 70980 | AB94: 0.091 | AC94: 555451.7608 | AD94: 691675.5441 | AE94: 70980
P95: 0.092 | Q95: 543641.6851 | R95: 700000 | S95: 46800 | T95: 0.092 | U95: 543641.6851 | V95: 700000 | W95: 46800 | X95: 0.092 | Y95: 556037.3153 | Z95: 690914.6249 | AA95: 71760 | AB95: 0.092 | AC95: 556037.3153 | AD95: 690914.6249 | AE95: 71760
P96: 0.093 | Q96: 543641.6851 | R96: 700000 | S96: 46800 | T96: 0.093 | U96: 543641.6851 | V96: 700000 | W96: 46800 | X96: 0.093 | Y96: 556119.8111 | Z96: 690153.7057 | AA96: 72540 | AB96: 0.093 | AC96: 556119.8111 | AD96: 690153.7057 | AE96: 72540
P97: 0.094 | Q97: 543641.6851 | R97: 700000 | S97: 46800 | T97: 0.094 | U97: 543641.6851 | V97: 700000 | W97: 46800 | X97: 0.094 | Y97: 556202.307 | Z97: 689392.7865 | AA97: 73320 | AB97: 0.094 | AC97: 556202.307 | AD97: 689392.7865 | AE97: 73320
P98: 0.095 | Q98: 543641.6851 | R98: 700000 | S98: 46800 | T98: 0.095 | U98: 543641.6851 | V98: 700000 | W98: 46800 | X98: 0.095 | Y98: 556789.138 | Z98: 688631.8673 | AA98: 74100 | AB98: 0.095 | AC98: 556789.138 | AD98: 688631.8673 | AE98: 74100
P99: 0.096 | Q99: 543641.6851 | R99: 700000 | S99: 46800 | T99: 0.096 | U99: 543641.6851 | V99: 700000 | W99: 46800 | X99: 0.096 | Y99: 556871.0766 | Z99: 687870.9481 | AA99: 74880 | AB99: 0.096 | AC99: 556871.0766 | AD99: 687870.9481 | AE99: 74880
P100: 0.097 | Q100: 543641.6851 | R100: 700000 | S100: 46800 | T100: 0.097 | U100: 543641.6851 | V100: 700000 | W100: 46800 | X100: 0.097 | Y100: 556953.0151 | Z100: 687110.0289 | AA100: 75660 | AB100: 0.097 | AC100: 556953.0151 | AD100: 687110.0289 | AE100: 75660
P101: 0.098 | Q101: 543641.6851 | R101: 700000 | S101: 46800 | T101: 0.098 | U101: 543641.6851 | V101: 700000 | W101: 46800 | X101: 0.098 | Y101: 557541.1322 | Z101: 686349.1097 | AA101: 76440 | AB101: 0.098 | AC101: 557541.1322 | AD101: 686349.1097 | AE101: 76440
P102: 0.099 | Q102: 543641.6851 | R102: 700000 | S102: 46800 | T102: 0.099 | U102: 543641.6851 | V102: 700000 | W102: 46800 | X102: 0.099 | Y102: 557622.5096 | Z102: 685588.1905 | AA102: 77220 | AB102: 0.099 | AC102: 557622.5096 | AD102: 685588.1905 | AE102: 77220
P103: 0.1 | Q103: 543641.6851 | R103: 700000 | S103: 46800 | T103: 0.1 | U103: 543641.6851 | V103: 700000 | W103: 46800 | X103: 0.1 | Y103: 557703.8869 | Z103: 684827.2713 | AA103: 78000 | AB103: 0.1 | AC103: 557703.8869 | AD103: 684827.2713 | AE103: 78000
P104: 0.101 | Q104: 543641.6851 | R104: 700000 | S104: 46800 | T104: 0.101 | U104: 543641.6851 | V104: 700000 | W104: 46800 | X104: 0.101 | Y104: 557785.2643 | Z104: 684066.3522 | AA104: 78780 | AB104: 0.101 | AC104: 557785.2643 | AD104: 684066.3522 | AE104: 78780
P105: 0.102 | Q105: 543641.6851 | R105: 700000 | S105: 46800 | T105: 0.102 | U105: 543641.6851 | V105: 700000 | W105: 46800 | X105: 0.102 | Y105: 558374.1119 | Z105: 683305.433 | AA105: 79560 | AB105: 0.102 | AC105: 558374.1119 | AD105: 683305.433 | AE105: 79560
P106: 0.103 | Q106: 543641.6851 | R106: 700000 | S106: 46800 | T106: 0.103 | U106: 543641.6851 | V106: 700000 | W106: 46800 | X106: 0.103 | Y106: 558454.9242 | Z106: 682544.5138 | AA106: 80340 | AB106: 0.103 | AC106: 558454.9242 | AD106: 682544.5138 | AE106: 80340
P107: 0.104 | Q107: 543641.6851 | R107: 700000 | S107: 46800 | T107: 0.104 | U107: 543641.6851 | V107: 700000 | W107: 46800 | X107: 0.104 | Y107: 558535.7364 | Z107: 681783.5946 | AA107: 81120 | AB107: 0.104 | AC107: 558535.7364 | AD107: 681783.5946 | AE107: 81120
P108: 0.105 | Q108: 543641.6851 | R108: 700000 | S108: 46800 | T108: 0.105 | U108: 543641.6851 | V108: 700000 | W108: 46800 | X108: 0.105 | Y108: 559125.8854 | Z108: 681022.6754 | AA108: 81900 | AB108: 0.105 | AC108: 559125.8854 | AD108: 681022.6754 | AE108: 81900
P109: 0.106 | Q109: 543641.6851 | R109: 700000 | S109: 46800 | T109: 0.106 | U109: 543641.6851 | V109: 700000 | W109: 46800 | X109: 0.106 | Y109: 559206.1285 | Z109: 680261.7562 | AA109: 82680 | AB109: 0.106 | AC109: 559206.1285 | AD109: 680261.7562 | AE109: 82680
P110: 0.107 | Q110: 543641.6851 | R110: 700000 | S110: 46800 | T110: 0.107 | U110: 543641.6851 | V110: 700000 | W110: 46800 | X110: 0.107 | Y110: 559286.3717 | Z110: 679500.837 | AA110: 83460 | AB110: 0.107 | AC110: 559286.3717 | AD110: 679500.837 | AE110: 83460
P111: 0.108 | Q111: 543641.6851 | R111: 700000 | S111: 46800 | T111: 0.108 | U111: 543641.6851 | V111: 700000 | W111: 46800 | X111: 0.108 | Y111: 559877.8318 | Z111: 678739.9178 | AA111: 84240 | AB111: 0.108 | AC111: 559877.8318 | AD111: 678739.9178 | AE111: 84240
P112: 0.109 | Q112: 543641.6851 | R112: 700000 | S112: 46800 | T112: 0.109 | U112: 543641.6851 | V112: 700000 | W112: 46800 | X112: 0.109 | Y112: 559957.5018 | Z112: 677978.9986 | AA112: 85020 | AB112: 0.109 | AC112: 559957.5018 | AD112: 677978.9986 | AE112: 85020
P113: 0.11 | Q113: 543641.6851 | R113: 700000 | S113: 46800 | T113: 0.11 | U113: 543641.6851 | V113: 700000 | W113: 46800 | X113: 0.11 | Y113: 560037.1719 | Z113: 677218.0794 | AA113: 85800 | AB113: 0.11 | AC113: 560037.1719 | AD113: 677218.0794 | AE113: 85800
P114: 0.111 | Q114: 543641.6851 | R114: 700000 | S114: 46800 | T114: 0.111 | U114: 543641.6851 | V114: 700000 | W114: 46800 | X114: 0.111 | Y114: 560629.9529 | Z114: 676457.1602 | AA114: 86580 | AB114: 0.111 | AC114: 560629.9529 | AD114: 676457.1602 | AE114: 86580
P115: 0.112 | Q115: 543641.6851 | R115: 700000 | S115: 46800 | T115: 0.112 | U115: 543641.6851 | V115: 700000 | W115: 46800 | X115: 0.112 | Y115: 560709.0458 | Z115: 675696.2411 | AA115: 87360 | AB115: 0.112 | AC115: 560709.0458 | AD115: 675696.2411 | AE115: 87360
P116: 0.113 | Q116: 543641.6851 | R116: 700000 | S116: 46800 | T116: 0.113 | U116: 543641.6851 | V116: 700000 | W116: 46800 | X116: 0.113 | Y116: 560788.1387 | Z116: 674935.3219 | AA116: 88140 | AB116: 0.113 | AC116: 560788.1387 | AD116: 674935.3219 | AE116: 88140
P117: 0.114 | Q117: 543641.6851 | R117: 700000 | S117: 46800 | T117: 0.114 | U117: 543641.6851 | V117: 700000 | W117: 46800 | X117: 0.114 | Y117: 561382.2508 | Z117: 674174.4027 | AA117: 88920 | AB117: 0.114 | AC117: 561382.2508 | AD117: 674174.4027 | AE117: 88920
P118: 0.115 | Q118: 543641.6851 | R118: 700000 | S118: 46800 | T118: 0.115 | U118: 543641.6851 | V118: 700000 | W118: 46800 | X118: 0.115 | Y118: 561460.7624 | Z118: 673413.4835 | AA118: 89700 | AB118: 0.115 | AC118: 561460.7624 | AD118: 673413.4835 | AE118: 89700
P119: 0.116 | Q119: 543641.6851 | R119: 700000 | S119: 46800 | T119: 0.116 | U119: 543641.6851 | V119: 700000 | W119: 46800 | X119: 0.116 | Y119: 561539.274 | Z119: 672652.5643 | AA119: 90480 | AB119: 0.116 | AC119: 561539.274 | AD119: 672652.5643 | AE119: 90480
P120: 0.117 | Q120: 543641.6851 | R120: 700000 | S120: 46800 | T120: 0.117 | U120: 543641.6851 | V120: 700000 | W120: 46800 | X120: 0.117 | Y120: 562134.7271 | Z120: 671891.6451 | AA120: 91260 | AB120: 0.117 | AC120: 562134.7271 | AD120: 671891.6451 | AE120: 91260
P121: 0.118 | Q121: 543641.6851 | R121: 700000 | S121: 46800 | T121: 0.118 | U121: 543641.6851 | V121: 700000 | W121: 46800 | X121: 0.118 | Y121: 562212.6533 | Z121: 671130.7259 | AA121: 92040 | AB121: 0.118 | AC121: 562212.6533 | AD121: 671130.7259 | AE121: 92040
P122: 0.119 | Q122: 543641.6851 | R122: 700000 | S122: 46800 | T122: 0.119 | U122: 543641.6851 | V122: 700000 | W122: 46800 | X122: 0.119 | Y122: 562290.5795 | Z122: 670369.8067 | AA122: 92820 | AB122: 0.119 | AC122: 562290.5795 | AD122: 670369.8067 | AE122: 92820
P123: 0.12 | Q123: 543641.6851 | R123: 700000 | S123: 46800 | T123: 0.12 | U123: 543641.6851 | V123: 700000 | W123: 46800 | X123: 0.12 | Y123: 562368.5056 | Z123: 669608.8875 | AA123: 93600 | AB123: 0.12 | AC123: 562368.5056 | AD123: 669608.8875 | AE123: 93600
P124: 0.121 | Q124: 543641.6851 | R124: 700000 | S124: 46800 | T124: 0.121 | U124: 543641.6851 | V124: 700000 | W124: 46800 | X124: 0.121 | Y124: 562964.7205 | Z124: 668847.9683 | AA124: 94380 | AB124: 0.121 | AC124: 562964.7205 | AD124: 668847.9683 | AE124: 94380
P125: 0.122 | Q125: 543641.6851 | R125: 700000 | S125: 46800 | T125: 0.122 | U125: 543641.6851 | V125: 700000 | W125: 46800 | X125: 0.122 | Y125: 563042.057 | Z125: 668087.0492 | AA125: 95160 | AB125: 0.122 | AC125: 563042.057 | AD125: 668087.0492 | AE125: 95160
P126: 0.123 | Q126: 543641.6851 | R126: 700000 | S126: 46800 | T126: 0.123 | U126: 543641.6851 | V126: 700000 | W126: 46800 | X126: 0.123 | Y126: 563119.3936 | Z126: 667326.13 | AA126: 95940 | AB126: 0.123 | AC126: 563119.3936 | AD126: 667326.13 | AE126: 95940
P127: 0.124 | Q127: 543641.6851 | R127: 700000 | S127: 46800 | T127: 0.124 | U127: 543641.6851 | V127: 700000 | W127: 46800 | X127: 0.124 | Y127: 563716.9658 | Z127: 666565.2108 | AA127: 96720 | AB127: 0.124 | AC127: 563716.9658 | AD127: 666565.2108 | AE127: 96720
P128: 0.125 | Q128: 543641.6851 | R128: 700000 | S128: 46800 | T128: 0.125 | U128: 543641.6851 | V128: 700000 | W128: 46800 | X128: 0.125 | Y128: 563793.7085 | Z128: 665804.2916 | AA128: 97500 | AB128: 0.125 | AC128: 563793.7085 | AD128: 665804.2916 | AE128: 97500
P129: 0.126 | Q129: 543641.6851 | R129: 700000 | S129: 46800 | T129: 0.126 | U129: 543641.6851 | V129: 700000 | W129: 46800 | X129: 0.126 | Y129: 563870.4512 | Z129: 665043.3724 | AA129: 98280 | AB129: 0.126 | AC129: 563870.4512 | AD129: 665043.3724 | AE129: 98280
P130: 0.127 | Q130: 543641.6851 | R130: 700000 | S130: 46800 | T130: 0.127 | U130: 543641.6851 | V130: 700000 | W130: 46800 | X130: 0.127 | Y130: 564469.3913 | Z130: 664282.4532 | AA130: 99060 | AB130: 0.127 | AC130: 564469.3913 | AD130: 664282.4532 | AE130: 99060
P131: 0.128 | Q131: 543641.6851 | R131: 700000 | S131: 46800 | T131: 0.128 | U131: 543641.6851 | V131: 700000 | W131: 46800 | X131: 0.128 | Y131: 564545.5358 | Z131: 663521.534 | AA131: 99840 | AB131: 0.128 | AC131: 564545.5358 | AD131: 663521.534 | AE131: 99840
P132: 0.129 | Q132: 543641.6851 | R132: 700000 | S132: 46800 | T132: 0.129 | U132: 543641.6851 | V132: 700000 | W132: 46800 | X132: 0.129 | Y132: 564621.6803 | Z132: 662760.6148 | AA132: 100620 | AB132: 0.129 | AC132: 564621.6803 | AD132: 662760.6148 | AE132: 100620
P133: 0.13 | Q133: 543641.6851 | R133: 700000 | S133: 46800 | T133: 0.13 | U133: 543641.6851 | V133: 700000 | W133: 46800 | X133: 0.13 | Y133: 565221.9988 | Z133: 661999.6956 | AA133: 101400 | AB133: 0.13 | AC133: 565221.9988 | AD133: 661999.6956 | AE133: 101400
P134: 0.131 | Q134: 543641.6851 | R134: 700000 | S134: 46800 | T134: 0.131 | U134: 543641.6851 | V134: 700000 | W134: 46800 | X134: 0.131 | Y134: 565297.5408 | Z134: 661238.7764 | AA134: 102180 | AB134: 0.131 | AC134: 565297.5408 | AD134: 661238.7764 | AE134: 102180
P135: 0.132 | Q135: 543641.6851 | R135: 700000 | S135: 46800 | T135: 0.132 | U135: 543641.6851 | V135: 700000 | W135: 46800 | X135: 0.132 | Y135: 565373.0828 | Z135: 660477.8573 | AA135: 102960 | AB135: 0.132 | AC135: 565373.0828 | AD135: 660477.8573 | AE135: 102960
P136: 0.133 | Q136: 543641.6851 | R136: 700000 | S136: 46800 | T136: 0.133 | U136: 543641.6851 | V136: 700000 | W136: 46800 | X136: 0.133 | Y136: 565974.7903 | Z136: 659716.9381 | AA136: 103740 | AB136: 0.133 | AC136: 565974.7903 | AD136: 659716.9381 | AE136: 103740
P137: 0.134 | Q137: 543641.6851 | R137: 700000 | S137: 46800 | T137: 0.134 | U137: 543641.6851 | V137: 700000 | W137: 46800 | X137: 0.134 | AB137: 0.134 | AC137: 566049.7254 | AD137: 658956.0189 | AE137: 104520
P138: 0.135 | Q138: 543641.6851 | R138: 700000 | S138: 46800 | T138: 0.135 | U138: 543641.6851 | V138: 700000 | W138: 46800 | X138: 0.135 | AB138: 0.135 | AC138: 566124.6605 | AD138: 658195.0997 | AE138: 105300
P139: 0.136 | Q139: 543641.6851 | R139: 700000 | S139: 46800 | T139: 0.136 | U139: 543641.6851 | V139: 700000 | W139: 46800 | X139: 0.136 | AB139: 0.136 | AC139: 566727.7679 | AD139: 657434.1805 | AE139: 106080
P140: 0.137 | Q140: 543641.6851 | R140: 700000 | S140: 46800 | T140: 0.137 | U140: 543641.6851 | V140: 700000 | W140: 46800 | X140: 0.137 | AB140: 0.137 | AC140: 566802.0917 | AD140: 656673.2613 | AE140: 106860
P141: 0.138 | Q141: 543641.6851 | R141: 700000 | S141: 46800 | T141: 0.138 | U141: 543641.6851 | V141: 700000 | W141: 46800 | X141: 0.138 | AB141: 0.138 | AC141: 566876.4155 | AD141: 655912.3421 | AE141: 107640
P142: 0.139 | Q142: 543641.6851 | R142: 700000 | S142: 46800 | T142: 0.139 | U142: 543641.6851 | V142: 700000 | W142: 46800 | X142: 0.139 | AB142: 0.139 | AC142: 567480.9336 | AD142: 655151.4229 | AE142: 108420
P143: 0.14 | Q143: 543641.6851 | R143: 700000 | S143: 46800 | T143: 0.14 | U143: 543641.6851 | V143: 700000 | W143: 46800 | X143: 0.14 | AB143: 0.14 | AC143: 567554.6416 | AD143: 654390.5037 | AE143: 109200
P144: 0.141 | Q144: 543641.6851 | R144: 700000 | S144: 46800 | T144: 0.141 | U144: 543641.6851 | V144: 700000 | W144: 46800 | X144: 0.141 | AB144: 0.141 | AC144: 567628.3496 | AD144: 653629.5845 | AE144: 109980
P145: 0.142 | Q145: 543641.6851 | R145: 700000 | S145: 46800 | T145: 0.142 | U145: 543641.6851 | V145: 700000 | W145: 46800 | X145: 0.142 | AB145: 0.142 | AC145: 567702.0576 | AD145: 652868.6653 | AE145: 110760
P146: 0.143 | Q146: 543641.6851 | R146: 700000 | S146: 46800 | T146: 0.143 | U146: 543641.6851 | V146: 700000 | W146: 46800 | X146: 0.143 | AB146: 0.143 | AC146: 568307.3771 | AD146: 652107.7462 | AE146: 111540
P147: 0.144 | Q147: 543641.6851 | R147: 700000 | S147: 46800 | T147: 0.144 | U147: 543641.6851 | V147: 700000 | W147: 46800 | X147: 0.144 | AB147: 0.144 | AC147: 568380.4648 | AD147: 651346.827 | AE147: 112320
P148: 0.145 | Q148: 543641.6851 | R148: 700000 | S148: 46800 | T148: 0.145 | U148: 543641.6851 | V148: 700000 | W148: 46800 | X148: 0.145 | AB148: 0.145 | AC148: 568453.5525 | AD148: 650585.9078 | AE148: 113100
P149: 0.146 | Q149: 543641.6851 | R149: 700000 | S149: 46800 | T149: 0.146 | U149: 543641.6851 | V149: 700000 | W149: 46800 | X149: 0.146 | AB149: 0.146 | AC149: 569060.3003 | AD149: 649824.9886 | AE149: 113880
P150: 0.147 | Q150: 543641.6851 | R150: 700000 | S150: 46800 | T150: 0.147 | U150: 543641.6851 | V150: 700000 | W150: 46800 | X150: 0.147 | AB150: 0.147 | AC150: 569132.7631 | AD150: 649064.0694 | AE150: 114660
P151: 0.148 | Q151: 543641.6851 | R151: 700000 | S151: 46800 | T151: 0.148 | U151: 543641.6851 | V151: 700000 | W151: 46800 | X151: 0.148 | AB151: 0.148 | AC151: 569205.2259 | AD151: 648303.1502 | AE151: 115440
P152: 0.149 | Q152: 543641.6851 | R152: 700000 | S152: 46800 | T152: 0.149 | U152: 543641.6851 | V152: 700000 | W152: 46800 | X152: 0.149 | AB152: 0.149 | AC152: 569813.4133 | AD152: 647542.231 | AE152: 116220
P153: 0.15 | Q153: 543641.6851 | R153: 700000 | S153: 46800 | T153: 0.15 | U153: 543641.6851 | V153: 700000 | W153: 46800 | X153: 0.15 | AB153: 0.15 | AC153: 569885.2466 | AD153: 646781.3118 | AE153: 117000
P154: 0.151 | Q154: 543641.6851 | R154: 700000 | S154: 46800 | T154: 0.151 | U154: 543641.6851 | V154: 700000 | W154: 46800 | X154: 0.151 | AB154: 0.151 | AC154: 569957.0799 | AD154: 646020.3926 | AE154: 117780
P155: 0.152 | Q155: 543641.6851 | R155: 700000 | S155: 46800 | T155: 0.152 | U155: 543641.6851 | V155: 700000 | W155: 46800 | X155: 0.152 | AB155: 0.152 | AC155: 570566.7183 | AD155: 645259.4734 | AE155: 118560
P156: 0.153 | Q156: 543641.6851 | R156: 700000 | S156: 46800 | T156: 0.153 | U156: 543641.6851 | V156: 700000 | W156: 46800 | X156: 0.153 | AB156: 0.153 | AC156: 570637.9173 | AD156: 644498.5543 | AE156: 119340
P157: 0.154 | Q157: 543641.6851 | R157: 700000 | S157: 46800 | T157: 0.154 | U157: 543641.6851 | V157: 700000 | W157: 46800 | X157: 0.154 | AB157: 0.154 | AC157: 570709.1164 | AD157: 643737.6351 | AE157: 120120
P158: 0.155 | Q158: 543641.6851 | R158: 700000 | S158: 46800 | T158: 0.155 | U158: 543641.6851 | V158: 700000 | W158: 46800 | X158: 0.155 | AB158: 0.155 | AC158: 571320.2172 | AD158: 642976.7159 | AE158: 120900
P159: 0.156 | Q159: 543641.6851 | R159: 700000 | S159: 46800 | T159: 0.156 | U159: 543641.6851 | V159: 700000 | W159: 46800 | X159: 0.156 | AB159: 0.156 | AC159: 571390.7774 | AD159: 642215.7967 | AE159: 121680
P160: 0.157 | Q160: 543641.6851 | R160: 700000 | S160: 46800 | T160: 0.157 | U160: 543641.6851 | V160: 700000 | W160: 46800 | X160: 0.157 | AB160: 0.157 | AC160: 571461.3375 | AD160: 641454.8775 | AE160: 122460
P161: 0.158 | Q161: 543641.6851 | R161: 700000 | S161: 46800 | T161: 0.158 | U161: 543641.6851 | V161: 700000 | W161: 46800 | X161: 0.158 | AB161: 0.158 | AC161: 572073.9124 | AD161: 640693.9583 | AE161: 123240
P162: 0.159 | Q162: 543641.6851 | R162: 700000 | S162: 46800 | T162: 0.159 | U162: 543641.6851 | V162: 700000 | W162: 46800 | X162: 0.159 | AB162: 0.159 | AC162: 572143.8288 | AD162: 639933.0391 | AE162: 124020
P163: 0.16 | Q163: 543641.6851 | R163: 700000 | S163: 46800 | T163: 0.16 | U163: 543641.6851 | V163: 700000 | W163: 46800 | X163: 0.16 | AB163: 0.16 | AC163: 572213.7452 | AD163: 639172.1199 | AE163: 124800
P164: 0.161 | Q164: 543641.6851 | R164: 700000 | S164: 46800 | T164: 0.161 | U164: 543641.6851 | V164: 700000 | W164: 46800 | X164: 0.161 | AB164: 0.161 | AC164: 572283.6616 | AD164: 638411.2007 | AE164: 125580
P165: 0.162 | Q165: 543641.6851 | R165: 700000 | S165: 46800 | T165: 0.162 | U165: 543641.6851 | V165: 700000 | W165: 46800 | X165: 0.162 | AB165: 0.162 | AC165: 572897.0739 | AD165: 637650.2815 | AE165: 126360
P166: 0.163 | Q166: 543641.6851 | R166: 700000 | S166: 46800 | T166: 0.163 | U166: 543641.6851 | V166: 700000 | W166: 46800 | X166: 0.163 | AB166: 0.163 | AC166: 572966.3417 | AD166: 636889.3623 | AE166: 127140
P167: 0.164 | Q167: 543641.6851 | R167: 700000 | S167: 46800 | T167: 0.164 | U167: 543641.6851 | V167: 700000 | W167: 46800 | X167: 0.164 | AB167: 0.164 | AC167: 573035.6096 | AD167: 636128.4432 | AE167: 127920
P168: 0.165 | Q168: 543641.6851 | R168: 700000 | S168: 46800 | T168: 0.165 | U168: 543641.6851 | V168: 700000 | W168: 46800 | X168: 0.165 | AB168: 0.165 | AC168: 573650.5147 | AD168: 635367.524 | AE168: 128700
P169: 0.166 | Q169: 543641.6851 | R169: 700000 | S169: 46800 | T169: 0.166 | U169: 543641.6851 | V169: 700000 | W169: 46800 | X169: 0.166 | AB169: 0.166 | AC169: 573719.1291 | AD169: 634606.6048 | AE169: 129480
P170: 0.167 | Q170: 543641.6851 | R170: 700000 | S170: 46800 | T170: 0.167 | U170: 543641.6851 | V170: 700000 | W170: 46800 | X170: 0.167 | AB170: 0.167 | AC170: 573787.7435 | AD170: 633845.6856 | AE170: 130260
P171: 0.168 | Q171: 543641.6851 | R171: 700000 | S171: 46800 | T171: 0.168 | U171: 543641.6851 | V171: 700000 | W171: 46800 | X171: 0.168 | AB171: 0.168 | AC171: 574404.1536 | AD171: 633084.7664 | AE171: 131040
P172: 0.169 | Q172: 543641.6851 | R172: 700000 | S172: 46800 | T172: 0.169 | U172: 543641.6851 | V172: 700000 | W172: 46800 | X172: 0.169 | AB172: 0.169 | AC172: 574472.1096 | AD172: 632323.8472 | AE172: 131820
P173: 0.17 | Q173: 543641.6851 | R173: 700000 | S173: 46800 | T173: 0.17 | U173: 543641.6851 | V173: 700000 | W173: 46800 | X173: 0.17 | AB173: 0.17 | AC173: 574540.0656 | AD173: 631562.928 | AE173: 132600
P174: 0.171 | Q174: 543641.6851 | R174: 700000 | S174: 46800 | T174: 0.171 | U174: 543641.6851 | V174: 700000 | W174: 46800 | X174: 0.171 | AB174: 0.171 | AC174: 575157.9928 | AD174: 630802.0088 | AE174: 133380
P175: 0.172 | Q175: 543641.6851 | R175: 700000 | S175: 46800 | T175: 0.172 | U175: 543641.6851 | V175: 700000 | W175: 46800 | X175: 0.172 | AB175: 0.172 | AC175: 575225.2853 | AD175: 630041.0896 | AE175: 134160
P176: 0.173 | Q176: 543641.6851 | R176: 700000 | S176: 46800 | T176: 0.173 | U176: 543641.6851 | V176: 700000 | W176: 46800 | X176: 0.173 | AB176: 0.173 | AC176: 575292.5779 | AD176: 629280.1704 | AE176: 134940
P177: 0.174 | Q177: 543641.6851 | R177: 700000 | S177: 46800 | T177: 0.174 | U177: 543641.6851 | V177: 700000 | W177: 46800 | X177: 0.174 | AB177: 0.174 | AC177: 575912.0345 | AD177: 628519.2513 | AE177: 135720
P178: 0.175 | Q178: 543641.6851 | R178: 700000 | S178: 46800 | T178: 0.175 | U178: 543641.6851 | V178: 700000 | W178: 46800 | X178: 0.175 | AB178: 0.175 | AC178: 575978.6586 | AD178: 627758.3321 | AE178: 136500
P179: 0.176 | Q179: 543641.6851 | R179: 700000 | S179: 46800 | T179: 0.176 | U179: 543641.6851 | V179: 700000 | W179: 46800 | X179: 0.176 | AB179: 0.176 | AC179: 576045.2827 | AD179: 626997.4129 | AE179: 137280
P180: 0.177 | Q180: 543641.6851 | R180: 700000 | S180: 46800 | T180: 0.177 | U180: 543641.6851 | V180: 700000 | W180: 46800 | X180: 0.177 | AB180: 0.177 | AC180: 576666.2811 | AD180: 626236.4937 | AE180: 138060
P181: 0.178 | Q181: 543641.6851 | R181: 700000 | S181: 46800 | T181: 0.178 | U181: 543641.6851 | V181: 700000 | W181: 46800 | X181: 0.178 | AB181: 0.178 | AC181: 576732.2316 | AD181: 625475.5745 | AE181: 138840
P182: 0.179 | Q182: 543641.6851 | R182: 700000 | S182: 46800 | T182: 0.179 | U182: 543641.6851 | V182: 700000 | W182: 46800 | X182: 0.179 | AB182: 0.179 | AC182: 576798.1821 | AD182: 624714.6553 | AE182: 139620
P183: 0.18 | Q183: 543641.6851 | R183: 700000 | S183: 46800 | T183: 0.18 | U183: 543641.6851 | V183: 700000 | W183: 46800 | X183: 0.18 | AB183: 0.18 | AC183: 577420.735 | AD183: 623953.7361 | AE183: 140400
P184: 0.181 | Q184: 543641.6851 | R184: 700000 | S184: 46800 | T184: 0.181 | U184: 543641.6851 | V184: 700000 | W184: 46800 | X184: 0.181 | AB184: 0.181 | AC184: 577486.0067 | AD184: 623192.8169 | AE184: 141180
P185: 0.182 | Q185: 543641.6851 | R185: 700000 | S185: 46800 | T185: 0.182 | U185: 543641.6851 | V185: 700000 | W185: 46800 | X185: 0.182 | AB185: 0.182 | AC185: 577551.2784 | AD185: 622431.8977 | AE185: 141960
P186: 0.183 | Q186: 543641.6851 | R186: 700000 | S186: 46800 | T186: 0.183 | U186: 543641.6851 | V186: 700000 | W186: 46800 | X186: 0.183 | AB186: 0.183 | AC186: 577616.5501 | AD186: 621670.9785 | AE186: 142740
P187: 0.184 | Q187: 543641.6851 | R187: 700000 | S187: 46800 | T187: 0.184 | U187: 543641.6851 | V187: 700000 | W187: 46800 | X187: 0.184 | AB187: 0.184 | AC187: 578239.9862 | AD187: 620910.0594 | AE187: 143520
P188: 0.185 | Q188: 543641.6851 | R188: 700000 | S188: 46800 | T188: 0.185 | U188: 543641.6851 | V188: 700000 | W188: 46800 | X188: 0.185 | AB188: 0.185 | AC188: 578304.5739 | AD188: 620149.1402 | AE188: 144300
P189: 0.186 | Q189: 543641.6851 | R189: 700000 | S189: 46800 | T189: 0.186 | U189: 543641.6851 | V189: 700000 | W189: 46800 | X189: 0.186 | AB189: 0.186 | AC189: 578369.1616 | AD189: 619388.221 | AE189: 145080
P190: 0.187 | Q190: 543641.6851 | R190: 700000 | S190: 46800 | T190: 0.187 | U190: 543641.6851 | V190: 700000 | W190: 46800 | X190: 0.187 | AB190: 0.187 | AC190: 578994.1725 | AD190: 618627.3018 | AE190: 145860
P191: 0.188 | Q191: 543641.6851 | R191: 700000 | S191: 46800 | T191: 0.188 | U191: 543641.6851 | V191: 700000 | W191: 46800 | X191: 0.188 | AB191: 0.188 | AC191: 579058.0709 | AD191: 617866.3826 | AE191: 146640
P192: 0.189 | Q192: 543641.6851 | R192: 700000 | S192: 46800 | T192: 0.189 | U192: 543641.6851 | V192: 700000 | W192: 46800 | X192: 0.189 | AB192: 0.189 | AC192: 579121.9692 | AD192: 617105.4634 | AE192: 147420
P193: 0.19 | Q193: 543641.6851 | R193: 700000 | S193: 46800 | T193: 0.19 | U193: 543641.6851 | V193: 700000 | W193: 46800 | X193: 0.19 | AB193: 0.19 | AC193: 579748.568 | AD193: 616344.5442 | AE193: 148200
P194: 0.191 | Q194: 543641.6851 | R194: 700000 | S194: 46800 | T194: 0.191 | U194: 543641.6851 | V194: 700000 | W194: 46800 | X194: 0.191 | AB194: 0.191 | AC194: 579811.7717 | AD194: 615583.625 | AE194: 148980
P195: 0.192 | Q195: 543641.6851 | R195: 700000 | S195: 46800 | T195: 0.192 | U195: 543641.6851 | V195: 700000 | W195: 46800 | X195: 0.192 | AB195: 0.192 | AC195: 579874.9754 | AD195: 614822.7058 | AE195: 149760
P196: 0.193 | Q196: 543641.6851 | R196: 700000 | S196: 46800 | T196: 0.193 | U196: 543641.6851 | V196: 700000 | W196: 46800 | X196: 0.193 | AB196: 0.193 | AC196: 580443.2083 | AD196: 614061.7866 | AE196: 150540
P197: 0.194 | Q197: 543641.6851 | R197: 700000 | S197: 46800 | T197: 0.194 | U197: 543641.6851 | V197: 700000 | W197: 46800 | X197: 0.194 | AB197: 0.194 | AC197: 580505.7861 | AD197: 613300.8674 | AE197: 151320
P198: 0.195 | Q198: 543641.6851 | R198: 700000 | S198: 46800 | T198: 0.195 | U198: 543641.6851 | V198: 700000 | W198: 46800 | X198: 0.195 | AB198: 0.195 | AC198: 580568.364 | AD198: 612539.9483 | AE198: 152100
P199: 0.196 | Q199: 543641.6851 | R199: 700000 | S199: 46800 | T199: 0.196 | U199: 543641.6851 | V199: 700000 | W199: 46800 | X199: 0.196 | AB199: 0.196 | AC199: 581078.0616 | AD199: 611779.0291 | AE199: 152880
P200: 0.197 | Q200: 543641.6851 | R200: 700000 | S200: 46800 | T200: 0.197 | U200: 543641.6851 | V200: 700000 | W200: 46800 | X200: 0.197 | AB200: 0.197 | AC200: 581140.0833 | AD200: 611018.1099 | AE200: 153660
... 803 more rows

Sheet Unlock (hidden)

Sheet Admin (hidden)
P1: UnLockedColor | Q1: Password | S1: Version
E2: Inkomst | F2: Skattesats | G2: InkomstÅr | H2: Procentsats | J2: Kommun | K2: Skattesats | L2: Kommunal | M2: Landsting | N2: PCT | Q2: LukasCarl | S2: Locked
B3: Arbetsgivaravgift | C3: 0.3142 | E3: 1500 | F3: 0 | G3: 18000 | H3: 0 | J3: Ale | K3: 33.35 | L3: 21.87 | M3: 11.48 | N3: =(-30+K3)*0.01 -> 0.0335
B4: Bolagsskatt | C4: 0.22 | E4: 1600 | F4: 108 | G4: 19200 | H4: 0.0675 | J4: Alingsås | K4: 32.84 | L4: 21.36 | M4: 11.48 | N4: =(-30+K4)*0.01 -> 0.0284
B5: Skatt på utdelning | C5: 0.2 | E5: 1700 | F5: 118 | G5: 20400 | H5: 0.06941176471 | J5: Älmhult | K5: 32.56 | L5: 20.96 | M5: 11.6 | N5: 0.0256
B6: Gräns Statlig skatt | C6: 36500 | E6: 1800 | F6: 127 | G6: 21600 | H6: 0.07055555556 | J6: Älvdalen | K6: 33.95 | L6: 22.79 | M6: 11.16 | N6: 0.0395
B7: Statlig skatt PCT | C7: 0.2 | E7: 1900 | F7: 137 | G7: 22800 | H7: 0.07210526316 | J7: Alvesta | K7: 33.02 | L7: 21.42 | M7: 11.6 | N7: 0.0302 | P7: Kommentar
B8: Förenklingregel gräns | C8: =2.75*C10 -> 169125 | E8: 2000 | F8: 146 | G8: 24000 | H8: 0.073 | J8: Älvkarleby | K8: 34.4 | L8: 22.69 | M8: 11.71 | N8: 0.044
B9: Omkostnads_PCT | C9: 0.0927 | E9: 2100 | F9: 156 | G9: 25200 | H9: 0.07428571429 | J9: Älvsbyn | K9: 33.79 | L9: 22.45 | M9: 11.34 | N9: 0.0379
B10: inkomstbasbelopp 2017 | C10: 61500 | D10: 61500 | E10: 2200 | F10: 157 | G10: 26400 | H10: 0.07136363636 | J10: Åmål | K10: 33.94 | L10: 22.46 | M10: 11.48 | N10: 0.0394
B11: inkomstbasbelopp 2016 | C11: 59300 | D11: 59300 | E11: 2300 | F11: 167 | G11: 27600 | H11: 0.07260869565 | J11: Aneby | K11: 33.35 | L11: 22.09 | M11: 11.26 | N11: 0.0335
B12: Inflation | C12: 0.015 | E12: 2400 | F12: 176 | G12: 28800 | H12: 0.07333333333 | J12: Ånge | K12: 34.62 | L12: 23.33 | M12: 11.29 | N12: 0.0462
B13: Inkomstbasbelopp 2015 | C13: 58100 | E13: 2500 | F13: 186 | G13: 30000 | H13: 0.0744 | J13: Ängelholm | K13: 30.48 | L13: 19.79 | M13: 10.69 | N13: 0.0048
B14: VärnskattGräns | C14: =625000/12 -> 52083.33333 | E14: 2600 | F14: 195 | G14: 31200 | H14: 0.075 | J14: Arboga | K14: 33.39 | L14: 22.51 | M14: 10.88 | N14: 0.0339
B15: Värnskatt_PCT | C15: 0.05 | E15: 2700 | F15: 205 | G15: 32400 | H15: 0.07592592593 | J15: Åre | K15: 33.42 | L15: 22.22 | M15: 11.2 | N15: 0.0342
B16: Uppräkningsfaktor Sparat Utrymme | C16: 1.0327 | E16: 2800 | F16: 214 | G16: 33600 | H16: 0.07642857143 | J16: Årjäng | K16: 33.65 | L16: 22.45 | M16: 11.2 | N16: 0.0365
B17: Uppräkningsfaktor Sparat Utrymme nya förslaget | C17: 1.027 | E17: 2900 | F17: 216 | G17: 34800 | H17: 0.07448275862 | J17: Arjeplog | K17: 34.84 | L17: 23.5 | M17: 11.34 | N17: 0.0484
B18: 50% > 60 IBB | E18: 3000 | F18: 225 | G18: 36000 | H18: 0.075 | J18: Arvidsjaur | K18: 34.14 | L18: 22.8 | M18: 11.34 | N18: 0.0414
B19: 25% > 8 IBB | E19: 3100 | F19: 235 | G19: 37200 | H19: 0.07580645161 | J19: Arvika | K19: 32.1 | L19: 20.9 | M19: 11.2 | N19: 0.021
B20: 10% < 8 IBB | E20: 3200 | F20: 244 | G20: 38400 | H20: 0.07625 | J20: Åsele | K20: 33.95 | L20: 23.15 | M20: 10.8 | N20: 0.0395
B21: Skatt på utdelning över 90 IBB | C21: 0.3 | E21: 3300 | F21: 254 | G21: 39600 | H21: 0.07696969697 | J21: Askersund | K21: 33.5 | L21: 21.95 | M21: 11.55 | N21: 0.035
B22: 60 IBB | C22: =C10*60 -> 3690000 | D22: 0.4 | E22: 3400 | F22: 263 | G22: 40800 | H22: 0.07735294118 | J22: Åstorp | K22: 30.98 | L22: 20.29 | M22: 10.69 | N22: 0.0098
B23: 54 IBB | C23: =C10*54 -> 3321000 | D23: 0.3 | E23: 3500 | F23: 264 | G23: 42000 | H23: 0.07542857143 | J23: Åtvidaberg | K23: 32.65 | L23: 21.95 | M23: 10.7 | N23: 0.0265
B24: 6 IBB | C24: =C10*6 -> 369000 | D24: 0.15 | E24: 3600 | F24: 274 | G24: 43200 | H24: 0.07611111111 | J24: Avesta | K24: 33.6 | L24: 22.44 | M24: 11.16 | N24: 0.036
E25: 3700 | F25: 283 | G25: 44400 | H25: 0.07648648649 | J25: Båstad | K25: 30.92 | L25: 20.23 | M25: 10.69 | N25: 0.0092
B26: LönekravProcent | C26: 0.05 | E26: 3800 | F26: 293 | G26: 45600 | H26: 0.07710526316 | J26: Bengtsfors | K26: 34.4 | L26: 22.92 | M26: 11.48 | N26: 0.044
B27: Skatt på utdelning | C27: 0.25 | E27: 3900 | F27: 302 | G27: 46800 | H27: 0.07743589744 | J27: Berg | K27: 33.72 | L27: 22.52 | M27: 11.2 | N27: 0.0372
B28: Förenklingregel gräns | C28: =2.75*C10 -> 169125 | E28: 4000 | F28: 311 | G28: 48000 | H28: 0.07775 | J28: Bjurholm | K28: 33.95 | L28: 23.15 | M28: 10.8 | N28: 0.0395
E29: 4100 | F29: 312 | G29: 49200 | H29: 0.07609756098 | J29: Bjuv | K29: 31.58 | L29: 20.89 | M29: 10.69 | N29: 0.0158
E30: 4200 | F30: 322 | G30: 50400 | H30: 0.07666666667 | J30: Blekinge län | K30: 33.38 | L30: 22.19 | M30: 11.19 | N30: 0.0338
E31: 4300 | F31: 331 | G31: 51600 | H31: 0.07697674419 | J31: Boden | K31: 33.94 | L31: 22.6 | M31: 11.34 | N31: 0.0394
E32: 4400 | F32: 340 | G32: 52800 | H32: 0.07727272727 | J32: Bollebygd | K32: 33.07 | L32: 21.59 | M32: 11.48 | N32: 0.0307
E33: 4500 | F33: 349 | G33: 54000 | H33: 0.07755555556 | J33: Bollnäs | K33: 33.37 | L33: 21.86 | M33: 11.51 | N33: 0.0337
E34: 4600 | F34: 359 | G34: 55200 | H34: 0.07804347826 | J34: Borås | K34: 32.79 | L34: 21.31 | M34: 11.48 | N34: 0.0279
E35: 4700 | F35: 360 | G35: 56400 | H35: 0.07659574468 | J35: Borgholm | K35: 32.95 | L35: 21.58 | M35: 11.37 | N35: 0.0295
E36: 4800 | F36: 369 | G36: 57600 | H36: 0.076875 | J36: Borlänge | K36: 34.05 | L36: 22.89 | M36: 11.16 | N36: 0.0405
E37: 4900 | F37: 378 | G37: 58800 | H37: 0.07714285714 | J37: Botkyrka | K37: 32.23 | L37: 20.15 | M37: 12.08 | N37: 0.0223
E38: 5000 | F38: 388 | G38: 60000 | H38: 0.0776 | J38: Boxholm | K38: 32.52 | L38: 21.82 | M38: 10.7 | N38: 0.0252
E39: 5100 | F39: 397 | G39: 61200 | H39: 0.07784313725 | J39: Bräcke | K39: 34.59 | L39: 23.39 | M39: 11.2 | N39: 0.0459
E40: 5200 | F40: 406 | G40: 62400 | H40: 0.07807692308 | J40: Bromölla | K40: 32.45 | L40: 21.76 | M40: 10.69 | N40: 0.0245
E41: 5300 | F41: 415 | G41: 63600 | H41: 0.07830188679 | J41: Burlöv | K41: 30.78 | L41: 20.09 | M41: 10.69 | N41: 0.0078
E42: 5400 | F42: 432 | G42: 64800 | H42: 0.08 | J42: Dalarnas län | K42: 33.82 | L42: 22.66 | M42: 11.16 | N42: 0.0382
E43: 5500 | F43: 453 | G43: 66000 | H43: 0.08236363636 | J43: Dals-Ed | K43: 34.69 | L43: 23.21 | M43: 11.48 | N43: 0.0469
E44: 5600 | F44: 473 | G44: 67200 | H44: 0.08446428571 | J44: Danderyd | K44: 29.43 | L44: 17.35 | M44: 12.08 | N44: -0.0057
E45: 5700 | F45: 493 | G45: 68400 | H45: 0.08649122807 | J45: Degerfors | K45: 33.85 | L45: 22.3 | M45: 11.55 | N45: 0.0385
E46: 5800 | F46: 513 | G46: 69600 | H46: 0.08844827586 | J46: Dorotea | K46: 34.75 | L46: 23.95 | M46: 10.8 | N46: 0.0475
E47: 5900 | F47: 533 | G47: 70800 | H47: 0.09033898305 | J47: Eda | K47: 33.45 | L47: 22.25 | M47: 11.2 | N47: 0.0345
E48: 6000 | F48: 554 | G48: 72000 | H48: 0.09233333333 | J48: Ekerö | K48: 31.33 | L48: 19.25 | M48: 12.08 | N48: 0.0133
E49: 6100 | F49: 574 | G49: 73200 | H49: 0.09409836066 | J49: Eksjö | K49: 33.52 | L49: 22.26 | M49: 11.26 | N49: 0.0352
E50: 6200 | F50: 594 | G50: 74400 | H50: 0.09580645161 | J50: Emmaboda | K50: 33.08 | L50: 21.71 | M50: 11.37 | N50: 0.0308
E51: 6300 | F51: 614 | G51: 75600 | H51: 0.09746031746 | J51: Enköping | K51: 33.05 | L51: 21.34 | M51: 11.71 | N51: 0.0305
E52: 6400 | F52: 634 | G52: 76800 | H52: 0.0990625 | J52: Eskilstuna | K52: 32.85 | L52: 22.08 | M52: 10.77 | N52: 0.0285
E53: 6500 | F53: 655 | G53: 78000 | H53: 0.1007692308 | J53: Eslöv | K53: 30.93 | L53: 20.24 | M53: 10.69 | N53: 0.0093
E54: 6600 | F54: 675 | G54: 79200 | H54: 0.1022727273 | J54: Essunga | K54: 33.05 | L54: 21.57 | M54: 11.48 | N54: 0.0305
E55: 6700 | F55: 695 | G55: 80400 | H55: 0.1037313433 | J55: Fagersta | K55: 32.99 | L55: 22.11 | M55: 10.88 | N55: 0.0299
E56: 6800 | F56: 715 | G56: 81600 | H56: 0.1051470588 | J56: Falkenberg | K56: 31.92 | L56: 21.1 | M56: 10.82 | N56: 0.0192
E57: 6900 | F57: 735 | G57: 82800 | H57: 0.1065217391 | J57: Falköping | K57: 33.08 | L57: 21.6 | M57: 11.48 | N57: 0.0308
E58: 7000 | F58: 756 | G58: 84000 | H58: 0.108 | J58: Falun | K58: 33.7 | L58: 22.54 | M58: 11.16 | N58: 0.037
E59: 7100 | F59: 776 | G59: 85200 | H59: 0.1092957746 | J59: Färgelanda | K59: 33.74 | L59: 22.26 | M59: 11.48 | N59: 0.0374
E60: 7200 | F60: 796 | G60: 86400 | H60: 0.1105555556 | J60: Filipstad | K60: 33.2 | L60: 22 | M60: 11.2 | N60: 0.032
E61: 7300 | F61: 816 | G61: 87600 | H61: 0.1117808219 | J61: Finspång | K61: 32.85 | L61: 22.15 | M61: 10.7 | N61: 0.0285
E62: 7400 | F62: 836 | G62: 88800 | H62: 0.112972973 | J62: Flen | K62: 33.1 | L62: 22.33 | M62: 10.77 | N62: 0.031
E63: 7500 | F63: 857 | G63: 90000 | H63: 0.1142666667 | J63: Forshaga | K63: 33.55 | L63: 22.35 | M63: 11.2 | N63: 0.0355
E64: 7600 | F64: 877 | G64: 91200 | H64: 0.1153947368 | J64: Gagnef | K64: 33.88 | L64: 22.72 | M64: 11.16 | N64: 0.0388
E65: 7700 | F65: 897 | G65: 92400 | H65: 0.1164935065 | J65: Gällivare | K65: 33.89 | L65: 22.55 | M65: 11.34 | N65: 0.0389
E66: 7800 | F66: 917 | G66: 93600 | H66: 0.1175641026 | J66: Gävle | K66: 33.77 | L66: 22.26 | M66: 11.51 | N66: 0.0377
E67: 7900 | F67: 937 | G67: 94800 | H67: 0.1186075949 | J67: Gävleborgs län | K67: 33.54 | L67: 22.03 | M67: 11.51 | N67: 0.0354
E68: 8000 | F68: 958 | G68: 96000 | H68: 0.11975 | J68: Gislaved | K68: 33.39 | L68: 22.13 | M68: 11.26 | N68: =(-30+K68)*0.01 -> 0.0339
E69: 8100 | F69: 978 | G69: 97200 | H69: 0.1207407407 | J69: Gnesta | K69: 32.95 | L69: 22.18 | M69: 10.77 | N69: 0.0295
E70: 8200 | F70: 998 | G70: 98400 | H70: 0.1217073171 | J70: Gnosjö | K70: 33.5 | L70: 22.24 | M70: 11.26 | N70: 0.035
E71: 8300 | F71: 1018 | G71: 99600 | H71: 0.1226506024 | J71: Göteborg | K71: 32.6 | L71: 21.12 | M71: 11.48 | N71: 0.026
E72: 8400 | F72: 1038 | G72: 100800 | H72: 0.1235714286 | J72: Götene | K72: 33.25 | L72: 21.77 | M72: 11.48 | N72: 0.0325
E73: 8500 | F73: 1059 | G73: 102000 | H73: 0.1245882353 | J73: Gotland | K73: 33.6 | L73: 33.6 | M73: 0 | N73: 0.036
E74: 8600 | F74: 1079 | G74: 103200 | H74: 0.1254651163 | J74: Gotlands län | K74: 33.6 | L74: 33.6 | M74: 0 | N74: 0.036
E75: 8700 | F75: 1099 | G75: 104400 | H75: 0.1263218391 | J75: Grästorp | K75: 33.05 | L75: 21.57 | M75: 11.48 | N75: 0.0305
E76: 8800 | F76: 1119 | G76: 105600 | H76: 0.1271590909 | J76: Grums | K76: 33.7 | L76: 22.5 | M76: 11.2 | N76: 0.037
E77: 8900 | F77: 1139 | G77: 106800 | H77: 0.1279775281 | J77: Gullspång | K77: 33.97 | L77: 22.49 | M77: 11.48 | N77: 0.0397
E78: 9000 | F78: 1160 | G78: 108000 | H78: 0.1288888889 | J78: Habo | K78: 33.43 | L78: 22.17 | M78: 11.26 | N78: 0.0343
E79: 9100 | F79: 1180 | G79: 109200 | H79: 0.1296703297 | J79: Håbo | K79: 33.05 | L79: 21.34 | M79: 11.71 | N79: 0.0305
E80: 9200 | F80: 1200 | G80: 110400 | H80: 0.1304347826 | J80: Hagfors | K80: 33.7 | L80: 22.5 | M80: 11.2 | N80: 0.037
E81: 9300 | F81: 1220 | G81: 111600 | H81: 0.1311827957 | J81: Hallands län | K81: 31.62 | L81: 20.8 | M81: 10.82 | N81: 0.0162
E82: 9400 | F82: 1240 | G82: 112800 | H82: 0.1319148936 | J82: Hällefors | K82: 33.6 | L82: 22.05 | M82: 11.55 | N82: 0.036
E83: 9500 | F83: 1261 | G83: 114000 | H83: 0.1327368421 | J83: Hallsberg | K83: 33.1 | L83: 21.55 | M83: 11.55 | N83: 0.031
E84: 9600 | F84: 1281 | G84: 115200 | H84: 0.1334375 | J84: Hallstahammar | K84: 32.69 | L84: 21.81 | M84: 10.88 | N84: 0.0269
E85: 9700 | F85: 1301 | G85: 116400 | H85: 0.1341237113 | J85: Halmstad | K85: 31.25 | L85: 20.43 | M85: 10.82 | N85: 0.0125
E86: 9800 | F86: 1321 | G86: 117600 | H86: 0.1347959184 | J86: Hammarö | K86: 33.3 | L86: 22.1 | M86: 11.2 | N86: 0.033
E87: 9900 | F87: 1341 | G87: 118800 | H87: 0.1354545455 | J87: Haninge | K87: 31.76 | L87: 19.68 | M87: 12.08 | N87: 0.0176
E88: 10000 | F88: 1362 | G88: 120000 | H88: 0.1362 | J88: Haparanda | K88: 33.84 | L88: 22.5 | M88: 11.34 | N88: 0.0384
E89: 10100 | F89: 1382 | G89: 121200 | H89: 0.1368316832 | J89: Härjedalen | K89: 33.67 | L89: 22.47 | M89: 11.2 | N89: 0.0367
E90: 10200 | F90: 1402 | G90: 122400 | H90: 0.1374509804 | J90: Härnösand | K90: 34.63 | L90: 23.34 | M90: 11.29 | N90: 0.0463
E91: 10300 | F91: 1423 | G91: 123600 | H91: 0.1381553398 | J91: Härryda | K91: 32.1 | L91: 20.62 | M91: 11.48 | N91: 0.021
E92: 10400 | F92: 1443 | G92: 124800 | H92: 0.13875 | J92: Hässleholm | K92: 31.75 | L92: 21.06 | M92: 10.69 | N92: 0.0175
E93: 10500 | F93: 1464 | G93: 126000 | H93: 0.1394285714 | J93: Heby | K93: 34.21 | L93: 22.5 | M93: 11.71 | N93: 0.0421
E94: 10600 | F94: 1484 | G94: 127200 | H94: 0.14 | J94: Hedemora | K94: 33.8 | L94: 22.64 | M94: 11.16 | N94: 0.038
E95: 10700 | F95: 1505 | G95: 128400 | H95: 0.1406542056 | J95: Hela riket | K95: 32.1 | L95: 20.75 | M95: 11.35 | N95: 0.021
E96: 10800 | F96: 1525 | G96: 129600 | H96: 0.1412037037 | J96: Helsingborg | K96: 30.9 | L96: 20.21 | M96: 10.69 | N96: 0.009
E97: 10900 | F97: 1547 | G97: 130800 | H97: 0.1419266055 | J97: Herrljunga | K97: 33.42 | L97: 21.94 | M97: 11.48 | N97: 0.0342
E98: 11000 | F98: 1574 | G98: 132000 | H98: 0.1430909091 | J98: Hjo | K98: 33.05 | L98: 21.57 | M98: 11.48 | N98: 0.0305
E99: 11100 | F99: 1600 | G99: 133200 | H99: 0.1441441441 | J99: Hofors | K99: 34.37 | L99: 22.86 | M99: 11.51 | N99: 0.0437
E100: 11200 | F100: 1627 | G100: 134400 | H100: 0.1452678571 | J100: Höganäs | K100: 30.42 | L100: 19.73 | M100: 10.69 | N100: 0.0042
E101: 11300 | F101: 1654 | G101: 135600 | H101: 0.1463716814 | J101: Högsby | K101: 33.08 | L101: 21.71 | M101: 11.37 | N101: 0.0308
E102: 11400 | F102: 1681 | G102: 136800 | H102: 0.1474561404 | J102: Höör | K102: 31.62 | L102: 20.93 | M102: 10.69 | N102: 0.0162
E103: 11500 | F103: 1708 | G103: 138000 | H103: 0.1485217391 | J103: Hörby | K103: 31.77 | L103: 21.08 | M103: 10.69 | N103: 0.0177
E104: 11600 | F104: 1734 | G104: 139200 | H104: 0.1494827586 | J104: Huddinge | K104: 31.95 | L104: 19.87 | M104: 12.08 | N104: 0.0195
E105: 11700 | F105: 1761 | G105: 140400 | H105: 0.1505128205 | J105: Hudiksvall | K105: 33.12 | L105: 21.61 | M105: 11.51 | N105: 0.0312
E106: 11800 | F106: 1788 | G106: 141600 | H106: 0.1515254237 | J106: Hultsfred | K106: 33.28 | L106: 21.91 | M106: 11.37 | N106: 0.0328
E107: 11900 | F107: 1815 | G107: 142800 | H107: 0.1525210084 | J107: Hylte | K107: 32.27 | L107: 21.45 | M107: 10.82 | N107: 0.0227
E108: 12000 | F108: 1842 | G108: 144000 | H108: 0.1535 | J108: Jämtlands län | K108: 33.49 | L108: 22.29 | M108: 11.2 | N108: 0.0349
E109: 12100 | F109: 1869 | G109: 145200 | H109: 0.1544628099 | J109: Järfälla | K109: 31.23 | L109: 19.15 | M109: 12.08 | N109: 0.0123
E110: 12200 | F110: 1896 | G110: 146400 | H110: 0.1554098361 | J110: Jokkmokk | K110: 34.29 | L110: 22.95 | M110: 11.34 | N110: 0.0429
E111: 12300 | F111: 1923 | G111: 147600 | H111: 0.1563414634 | J111: Jönköping | K111: 32.6 | L111: 21.34 | M111: 11.26 | N111: 0.026
E112: 12400 | F112: 1950 | G112: 148800 | H112: 0.1572580645 | J112: Jönköpings län | K112: 32.9 | L112: 21.64 | M112: 11.26 | N112: 0.029
E113: 12500 | F113: 1977 | G113: 150000 | H113: 0.15816 | J113: Kalix | K113: 33.89 | L113: 22.55 | M113: 11.34 | N113: 0.0389
E114: 12600 | F114: 2004 | G114: 151200 | H114: 0.159047619 | J114: Kalmar | K114: 33.18 | L114: 21.81 | M114: 11.37 | N114: 0.0318
E115: 12700 | F115: 2031 | G115: 152400 | H115: 0.1599212598 | J115: Kalmars län | K115: 33.15 | L115: 21.78 | M115: 11.37 | N115: 0.0315
E116: 12800 | F116: 2058 | G116: 153600 | H116: 0.16078125 | J116: Karlsborg | K116: 32.8 | L116: 21.32 | M116: 11.48 | N116: 0.028
E117: 12900 | F117: 2084 | G117: 154800 | H117: 0.1615503876 | J117: Karlshamn | K117: 33.4 | L117: 22.21 | M117: 11.19 | N117: 0.034
E118: 13000 | F118: 2111 | G118: 156000 | H118: 0.1623846154 | J118: Karlskoga | K118: 33.55 | L118: 22 | M118: 11.55 | N118: 0.0355
E119: 13100 | F119: 2138 | G119: 157200 | H119: 0.1632061069 | J119: Karlskrona | K119: 33.29 | L119: 22.1 | M119: 11.19 | N119: 0.0329
E120: 13200 | F120: 2165 | G120: 158400 | H120: 0.1640151515 | J120: Karlstad | K120: 32.95 | L120: 21.75 | M120: 11.2 | N120: 0.0295
E121: 13300 | F121: 2192 | G121: 159600 | H121: 0.1648120301 | J121: Katrineholm | K121: 32.95 | L121: 22.18 | M121: 10.77 | N121: 0.0295
E122: 13400 | F122: 2219 | G122: 160800 | H122: 0.1655970149 | J122: Kävlinge | K122: 29.2 | L122: 18.51 | M122: 10.69 | N122: -0.008
E123: 13500 | F123: 2246 | G123: 162000 | H123: 0.1663703704 | J123: Kil | K123: 33.55 | L123: 22.35 | M123: 11.2 | N123: 0.0355
E124: 13600 | F124: 2273 | G124: 163200 | H124: 0.1671323529 | J124: Kinda | K124: 31.65 | L124: 20.95 | M124: 10.7 | N124: 0.0165
E125: 13700 | F125: 2300 | G125: 164400 | H125: 0.1678832117 | J125: Kiruna | K125: 34.39 | L125: 23.05 | M125: 11.34 | N125: 0.0439
E126: 13800 | F126: 2327 | G126: 165600 | H126: 0.1686231884 | J126: Klippan | K126: 31.44 | L126: 20.75 | M126: 10.69 | N126: 0.0144
E127: 13900 | F127: 2354 | G127: 166800 | H127: 0.169352518 | J127: Knivsta | K127: 32.62 | L127: 20.91 | M127: 11.71 | N127: 0.0262
E128: 14000 | F128: 2381 | G128: 168000 | H128: 0.1700714286 | J128: Köping | K128: 33.04 | L128: 22.16 | M128: 10.88 | N128: 0.0304
E129: 14100 | F129: 2408 | G129: 169200 | H129: 0.1707801418 | J129: Kramfors | K129: 34.43 | L129: 23.14 | M129: 11.29 | N129: 0.0443
E130: 14200 | F130: 2434 | G130: 170400 | H130: 0.1714084507 | J130: Kristianstad | K130: 32.15 | L130: 21.46 | M130: 10.69 | N130: 0.0215
E131: 14300 | F131: 2461 | G131: 171600 | H131: 0.1720979021 | J131: Kristinehamn | K131: 33.65 | L131: 22.45 | M131: 11.2 | N131: 0.0365
E132: 14400 | F132: 2488 | G132: 172800 | H132: 0.1727777778 | J132: Krokom | K132: 33.37 | L132: 22.17 | M132: 11.2 | N132: =(-30+K132)*0.01 -> 0.0337
E133: 14500 | F133: 2515 | G133: 174000 | H133: 0.1734482759 | J133: Kronobergs län | K133: 32.34 | L133: 20.74 | M133: 11.6 | N133: 0.0234
E134: 14600 | F134: 2542 | G134: 175200 | H134: 0.174109589 | J134: Kumla | K134: 32.35 | L134: 20.8 | M134: 11.55 | N134: 0.0235
E135: 14700 | F135: 2569 | G135: 176400 | H135: 0.1747619048 | J135: Kungälv | K135: 32.92 | L135: 21.44 | M135: 11.48 | N135: 0.0292
E136: 14800 | F136: 2596 | G136: 177600 | H136: 0.1754054054 | J136: Kungsbacka | K136: 32.15 | L136: 21.33 | M136: 10.82 | N136: 0.0215
E137: 14900 | F137: 2623 | G137: 178800 | H137: 0.1760402685 | J137: Kungsör | K137: 32.91 | L137: 22.03 | M137: 10.88 | N137: 0.0291
E138: 15000 | F138: 2650 | G138: 180000 | H138: 0.1766666667 | J138: Laholm | K138: 31.4 | L138: 20.58 | M138: 10.82 | N138: 0.014
E139: 15100 | F139: 2677 | G139: 181200 | H139: 0.1772847682 | J139: Landskrona | K139: 30.93 | L139: 20.24 | M139: 10.69 | N139: 0.0093
E140: 15200 | F140: 2704 | G140: 182400 | H140: 0.1778947368 | J140: Laxå | K140: 33.73 | L140: 22.18 | M140: 11.55 | N140: 0.0373
E141: 15300 | F141: 2731 | G141: 183600 | H141: 0.178496732 | J141: Lekeberg | K141: 32.98 | L141: 21.43 | M141: 11.55 | N141: 0.0298
E142: 15400 | F142: 2758 | G142: 184800 | H142: 0.1790909091 | J142: Leksand | K142: 33.45 | L142: 22.29 | M142: 11.16 | N142: 0.0345
E143: 15500 | F143: 2785 | G143: 186000 | H143: 0.1796774194 | J143: Lerum | K143: 32.13 | L143: 20.65 | M143: 11.48 | N143: 0.0213
E144: 15600 | F144: 2811 | G144: 187200 | H144: 0.1801923077 | J144: Lessebo | K144: 33.41 | L144: 21.81 | M144: 11.6 | N144: 0.0341
E145: 15700 | F145: 2838 | G145: 188400 | H145: 0.1807643312 | J145: Lidingö | K145: 30.72 | L145: 18.64 | M145: 12.08 | N145: 0.0072
E146: 15800 | F146: 2865 | G146: 189600 | H146: 0.1813291139 | J146: Lidköping | K146: 32.34 | L146: 20.86 | M146: 11.48 | N146: 0.0234
E147: 15900 | F147: 2892 | G147: 190800 | H147: 0.1818867925 | J147: Lilla Edet | K147: 33.85 | L147: 22.37 | M147: 11.48 | N147: 0.0385
E148: 16000 | F148: 2919 | G148: 192000 | H148: 0.1824375 | J148: Lindesberg | K148: 33.85 | L148: 22.3 | M148: 11.55 | N148: 0.0385
E149: 16100 | F149: 2946 | G149: 193200 | H149: 0.1829813665 | J149: Linköping | K149: 30.9 | L149: 20.2 | M149: 10.7 | N149: 0.009
E150: 16200 | F150: 2973 | G150: 194400 | H150: 0.1835185185 | J150: Ljungby | K150: 32.67 | L150: 21.07 | M150: 11.6 | N150: 0.0267
E151: 16300 | F151: 3000 | G151: 195600 | H151: 0.1840490798 | J151: Ljusdal | K151: 33.87 | L151: 22.36 | M151: 11.51 | N151: 0.0387
E152: 16400 | F152: 3027 | G152: 196800 | H152: 0.1845731707 | J152: Ljusnarsberg | K152: 32.6 | L152: 21.05 | M152: 11.55 | N152: 0.026
E153: 16500 | F153: 3054 | G153: 198000 | H153: 0.1850909091 | J153: Lomma | K153: 30.33 | L153: 19.64 | M153: 10.69 | N153: 0.0033
E154: 16600 | F154: 3081 | G154: 199200 | H154: 0.1856024096 | J154: Ludvika | K154: 33.7 | L154: 22.54 | M154: 11.16 | N154: 0.037
E155: 16700 | F155: 3108 | G155: 200400 | H155: 0.1861077844 | J155: Luleå | K155: 33.84 | L155: 22.5 | M155: 11.34 | N155: 0.0384
E156: 16800 | F156: 3134 | G156: 201600 | H156: 0.186547619 | J156: Lund | K156: 31.93 | L156: 21.24 | M156: 10.69 | N156: 0.0193
E157: 16900 | F157: 3161 | G157: 202800 | H157: 0.1870414201 | J157: Lycksele | K157: 33.9 | L157: 23.1 | M157: 10.8 | N157: 0.039
E158: 17000 | F158: 3188 | G158: 204000 | H158: 0.1875294118 | J158: Lysekil | K158: 33.94 | L158: 22.46 | M158: 11.48 | N158: 0.0394
E159: 17100 | F159: 3215 | G159: 205200 | H159: 0.1880116959 | J159: Malå | K159: 34.2 | L159: 23.4 | M159: 10.8 | N159: 0.042
E160: 17200 | F160: 3242 | G160: 206400 | H160: 0.1884883721 | J160: Malmö | K160: 31.93 | L160: 21.24 | M160: 10.69 | N160: 0.0193
E161: 17300 | F161: 3269 | G161: 207600 | H161: 0.1889595376 | J161: Malung-Sälen | K161: 34.2 | L161: 23.04 | M161: 11.16 | N161: 0.042
E162: 17400 | F162: 3296 | G162: 208800 | H162: 0.1894252874 | J162: Mariestad | K162: 32.74 | L162: 21.26 | M162: 11.48 | N162: 0.0274
E163: 17500 | F163: 3323 | G163: 210000 | H163: 0.1898857143 | J163: Mark | K163: 32.69 | L163: 21.21 | M163: 11.48 | N163: 0.0269
E164: 17600 | F164: 3350 | G164: 211200 | H164: 0.1903409091 | J164: Markaryd | K164: 32.91 | L164: 21.31 | M164: 11.6 | N164: 0.0291
E165: 17700 | F165: 3377 | G165: 212400 | H165: 0.1907909605 | J165: Mellerud | K165: 34.08 | L165: 22.6 | M165: 11.48 | N165: 0.0408
E166: 17800 | F166: 3404 | G166: 213600 | H166: 0.1912359551 | J166: Mjölby | K166: 32.6 | L166: 21.9 | M166: 10.7 | N166: 0.026
E167: 17900 | F167: 3431 | G167: 214800 | H167: 0.1916759777 | J167: Mölndal | K167: 31.74 | L167: 20.26 | M167: 11.48 | N167: 0.0174
E168: 18000 | F168: 3458 | G168: 216000 | H168: 0.1921111111 | J168: Mönsterås | K168: 32.78 | L168: 21.41 | M168: 11.37 | N168: 0.0278
E169: 18100 | F169: 3485 | G169: 217200 | H169: 0.1925414365 | J169: Mora | K169: 33.97 | L169: 22.81 | M169: 11.16 | N169: 0.0397
E170: 18200 | F170: 3511 | G170: 218400 | H170: 0.1929120879 | J170: Mörbylånga | K170: 32.78 | L170: 21.41 | M170: 11.37 | N170: 0.0278
E171: 18300 | F171: 3538 | G171: 219600 | H171: 0.1933333333 | J171: Motala | K171: 32.4 | L171: 21.7 | M171: 10.7 | N171: 0.024
E172: 18400 | F172: 3565 | G172: 220800 | H172: 0.19375 | J172: Mullsjö | K172: 33.1 | L172: 21.84 | M172: 11.26 | N172: 0.031
E173: 18500 | F173: 3592 | G173: 222000 | H173: 0.1941621622 | J173: Munkedal | K173: 35.11 | L173: 23.63 | M173: 11.48 | N173: 0.0511
E174: 18600 | F174: 3619 | G174: 223200 | H174: 0.1945698925 | J174: Munkfors | K174: 33.7 | L174: 22.5 | M174: 11.2 | N174: 0.037
E175: 18700 | F175: 3646 | G175: 224400 | H175: 0.194973262 | J175: Nacka | K175: 30.71 | L175: 18.63 | M175: 12.08 | N175: 0.0071
E176: 18800 | F176: 3673 | G176: 225600 | H176: 0.1953723404 | J176: Nässjö | K176: 33.45 | L176: 22.19 | M176: 11.26 | N176: 0.0345
E177: 18900 | F177: 3700 | G177: 226800 | H177: 0.1957671958 | J177: Nora | K177: 33.3 | L177: 21.75 | M177: 11.55 | N177: 0.033
E178: 19000 | F178: 3727 | G178: 228000 | H178: 0.1961578947 | J178: Norberg | K178: 33.54 | L178: 22.66 | M178: 10.88 | N178: 0.0354
E179: 19100 | F179: 3754 | G179: 229200 | H179: 0.1965445026 | J179: Nordanstig | K179: 34.02 | L179: 22.51 | M179: 11.51 | N179: 0.0402
E180: 19200 | F180: 3781 | G180: 230400 | H180: 0.1969270833 | J180: Nordmaling | K180: 34.1 | L180: 23.3 | M180: 10.8 | N180: 0.041
E181: 19300 | F181: 3808 | G181: 231600 | H181: 0.1973056995 | J181: Norrbottens län | K181: 33.92 | L181: 22.58 | M181: 11.34 | N181: 0.0392
E182: 19400 | F182: 3834 | G182: 232800 | H182: 0.197628866 | J182: Norrköping | K182: 32.45 | L182: 21.75 | M182: 10.7 | N182: 0.0245
E183: 19500 | F183: 3861 | G183: 234000 | H183: 0.198 | J183: Norrtälje | K183: 31.8 | L183: 19.72 | M183: 12.08 | N183: 0.018
E184: 19600 | F184: 3888 | G184: 235200 | H184: 0.1983673469 | J184: Norsjö | K184: 34.2 | L184: 23.4 | M184: 10.8 | N184: 0.042
E185: 19700 | F185: 3915 | G185: 236400 | H185: 0.1987309645 | J185: Nybro | K185: 33.7 | L185: 22.33 | M185: 11.37 | N185: 0.037
E186: 19800 | F186: 3942 | G186: 237600 | H186: 0.1990909091 | J186: Nyköping | K186: 32.25 | L186: 21.48 | M186: 10.77 | N186: 0.0225
E187: 19900 | F187: 3969 | G187: 238800 | H187: 0.1994472362 | J187: Nykvarn | K187: 32.05 | L187: 19.97 | M187: 12.08 | N187: 0.0205
E188: 20000 | F188: 3996 | G188: 240000 | H188: 0.1998 | J188: Nynäshamn | K188: 31.93 | L188: 19.85 | M188: 12.08 | N188: 0.0193
E189: 20200 | F189: 4050 | G189: 242400 | H189: 0.2004950495 | J189: Ockelbo | K189: 34.27 | L189: 22.76 | M189: 11.51 | N189: 0.0427
E190: 20400 | F190: 4104 | G190: 244800 | H190: 0.2011764706 | J190: Öckerö | K190: 32.24 | L190: 20.76 | M190: 11.48 | N190: 0.0224
E191: 20600 | F191: 4158 | G191: 247200 | H191: 0.2018446602 | J191: Ödeshög | K191: 32.3 | L191: 21.6 | M191: 10.7 | N191: 0.023
E192: 20800 | F192: 4211 | G192: 249600 | H192: 0.2024519231 | J192: Olofström | K192: 33.35 | L192: 22.16 | M192: 11.19 | N192: 0.0335
E193: 21000 | F193: 4265 | G193: 252000 | H193: 0.2030952381 | J193: Örebro | K193: 32.9 | L193: 21.35 | M193: 11.55 | N193: 0.029
E194: 21200 | F194: 4319 | G194: 254400 | H194: 0.2037264151 | J194: Örebro län | K194: 33.11 | L194: 21.56 | M194: 11.55 | N194: 0.0311
E195: 21400 | F195: 4373 | G195: 256800 | H195: 0.2043457944 | J195: Örkelljunga | K195: 29.75 | L195: 19.06 | M195: 10.69 | N195: -0.0025
E196: 21600 | F196: 4427 | G196: 259200 | H196: 0.2049537037 | J196: Örnsköldsvik | K196: 33.73 | L196: 22.44 | M196: 11.29 | N196: =(-30+K196)*0.01 -> 0.0373
E197: 21800 | F197: 4481 | G197: 261600 | H197: 0.2055504587 | J197: Orsa | K197: 34.05 | L197: 22.89 | M197: 11.16 | N197: 0.0405
E198: 22000 | F198: 4535 | G198: 264000 | H198: 0.2061363636 | J198: Orust | K198: 34.19 | L198: 22.71 | M198: 11.48 | N198: 0.0419
E199: 22200 | F199: 4588 | G199: 266400 | H199: 0.2066666667 | J199: Osby | K199: 32.95 | L199: 22.26 | M199: 10.69 | N199: 0.0295
E200: 22400 | F200: 4642 | G200: 268800 | H200: 0.2072321429 | J200: Oskarshamn | K200: 33.63 | L200: 22.26 | M200: 11.37 | N200: 0.0363
... 349 more rows

Sheet Pivot (hidden)
B2: Row Labels | C2: Sum of FörenklingTidigarePCT | D2: Sum of HuvudregelTidigareUtdelningPCT | E2: Sum of FörenklingNyUtdelningPCT | F2: Sum of HuvudregelNyUtdelningPCT
B3: 1500000 | C3: 0.27 | D3: 0.932 | E3: 0.162 | F3: 0.876
B4: 2000000 | C4: 0.004 | D4: 0.004 | E4: 0.004 | F4: 0.004
B5: (blank)
B6: Grand Total | C6: 0.274 | D6: 0.936 | E6: 0.166 | F6: 0.88

Sheet DB (hidden)
B2: Vinst | C2: Uttagen årslön huvudperson | D2: Rörelseöverskott innan lön till huvudperson (att ta ut ur bolaget) | E2: Kommun | F2: Annan lön (andra bolag, bruttolön/år) | G2: Sparat utdelningsutrymme att förbruka (k10, Privat) | H2: Balanserad vinst i bolaget, som planneras att tas ut | I2: Ägarandel | J2: Omkostnadsbelopp | K2: Tot lön hela bolaget (exc. huvudperson) | L2: Tot lön hela bolaget (exc. din lön) | M2: År till Pension | N2: Uppskattade Skatt vid pension | O2: FörenklingTidigareUtdelning | P2: FörenklingTidigarePCT | Q2: FörenklingTidigareMånadslön huvudperson | R2: FörenklingTidigareTotalt CashFlow till Huvudperson | S2: FörenklingTidigare % Skatt | T2: HuvudregelTidigareUtdelning | U2: HuvudregelTidigareUtdelningPCT | V2: HuvudregelTidigareMånadslön huvudperson | W2: HuvudregelTidigareTotalt CashFlow till Huvudperson | X2: HuvudregelTidigare % Skatt | Y2: FörenklingNyUtdelning | Z2: FörenklingNyUtdelningPCT | AA2: FörenklingNyMånadslön huvudperson | AB2: FörenklingNyTotalt CashFlow till Huvudperson | AC2: FörenklingNy % Skatt | AD2: HuvudregelNyUtdelning | AE2: HuvudregelNyUtdelningPCT | AF2: HuvudregelNyMånadslön huvudperson | AG2: HuvudregelNyTotalt CashFlow till Huvudperson | AH2: HuvudregelNy % Skatt
B3: 900000 | C3: 350000 | D3: 684970 | E3: Söderhamn | F3: 100000 | G3: 100000 | H3: 500000 | I3: 0.25 | J3: 50000 | K3: 1000000 | L3: 650000 | M3: 35 | N3: 0.29 | O3: 139959.7448 | P3: 0.028 | Q3: 42217.75224 | R3: 453934.7797 | S3: 0.4395659349 | T3: 237198.086 | U3: 0.21 | V3: 34312.78217 | W3: 501111.88 | X3: 0.381320444 | Y3: 125000 | Z3: 0 | AA3: 43433.90149 | AB3: 440504.0831 | AC3: 0.4561476559 | AD3: 146371.064 | AE3: 0.04 | AF3: 41696.54543 | AG3: 450946.9525 | AH3: 0.4432547471
B4: 1500000 | C4: 0 | D4: 150000 | E4: Söderhamn | F4: 0 | G4: 0 | H4: 0 | I4: 0.1 | J4: 50000 | K4: 3000000 | L4: 3000000 | M4: 35 | N4: 0.29 | O4: 234 | P4: 0.002 | Q4: 9492.4669 | R4: 107971.884 | S4: 0.2801874399 | T4: Ej Möjlig | U4: Ej Möjlig | V4: Ej Möjlig | W4: 0 | X4: 1 | Y4: 234 | Z4: 0.002 | AA4: 9492.4669 | AB4: 107960.184 | AC4: 0.2802654399 | AD4: Ej Möjlig | AE4: Ej möjlig | AF4: Ej Möjlig | AG4: 0 | AH4: 1
B5: 3000000 | C5: 0 | D5: 300000 | E5: Söderhamn | F5: 0 | G5: 0 | H5: 0 | I5: 0.1 | J5: 50000 | K5: 3000000 | L5: 3000000 | M5: 35 | N5: 0.29 | O5: 6552 | P5: 0.028 | Q5: 18490.33633 | R5: 201154.6037 | S5: 0.3294846544 | T5: Ej Möjlig | U5: Ej Möjlig | V5: Ej Möjlig | W5: 0 | X5: 1 | Y5: 6552 | Z5: 0.028 | AA5: 18490.33633 | AB5: 200827.0037 | AC5: 0.3305766544 | AD5: Ej Möjlig | AE5: Ej möjlig | AF5: Ej Möjlig | AG5: 0 | AH5: 1
B6: 12000000 | C6: 0 | D6: 3600000 | E6: Söderhamn | F6: 0 | G6: 0 | H6: 0 | I6: 0.3 | J6: 50000 | K6: 3000000 | L6: 3000000 | M6: 35 | N6: 0.29 | O6: 47736 | P6: 0.017 | Q6: 224395.0692 | R6: 949549.7487 | S6: 0.7362361809 | T6: 752544 | U6: 0.268 | V6: 167097.8542 | W6: 1321358.803 | X6: 0.6329558881 | Y6: 28080 | Z6: 0.01 | AA6: 225992.9995 | AB6: 937776.5719 | AC6: 0.7395065078 | AD6: 334152 | AE6: 0.119 | AF6: 201110.942 | AG6: 1083935.868 | AH6: 0.6989067034
B7: 12000000 | C7: 0 | D7: 3600000 | E7: Söderhamn | F7: 0 | G7: 0 | H7: 0 | I7: 0.3 | J7: 50000 | K7: 3000000 | L7: 3000000 | M7: 35 | N7: 0.29 | O7: 47736 | P7: 0.017 | Q7: 224395.0692 | R7: 1503884.956 | S7: 0.5822541788 | T7: 752544 | U7: 0.268 | V7: 167097.8542 | W7: 1703802.365 | X7: 0.5267215652 | Y7: 28080 | Z7: 0.01 | AA7: 225992.9995 | AB7: 1496905.571 | AC7: 0.5841928971 | AD7: 334152 | AE7: 0.119 | AF7: 201110.942 | AG7: 1568418.694 | AH7: 0.5643281406
B8: 12000000 | C8: 0 | D8: 3600000 | E8: Söderhamn | F8: 0 | G8: 0 | H8: 1000000 | I8: 0.3 | J8: 50000 | K8: 3000000 | L8: 3000000 | M8: 35 | N8: 0.29 | O8: Ej Möjlig | P8: Ej möjlig | Q8: Ej möjlig | R8: 0 | S8: 1 | T8: 791400 | U8: 0.175 | V8: 188327.4996 | W8: 1869729.381 | X8: 0.5205822099 | Y8: Ej Möjlig | Z8: Ej möjlig | AA8: Ej möjlig | AB8: 0 | AC8: 1 | AD8: 356160 | AE8: 0.02 | AF8: 223710.242 | AG8: 1728466.408 | AH8: 0.5568034852
B9: 12000000 | C9: 0 | D9: 3600000 | E9: Söderhamn | F9: 0 | G9: 0 | H9: 1000000 | I9: 0.3 | J9: 50000 | K9: 3000000 | L9: 3000000 | M9: 35 | N9: 0.29 | O9: Ej Möjlig | P9: Ej möjlig | Q9: Ej möjlig | R9: 0 | S9: 1 | T9: 791400 | U9: 0.175 | V9: 188327.4996 | W9: 1869729.381 | X9: 0.5205822099 | Y9: Ej Möjlig | Z9: Ej möjlig | AA9: Ej möjlig | AB9: 0 | AC9: 1 | AD9: 356160 | AE9: 0.02 | AF9: 223710.242 | AG9: 1728466.408 | AH9: 0.5568034852
B10: 12000000 | C10: 0 | D10: 3600000 | E10: Söderhamn | F10: 0 | G10: 0 | H10: 0 | I10: 0.3 | J10: 50000 | K10: 3000000 | L10: 3000000 | M10: 35 | N10: 0.29 | O10: 47736 | P10: 0.017 | Q10: 224395.0692 | R10: 1503884.956 | S10: 0.5822541788 | T10: 752544 | U10: 0.268 | V10: 167097.8542 | W10: 1703802.365 | X10: 0.5267215652 | Y10: 28080 | Z10: 0.01 | AA10: 225992.9995 | AB10: 1496905.571 | AC10: 0.5841928971 | AD10: 334152 | AE10: 0.119 | AF10: 201110.942 | AG10: 1568418.694 | AH10: 0.5643281406
B11: 12000000 | C11: 0 | D11: 3600000 | E11: Söderhamn | F11: 0 | G11: 0 | H11: 100000 | I11: 0.3 | J11: 50000 | K11: 3000000 | L11: 3000000 | M11: 35 | N11: 0.29 | O11: 46848 | P11: 0.006 | Q11: 226906.1026 | R11: 1519123.636 | S11: 0.5815086403 | T11: 757272 | U11: 0.259 | V11: 169152.336 | W11: 1720634.012 | X11: 0.5259961399 | Y11: 30000 | Z11: 0 | AA11: 228275.7571 | AB11: 1512844.734 | AC11: 0.5832383654 | AD11: 336072 | AE11: 0.109 | AF11: 203393.6996 | AG11: 1584357.857 | AH11: 0.5635377805
B12: 12000000 | C12: 1000000 | D12: 4914200 | E12: Söderhamn | F12: 0 | G12: 0 | H12: 0 | I12: 0.3 | J12: 50000 | K12: 3000000 | L12: 2000000 | M12: 35 | N12: 0.29 | O12: 45996.912 | P12: 0.012 | Q12: 307869.7814 | R12: 2032691.668 | S12: 0.586363667 | T12: 755115.972 | U12: 0.197 | V12: 250222.0996 | W12: 2233831.9 | X12: 0.5454332546 | Y12: 26831.532 | Z12: 0.007 | AA12: 309427.8268 | AB12: 2025913.868 | AC12: 0.5877428944 | AD12: 333477.612 | AE12: 0.087 | AF12: 284499.0996 | AG12: 2097561.125 | AH12: 0.5731632566
B13: 12000000 | C13: 1000000 | D13: 13314200 | E13: Söderhamn | F13: 0 | G13: 0 | H13: 0 | I13: 1 | J13: 50000 | K13: 3000000 | L13: 2000000 | M13: 35 | N13: 0.29 | O13: 155776.14 | P13: 0.015 | Q13: 831588.7359 | R13: 5446968.361 | S13: 0.5908903005 | T13: 4070949.792 | U13: 0.392 | V13: 513305.5344 | W13: 6557499.701 | X13: 0.5074807573 | Y13: 93465.684 | Z13: 0.009 | AA13: 836654.251 | AB13: 5424620.838 | AC13: 0.5925687733 | AD13: 4195570.704 | AE13: 0.404 | AF13: 503174.5041 | AG13: 6383069.643 | AH13: 0.5205818117
B14: 12000000 | C14: 1000000 | D14: 13314200 | E14: Söderhamn | F14: 0 | G14: 0 | H14: 0 | I14: 1 | J14: 50000 | K14: 3000000 | L14: 2000000 | M14: 35 | N14: 0.29 | O14: 155776.14 | P14: 0.015 | Q14: 831588.7359 | R14: 5446968.361 | S14: 0.5908903005 | T14: 4070949.792 | U14: 0.392 | V14: 513305.5344 | W14: 6557499.701 | X14: 0.5074807573 | Y14: 93465.684 | Z14: 0.009 | AA14: 836654.251 | AB14: 5424620.838 | AC14: 0.5925687733 | AD14: 4195570.704 | AE14: 0.404 | AF14: 503174.5041 | AG14: 6383069.643 | AH14: 0.5205818117
B15: 12000000 | C15: 1000000 | D15: 13314200 | E15: Söderhamn | F15: 0 | G15: 0 | H15: 100000 | I15: 1 | J15: 50000 | K15: 3000000 | L15: 2000000 | M15: 35 | N15: 0.29 | O15: 151925.38 | P15: 0.005 | Q15: 840031.2611 | R15: 5497511.297 | S15: 0.590172258 | T15: 4108639.336 | U15: 0.386 | V15: 518371.0496 | W15: 6619825.462 | X15: 0.5065061307 | Y15: 100000 | Z15: 0 | AA15: 844252.5237 | AB15: 5477782.764 | AC15: 0.591642978 | AD15: 4243645.324 | AE15: 0.399 | AF15: 507395.7668 | AG15: 6445937.38 | AH15: 0.5194691163
B16: 12000000 | C16: 1000000 | D16: 13414200 | E16: Söderhamn | F16: 0 | G16: 0 | H16: 100000 | I16: 1 | J16: 50000 | K16: 3000000 | L16: 2000000 | M16: 35 | N16: 0.29 | O16: 100000 | P16: 0 | Q16: 850593.517 | R16: 5523058.217 | S16: 0.5913144532 | T16: 4102599.64 | U16: 0.39 | V16: 518862.0454 | W16: 6618112.314 | X16: 0.5102845663 | Y16: 100000 | Z16: 0 | AA16: 850593.517 | AB16: 5518058.217 | AC16: 0.5916844344 | AD16: 4274767.324 | AE16: 0.399 | AF16: 511206.7037 | AG16: 6493484.427 | AH16: 0.5195065615
B17: 12000000 | C17: 1000000 | D17: 7364200 | E17: Söderhamn | F17: 0 | G17: 0 | H17: 100000 | I17: 0.5 | J17: 50000 | K17: 3000000 | L17: 2000000 | M17: 35 | N17: 0.29 | O17: 50000 | P17: 0 | Q17: 466963.4252 | R17: 3046393.326 | S17: 0.5891136838 | T17: 1533180.14 | U17: 0.265 | V17: 343218.1175 | W17: 3446956.742 | X17: 0.5350871649 | Y17: 50000 | Z17: 0 | AA17: 466963.4252 | AB17: 3043893.326 | AC17: 0.5894508746 | AD17: 785241.728 | AE17: 0.128 | AF17: 407192.1067 | AG17: 3215681.116 | AH17: 0.5662807699
B18: -1000000 | C18: 0 | D18: 1000000 | E18: Söderhamn | F18: 0 | G18: 0 | H18: 3000000 | I18: 0.5 | J18: 50000 | K18: 3000000 | L18: 3000000 | M18: 35 | N18: 0.29 | O18: Ej Möjlig | P18: Ej möjlig | Q18: Ej möjlig | R18: 0 | S18: 1 | T18: Ej Möjlig | U18: Ej Möjlig | V18: Ej Möjlig | W18: 0 | X18: 1 | Y18: Ej Möjlig | Z18: Ej möjlig | AA18: Ej möjlig | AB18: 0 | AC18: 1 | AD18: Ej Möjlig | AE18: Ej möjlig | AF18: Ej Möjlig | AG18: 0 | AH18: 1
B19: -1000000 | C19: 0 | D19: 1000000 | E19: Söderhamn | F19: 0 | G19: 0 | H19: 3000000 | I19: 0.5 | J19: 50000 | K19: 3000000 | L19: 3000000 | M19: 35 | N19: 0.29 | O19: Ej Möjlig | P19: Ej möjlig | Q19: Ej möjlig | R19: 0 | S19: 1 | T19: Ej Möjlig | U19: Ej Möjlig | V19: Ej Möjlig | W19: 0 | X19: 1 | Y19: Ej Möjlig | Z19: Ej möjlig | AA19: Ej möjlig | AB19: 0 | AC19: 1 | AD19: Ej Möjlig | AE19: Ej möjlig | AF19: Ej Möjlig | AG19: 0 | AH19: 1
B20: -1000000 | C20: 0 | D20: 1000000 | E20: Söderhamn | F20: 0 | G20: 0 | H20: 3000000 | I20: 0.5 | J20: 50000 | K20: 3000000 | L20: 3000000 | M20: 35 | N20: 0.29 | O20: 80000 | P20: 0.08 | Q20: 58337.13793 | R20: 558159.4051 | S20: 0.776736238 | T20: 308000 | U20: 0.308 | V20: 43879.67331 | W20: 660446.301 | X20: 0.7358214796 | Y20: Ej Möjlig | Z20: Ej möjlig | AA20: Ej möjlig | AB20: 0 | AC20: 1 | AD20: Ej Möjlig | AE20: Ej möjlig | AF20: Ej Möjlig | AG20: 0 | AH20: 1
B21: -1000000 | C21: 0 | D21: 1000000 | E21: Söderhamn | F21: 0 | G21: 0 | H21: 3000000 | I21: 0.5 | J21: 50000 | K21: 3000000 | L21: 3000000 | M21: 35 | N21: 0.29 | O21: 80000 | P21: 0.08 | Q21: 58337.13793 | R21: 558159.4051 | S21: 0.776736238 | T21: 308000 | U21: 0.308 | V21: 43879.67331 | W21: 660446.301 | X21: 0.7358214796 | Y21: Ej Möjlig | Z21: Ej möjlig | AA21: Ej möjlig | AB21: 0 | AC21: 1 | AD21: Ej Möjlig | AE21: Ej möjlig | AF21: Ej Möjlig | AG21: 0 | AH21: 1
B22: -1000000 | C22: 0 | D22: 1000000 | E22: Söderhamn | F22: 0 | G22: 0 | H22: 3000000 | I22: 0.5 | J22: 50000 | K22: 3000000 | L22: 3000000 | M22: 35 | N22: 0.29 | O22: 80000 | P22: 0.08 | Q22: 58337.13793 | R22: 558159.4051 | S22: 0.4418405949 | T22: 308000 | U22: 0.308 | V22: 43879.67331 | W22: 660446.301 | X22: 0.339553699 | Y22: 51000 | Z22: 0.051 | AA22: 60176.02597 | AB22: 543512.7014 | AC22: 0.4564872986 | AD22: 270000 | AE22: 0.27 | AF22: 46289.25075 | AG22: 645243.6504 | AH22: 0.3547563496
B23: -1000000 | C23: 0 | D23: 1000000 | E23: Söderhamn | F23: 0 | G23: 0 | H23: 3000000 | I23: 0.5 | J23: 50000 | K23: 3000000 | L23: 3000000 | M23: 35 | N23: 0.29 | O23: 80000 | P23: 0.08 | Q23: 58337.13793 | R23: 558159.4051 | S23: 0.4418405949 | T23: 308000 | U23: 0.308 | V23: 43879.67331 | W23: 660446.301 | X23: 0.339553699 | Y23: 51000 | Z23: 0.051 | AA23: 60176.02597 | AB23: 540962.7014 | AC23: 0.4590372986 | AD23: 270000 | AE23: 0.27 | AF23: 46289.25075 | AG23: 631743.6504 | AH23: 0.3682563496
B24: 12000000 | C24: 2000000 | D24: 5878400 | E24: Söderhamn | F24: 100000 | G24: 500000 | H24: 1000000 | I24: 0.25 | J24: 50000 | K24: 3000000 | L24: 1000000 | M24: 35 | N24: 0.29 | O24: 536440.96 | P24: 0.105 | Q24: 333610.3079 | R24: 2579947.434 | S24: 0.5611140048 | T24: 1063733.44 | U24: 0.22 | V24: 290744.179 | W24: 2729512.913 | X24: 0.5356707755 | Y24: 522685.504 | Z24: 0.102 | AA24: 334728.5548 | AB24: 2549911.451 | AC24: 0.5662235556 | AD24: 710676.736 | AE24: 0.143 | AF24: 319445.8479 | AG24: 2593835.234 | AH24: 0.5587514913
B25: 12000000 | C25: 0 | D25: 12000000 | E25: Söderhamn | F25: 0 | G25: 500000 | I25: 1 | J25: 50000 | K25: 3000000 | L25: 3000000 | M25: 35 | N25: 0.29 | O25: 655200 | P25: 0.07 | Q25: 707654.8471 | R25: 5059328.961 | S25: 0.5783892532 | T25: 4408560 | U25: 0.471 | V25: 402526.2517 | W25: 6123962.175 | X25: 0.4896698187 | Y25: 599040 | Z25: 0.064 | AA25: 712220.3622 | AB25: 5013447.287 | AC25: 0.5822127261 | AD25: 4483440 | AE25: 0.479 | AF25: 396438.8982 | AG25: 5921029.74 | AH25: 0.506580855
B26: 12000000 | C26: 0 | D26: 6000000 | E26: Söderhamn | F26: 0 | G26: 500000 | I26: 0.5 | J26: 50000 | K26: 3000000 | L26: 3000000 | M26: 35 | N26: 0.29 | O26: 575640 | P26: 0.123 | Q26: 333663.065 | R26: 2620234.758 | S26: 0.563294207 | T26: 1923480 | U26: 0.411 | V26: 224090.7016 | W26: 3002546.935 | X26: 0.4995755109 | Y26: 547560 | Z26: 0.117 | AA26: 335945.8226 | AB26: 2584891.921 | AC26: 0.5691846798 | AD26: 1226160 | AE26: 0.262 | AF26: 280779.1813 | AG26: 2743445.482 | AH26: 0.5427590863
B27: 12000000 | C27: 0 | D27: 12000000 | E27: Söderhamn | F27: 100000 | I27: 1 | J27: 50000 | K27: 3000000 | L27: 3000000 | M27: 35 | N27: 0.29 | O27: 159120 | P27: 0.017 | Q27: 747983.5641 | R27: 4910023.84 | S27: 0.5908313467 | T27: 4071600 | U27: 0.435 | V27: 429919.3426 | W27: 6019791.13 | X27: 0.4983507391 | Y27: 93600 | Z27: 0.01 | AA27: 753309.9985 | AB27: 4886759.22 | AC27: 0.592770065 | AD27: 4202640 | AE27: 0.449 | AF27: 419266.4739 | AG27: 5846828.37 | AH27: 0.5127643025
B28: 12000000 | C28: 0 | D28: 12000000 | E28: Söderhamn | F28: 100000 | G28: 1000000 | I28: 1 | J28: 50000 | K28: 3000000 | L28: 3000000 | M28: 35 | N28: 0.29 | O28: 1151280 | P28: 0.123 | Q28: 667326.13 | R28: 5191448.081 | S28: 0.5673793266 | T28: 4745520 | U28: 0.507 | V28: 375133.1609 | W28: 6210947.219 | X28: 0.4824210651 | Y28: 1095120 | Z28: 0.117 | AA28: 671891.6451 | AB28: 5120762.407 | AC28: 0.5732697994 | AD28: 4773600 | AE28: 0.51 | AF28: 372850.4033 | AG28: 5980232.056 | AH28: 0.5016473287
B29: 12000000 | C29: 1000000 | D29: 13314200 | E29: Söderhamn | F29: 100000 | G29: 1000000 | I29: 1 | J29: 50000 | K29: 3000000 | L29: 2000000 | M29: 35 | N29: 0.29 | O29: 1152743.436 | P29: 0.111 | Q29: 750540.4936 | R29: 5721163.182 | S29: 0.5702961363 | T29: 4745979.732 | U29: 0.457 | V29: 458429.1204 | W29: 6740377.621 | X29: 0.4937452028 | Y29: 1100818.056 | Z29: 0.106 | AA29: 754761.7562 | AB29: 5651393.747 | AC29: 0.5755363637 | AD29: 4777134.96 | AE29: 0.46 | AF29: 455896.3628 | AG29: 6510357.992 | AH29: 0.5110214664
B30: 12000000 | C30: 1000000 | D30: 7314200 | E30: Söderhamn | F30: 100000 | G30: 1000000 | I30: 0.5 | J30: 50000 | K30: 3000000 | L30: 2000000 | M30: 35 | N30: 0.29 | O30: 1078259.364 | P30: 0.189 | Q30: 376136.065 | R30: 3283508.756 | S30: 0.5510775265 | T30: 2327671.008 | U30: 0.408 | V30: 274565.4137 | W30: 3637901.922 | X30: 0.502624768 | Y30: 1049733.984 | Z30: 0.184 | AA30: 378455.0297 | AB30: 3222930.889 | AC30: 0.5593597538 | AD30: 1660177.116 | AE30: 0.291 | AF30: 328829.1863 | AG30: 3365559.731 | AH30: 0.5398594883
B31: 12000000 | C31: 1000000 | D31: 7314200 | E31: Söderhamn | F31: 100000 | G31: 1000000 | I31: 0.5 | J31: 50000 | K31: 3000000 | L31: 2000000 | M31: 35 | N31: 0.29 | O31: 1078259.364 | P31: 0.189 | Q31: 376136.065 | R31: 3283508.756 | S31: 0.5510775265 | T31: 2327671.008 | U31: 0.408 | V31: 274565.4137 | W31: 3637901.922 | X31: 0.502624768 | Y31: 1049733.984 | Z31: 0.184 | AA31: 378455.0297 | AB31: 3222930.889 | AC31: 0.5593597538 | AD31: 1671587.268 | AE31: 0.293 | AF31: 327901.6005 | AG31: 3368225.691 | AH31: 0.5394949973
B32: 12000000 | C32: 1000000 | D32: 8064200 | E32: Söderhamn | F32: 100000 | G32: 1000000 | H32: 1500000 | I32: 0.5 | J32: 50000 | K32: 3000000 | L32: 2000000 | M32: 35 | N32: 0.29 | O32: 1077061.02 | P32: 0.145 | Q32: 437204.5731 | R32: 3670432.817 | S32: 0.5448484888 | T32: 2473457.892 | U32: 0.367 | V32: 323684.7892 | W32: 4066518.055 | X32: 0.4957319939 | Y32: 1045610.64 | Z32: 0.14 | AA32: 439761.325 | AB32: 3609231.446 | AC32: 0.5524377562 | AD32: 1750099.152 | AE32: 0.252 | AF32: 382490.0827 | AG32: 3773833.807 | AH32: 0.5320262633
B33: 0 | C33: 0 | D33: 3000000 | E33: Söderhamn | F33: 100000 | G33: 3000000 | H33: 3000000 | I33: 1 | J33: 50000 | K33: 0 | L33: 0 | M33: 35 | N33: 0.3 | O33: 3000000 | P33: 1 | Q33: 0 | R33: 2400000 | S33: 0.2 | T33: 2508000 | U33: 0.836 | V33: 31197.68681 | W33: 2311668.42 | X33: 0.2294438599 | Y33: 3000000 | Z33: 1 | AA33: 0 | AB33: 2250000 | AC33: 0.25 | AD33: 2352000 | AE33: 0.784 | AF33: 41089.63628 | AG33: 2134167.241 | AH33: 0.2886109195
B34: 1000000 | C34: 500000 | D34: 1157100 | E34: Stockholm | F34: 0 | G34: 200000 | H34: 0 | I34: 0.5 | J34: 50000 | K34: 1000000 | L34: 500000 | M34: 35 | N34: 0.3 | O34: 279786.78 | P34: 0.31 | Q34: 50626.42672 | R34: 695409.1694 | S34: 0.3990068539 | T34: 441341.082 | U34: 0.489 | V34: 37492.90443 | W34: 743526.3608 | X34: 0.3574225557 | Y34: 250905.564 | Z34: 0.278 | AA34: 52974.31898 | AB34: 674516.948 | AC34: 0.4170625288 | AD34: 268956.324 | AE34: 0.298 | AF34: 51506.88632 | AG34: 678196.9687 | AH34: 0.4138821461
B35: 1000000 | C35: 500000 | D35: 1157100 | E35: Stockholm | F35: 0 | G35: 200000 | H35: 0 | I35: 0.5 | J35: 50000 | K35: 1000000 | L35: 500000 | M35: 5 | N35: 0.3 | O35: 279786.78 | P35: 0.31 | Q35: 50626.42672 | R35: 709435.5082 | S35: 0.3868848776 | T35: 441341.082 | U35: 0.489 | V35: 37492.90443 | W35: 756939.5659 | X35: 0.3458304676 | Y35: 250905.564 | Z35: 0.278 | AA35: 52974.31898 | AB35: 688543.2868 | AC35: 0.4049405524 | AD35: 268956.324 | AE35: 0.298 | AF35: 51506.88632 | AG35: 692223.3075 | AH35: 0.4017601698
B36: 1000000 | C36: 500000 | D36: 1157100 | E36: Stockholm | F36: 750000 | G36: 200000 | H36: 0 | I36: 0.5 | J36: 50000 | K36: 1000000 | L36: 500000 | M36: 5 | N36: 0.3 | O36: 279786.78 | P36: 0.31 | Q36: 50626.42672 | R36: 564768.0321 | S36: 0.5119107837 | T36: 441341.082 | U36: 0.489 | V36: 37492.90443 | W36: 605565.0812 | X36: 0.4766527688 | Y36: 250905.564 | Z36: 0.278 | AA36: 52974.31898 | AB36: 544929.4267 | AC36: 0.5290558926 | AD36: 268956.324 | AE36: 0.298 | AF36: 51506.88632 | AG36: 548585.2182 | AH36: 0.5258964496
B37: 1000000 | C37: 500000 | D37: 1357100 | E37: Stockholm | F37: 750000 | G37: 200000 | H37: 400000 | I37: 0.5 | J37: 50000 | K37: 1000000 | L37: 500000 | M37: 5 | N37: 0.3 | O37: 280053.974 | P37: 0.223 | Q37: 66863.6623 | R37: 674329.8266 | S37: 0.5031096996 | T37: 481176.194 | U37: 0.413 | V37: 50513.47461 | W37: 725118.8986 | X37: 0.4656849911 | Y37: 250414.91 | Z37: 0.195 | AA37: 69273.16365 | AB37: 654324.3758 | AC37: 0.5178510237 | AD37: 290639.354 | AE37: 0.233 | AF37: 66003.12611 | AG37: 662470.968 | AH37: 0.511848082
B38: 1000000 | C38: 500000 | D38: 1157100 | E38: Stockholm | F38: 0 | G38: 0 | H38: 0 | I38: 0.5 | J38: 50000 | K38: 500000 | L38: 0 | M38: 5 | N38: 0.3 | O38: 79423.344 | P38: 0.088 | Q38: 66914.92923 | R38: 637723.3634 | S38: 0.4488606314 | T38: 180507.6 | U38: 0.2 | V38: 58697.30635 | W38: 674441.6002 | X38: 0.4171276465 | Y38: 50542.128 | Z38: 0.056 | AA38: 69262.82149 | AB38: 625366.231 | AC38: 0.4595400302 | AD38: 46029.438 | AE38: 0.051 | AF38: 69629.67965 | AG38: 622411.3766 | AH38: 0.4620937027
B39: 0 | C39: 500000 | D39: 657100 | E39: Stockholm | F39: 0 | G39: 0 | H39: 0 | I39: 0.5 | J39: 50000 | K39: 500000 | L39: 0 | M39: 5 | N39: 0.3 | O39: 51766.338 | P39: 0.101 | Q39: 37458.33333 | R39: 444907.3772 | S39: 0.3229228775 | T39: 51766.338 | U39: 0.101 | V39: 37458.33333 | W39: 444907.3772 | X39: 0.3229228775 | Y39: 39465.426 | Z39: 0.077 | AA39: 38458.33333 | AB39: 440684.2568 | AC39: 0.3293497842 | AD39: 22039.134 | AE39: 0.043 | AF39: 39875 | AG39: 435737.4969 | AH39: 0.3368779533
B40: 0 | C40: 500000 | D40: 657100 | E40: Stockholm | F40: 0 | G40: 0 | H40: 0 | I40: 0.5 | J40: 50000 | K40: 500000 | L40: 0 | M40: 5 | N40: 0.3 | O40: 76368.162 | P40: 0.149 | Q40: 35458.33333 | R40: 435785.417 | S40: 0.3368050267 | T40: 100969.986 | U40: 0.197 | V40: 33458.33333 | W40: 435935.2489 | X40: 0.3365770068 | Y40: 39465.426 | Z40: 0.077 | AA40: 38458.33333 | AB40: 430992.7568 | AC40: 0.3440986808 | AD40: 22039.134 | AE40: 0.043 | AF40: 39875 | AG40: 425688.9969 | AH40: 0.3521701463
B41: 0 | C41: 500000 | D41: 657100 | E41: Stockholm | F41: 0 | G41: 0 | H41: 0 | I41: 0.5 | J41: 50000 | K41: 500000 | L41: 0 | M41: 5 | N41: 1 | O41: 79955.928 | P41: 0.156 | Q41: 35166.66667 | R41: 387240.8567 | S41: 0.4106820017 | T41: 104045.214 | U41: 0.203 | V41: 33208.33333 | W41: 390100.4924 | X41: 0.4063300983 | Y41: 50741.262 | Z41: 0.099 | AA41: 37541.66667 | AB41: 378285.4018 | AC41: 0.4243107567 | AD41: 22039.134 | AE41: 0.043 | AF41: 39875 | AG41: 371803.638 | AH41: 0.4341749536
B42: 0 | C42: 500000 | D42: 657100 | E42: Stockholm | F42: 0 | G42: 0 | H42: 0 | I42: 0.5 | J42: 50000 | K42: 500000 | L42: 0 | M42: 5 | N42: 0.35 | O42: 76368.162 | P42: 0.149 | Q42: 35458.33333 | R42: 430064.6698 | S42: 0.3455110793 | T42: 100969.986 | U42: 0.197 | V42: 33458.33333 | W42: 430537.1761 | X42: 0.3447920011 | Y42: 39465.426 | Z42: 0.077 | AA42: 38458.33333 | AB42: 424787.9982 | AC42: 0.3535413207 | AD42: 22039.134 | AE42: 0.043 | AF42: 39875 | AG42: 419363.4908 | AH42: 0.3617965442
B43: 500000 | C43: 500000 | D43: 907100 | E43: Stockholm | F43: 0 | G43: 0 | H43: 0 | I43: 0.5 | J43: 50000 | K43: 10000000 | L43: 9500000 | M43: 5 | N43: 0.35 | O43: 79951.794 | P43: 0.113 | Q43: 51019.48587 | R43: 534962.6499 | S43: 0.4102495316 | T43: 133724.682 | U43: 0.189 | V43: 46648.03049 | W43: 551186.5643 | X43: 0.3923640566 | Y43: 50942.736 | Z43: 0.072 | AA43: 53377.77101 | AB43: 523420.5455 | AC43: 0.4229737124 | AD43: Ej Möjlig | AE43: Ej möjlig | AF43: Ej Möjlig | AG43: 0 | AH43: 1
B44: 10000000 | C44: 500000 | D44: 5657100 | E44: Stockholm | F44: 0 | G44: 0 | H44: 0 | I44: 0.5 | J44: 50000 | K44: 10000000 | L44: 9500000 | M44: 5 | N44: 0.35 | O44: 79425.684 | P44: 0.018 | Q44: 352259.4354 | R44: 2395812.669 | S44: 0.5764945521 | T44: 2775486.402 | U44: 0.629 | V44: 133083.7582 | W44: 3131876.833 | X44: 0.4463812141 | Y44: 48537.918 | Z44: 0.011 | AA44: 354770.4497 | AB44: 2384952.96 | AC44: 0.5784142123 | AD44: 2457783.666 | AE44: 0.557 | AF44: 158911.3339 | AG44: 2922250.138 | AH44: 0.4834367188
B45: 2000000 | C45: 500000 | D45: 1657100 | E45: Stockholm | F45: 0 | G45: 0 | H45: 0 | I45: 0.5 | J45: 50000 | K45: 10000000 | L45: 9500000 | M45: 5 | N45: 0.35 | O45: 80137.356 | P45: 0.062 | Q45: 98561.85005 | R45: 751812.7794 | S45: 0.5463081411 | T45: 718651.128 | U45: 0.556 | V45: 46654.01004 | W45: 1019178.408 | X45: 0.3849626408 | Y45: 50408.982 | Z45: 0.039 | AA45: 100978.6118 | AB45: 741176.0477 | AC45: 0.5527270245 | AD45: 551913.726 | AE45: 0.427 | AF45: 60208.89134 | AG45: 933132.9204 | AH45: 0.4368879848
B46: 3000000 | C46: 500000 | D46: 3657100 | E46: Stockholm | F46: 0 | G46: 0 | H46: 0 | I46: 1 | J46: 50000 | K46: 1000000 | L46: 500000 | M46: 5 | N46: 0.35 | O46: 159742.128 | P46: 0.056 | Q46: 218910.2623 | R46: 1595643.144 | S46: 0.5636862147 | T46: 1103932.206 | U46: 0.387 | V46: 142152.5326 | W46: 1853420.9 | X46: 0.4931992836 | Y46: 99838.83 | Z46: 0.035 | AA46: 223780.088 | AB46: 1574296.723 | AC46: 0.5695231952 | AD46: 601885.518 | AE46: 0.211 | AF46: 182966.3103 | AG46: 1686260.506 | AH46: 0.5389077394
B47: 3000000 | C47: 500000 | D47: 3657100 | E47: Stockholm | F47: 0 | G47: 200000 | H47: 0 | I47: 1 | J47: 50000 | K47: 1000000 | L47: 500000 | M47: 5 | N47: 0.35 | O47: 367977.402 | P47: 0.129 | Q47: 201981.8204 | R47: 1653331.234 | S47: 0.5479119428 | T47: 1243706.568 | U47: 0.436 | V47: 130789.6058 | W47: 1892418.155 | X47: 0.4825358467 | Y47: 308074.104 | Z47: 0.108 | AA47: 206851.6461 | AB47: 1621573.049 | AC47: 0.5565959234 | AD47: 767332.722 | AE47: 0.269 | AF47: 169516.3154 | AG47: 1723994.464 | AH47: 0.5285897394
B48: 0 | C48: 500000 | D48: 657100 | E48: Stockholm | F48: 0 | G48: 0 | H48: 0 | I48: 1 | J48: 50000 | K48: 500000 | L48: 0 | M48: 5 | N48: 0.35 | O48: 137872.722 | P48: 0.269 | Q48: 30458.33333 | R48: 432203.6303 | S48: 0.3422559271 | T48: 125571.81 | U48: 0.245 | V48: 31458.33333 | W48: 431995.9843 | X48: 0.3425719308 | Y48: 51766.338 | Z48: 0.101 | AA48: 37458.33333 | AB48: 428007.1839 | AC48: 0.3486422404 | AD48: 512.538 | AE48: 0.001 | AF48: 41625 | AG48: 415110.342 | AH48: 0.3682691493
B49: 0 | C49: 500000 | D49: 657100 | E49: Stockholm | F49: 0 | G49: 0 | H49: 0 | I49: 1 | J49: 50000 | K49: 500000 | L49: 0 | M49: 5 | N49: 0.35 | O49: 137872.722 | P49: 0.269 | Q49: 30458.33333 | R49: 432203.6303 | S49: 0.3422559271 | T49: 125571.81 | U49: 0.245 | V49: 31458.33333 | W49: 431995.9843 | X49: 0.3425719308 | Y49: 51766.338 | Z49: 0.101 | AA49: 37458.33333 | AB49: 428007.1839 | AC49: 0.3486422404 | AD49: 512.538 | AE49: 0.001 | AF49: 41625 | AG49: 415110.342 | AH49: 0.3682691493
B50: 1000000 | C50: 0 | D50: 1000000 | E50: Stockholm | F50: 1000000 | G50: 1000000 | H50: 0 | I50: 1 | J50: 50000 | K50: 600000 | L50: 600000 | M50: 5 | N50: 0.3 | O50: 780000 | P50: 1 | Q50: 0 | R50: 624000 | S50: 0.376 | T50: 363480 | U50: 0.466 | V50: 33860.90397 | W50: 522880.1802 | X50: 0.4771198198 | Y50: 780000 | Z50: 1 | AA50: 0 | AB50: 585000 | AC50: 0.415 | AD50: 235560 | AE50: 0.302 | AF50: 44260.13291 | AG50: 474735.4391 | AH50: 0.5252645609 | AI50: 406116.5424 | AJ50: 1177020.424 | AK50: 1177020.424
B51: 2000000 | C51: 0 | D51: 2000000 | E51: Stockholm | F51: 1000000 | G51: 1000000 | H51: 0 | I51: 1 | J51: 50000 | K51: 600000 | L51: 600000 | M51: 5 | N51: 0.3 | O51: 1194960 | P51: 0.766 | Q51: 29675.84842 | R51: 1162939.237 | S51: 0.4185303814 | T51: 1143480 | U51: 0.733 | V51: 33860.90397 | W51: 1146880.18 | X51: 0.4265599099 | Y51: 1135680 | Z51: 0.728 | AA51: 34495.0033 | AB51: 1088202.551 | AC51: 0.4558987247 | AD51: 1015560 | AE51: 0.651 | AF51: 44260.13291 | AG51: 1059735.439 | AH51: 0.4701322805 | AI51: 406116.5424 | AJ51: 397020.4238
B52: 2000000 | C52: 0 | D52: 2000000 | E52: Stockholm | F52: 1000000 | G52: 1000000 | H52: 0 | I52: 1 | J52: 50000 | K52: 1200000 | L52: 1200000 | M52: 5 | N52: 0.3 | O52: 1194960 | P52: 0.766 | Q52: 29675.84842 | R52: 1162939.237 | S52: 0.4185303814 | T52: 1110720 | U52: 0.712 | V52: 36524.12114 | W52: 1138926.936 | X52: 0.430536532 | Y52: 1135680 | Z52: 0.728 | AA52: 34495.0033 | AB52: 1088202.551 | AC52: 0.4558987247 | AD52: 982800 | AE52: 0.63 | AF52: 46923.35007 | AG52: 1053100.609 | AH52: 0.4734496956 | AI52: 437714.4727 | AJ52: 745759.7268
B53: 2000000 | C53: 0 | D53: 2000000 | E53: Stockholm | F53: 1000000 | G53: 1000000 | H53: 0 | I53: 1 | J53: 50000 | K53: 1200000 | L53: 1200000 | M53: 5 | N53: 0.3 | O53: 1194960 | P53: 0.766 | Q53: 29675.84842 | R53: 1162939.237 | S53: 0.4185303814 | T53: 1110720 | U53: 0.712 | V53: 36524.12114 | W53: 1138926.936 | X53: 0.430536532 | Y53: 1135680 | Z53: 0.728 | AA53: 34495.0033 | AB53: 1088202.551 | AC53: 0.4558987247 | AD53: 982800 | AE53: 0.63 | AF53: 46923.35007 | AG53: 1053100.609 | AH53: 0.4734496956 | AI53: 437714.4727 | AJ53: 745759.7268
B54: 2000000 | C54: 0 | D54: 2000000 | E54: Stockholm | F54: 0 | G54: 1000000 | H54: 0 | I54: 1 | J54: 50000 | K54: 1200000 | L54: 1200000 | M54: 5 | N54: 0.3 | O54: 1120080 | P54: 0.718 | Q54: 35763.20195 | R54: 1281188.391 | S54: 0.3594058044 | T54: 1110720 | U54: 0.712 | V54: 36524.12114 | W54: 1280222.559 | X54: 0.3598887203 | Y54: 1115400 | Z54: 0.715 | AA54: 36143.66154 | AB54: 1225366.37 | AC54: 0.387316815 | AD54: 982800 | AE54: 0.63 | AF54: 46923.35007 | AG54: 1198334.126 | AH54: 0.4008329368 | AI54: 437714.4727 | AJ54: 745759.7268
B55: 2000000 | C55: 0 | D55: 2000000 | E55: Stockholm | F55: 0 | G55: 1000000 | H55: 0 | I55: 1 | J55: 50000 | K55: 1200000 | L55: 1200000 | M55: 5 | N55: 0.3 | O55: 1120080 | P55: 0.718 | Q55: 35763.20195 | R55: 1281188.391 | S55: 0.3594058044 | T55: 1110720 | U55: 0.712 | V55: 36524.12114 | W55: 1280222.559 | X55: 0.3598887203 | Y55: 1115400 | Z55: 0.715 | AA55: 36143.66154 | AB55: 1225366.37 | AC55: 0.387316815 | AD55: 982800 | AE55: 0.63 | AF55: 46923.35007 | AG55: 1198334.126 | AH55: 0.4008329368 | AI55: 437714.4727 | AJ55: 745759.7268
B56: 2000000 | C56: 0 | D56: 2000000 | E56: Stockholm | F56: 2000000 | G56: 1000000 | H56: 0 | I56: 1 | J56: 50000 | K56: 1200000 | L56: 1200000 | M56: 5 | N56: 0.3 | O56: 1194960 | P56: 0.766 | Q56: 29675.84842 | R56: 1145133.728 | S56: 0.4274331359 | T56: 1110720 | U56: 0.712 | V56: 36524.12114 | W56: 1121395.358 | X56: 0.4393023211 | Y56: 1135680 | Z56: 0.728 | AA56: 34495.0033 | AB56: 1071644.949 | AC56: 0.4641775255 | AD56: 982800 | AE56: 0.63 | AF56: 46923.35007 | AG56: 1036208.203 | AH56: 0.4818958986 | AI56: 437714.4727 | AJ56: 745759.7268
B57: 2000000 | C57: 0 | D57: 2000000 | E57: Stockholm | F57: 2000000 | G57: 1000000 | H57: 0 | I57: 1 | J57: 50000 | K57: 1200000 | L57: 1200000 | M57: 5 | N57: 0.3 | O57: 1194960 | P57: 0.766 | Q57: 29675.84842 | R57: 1145133.728 | S57: 0.4274331359 | T57: 1110720 | U57: 0.712 | V57: 36524.12114 | W57: 1121395.358 | X57: 0.4393023211 | Y57: 1135680 | Z57: 0.728 | AA57: 34495.0033 | AB57: 1071644.949 | AC57: 0.4641775255 | AD57: 982800 | AE57: 0.63 | AF57: 46923.35007 | AG57: 1036208.203 | AH57: 0.4818958986 | AI57: 437714.4727 | AJ57: 745759.7268
B58: 2000000 | C58: 0 | D58: 2000000 | E58: Stockholm | G58: 1000000 | H58: 0 | I58: 1 | J58: 50000 | K58: 1200000 | L58: 1200000 | M58: 5 | N58: 0.3 | O58: 1120080 | P58: 0.718 | Q58: 35763.20195 | R58: 1281188.391 | S58: 0.3594058044 | T58: 1110720 | U58: 0.712 | V58: 36524.12114 | W58: 1280222.559 | X58: 0.3598887203 | Y58: 1115400 | Z58: 0.715 | AA58: 36143.66154 | AB58: 1225366.37 | AC58: 0.387316815 | AD58: 982800 | AE58: 0.63 | AF58: 46923.35007 | AG58: 1198334.126 | AH58: 0.4008329368 | AI58: 437714.4727 | AJ58: 745759.7268
B59: 1000000 | C59: 0 | D59: 1000000 | E59: Stockholm | G59: 1000000 | H59: 0 | I59: 1 | J59: 50000 | K59: 0 | L59: 0 | M59: 5 | N59: 0.3 | O59: 337740 | P59: 0.433 | Q59: 35953.43175 | R59: 657210.2652 | S59: 0.3427897348 | T59: 337740 | U59: 0.433 | V59: 35953.43175 | W59: 657210.2652 | X59: 0.3427897348 | Y59: 335400 | Z59: 0.43 | AA59: 36143.66154 | AB59: 640366.37 | AC59: 0.35963363 | AD59: 267540 | AE59: 0.343 | AF59: 41660.32567 | AG59: 628776.1913 | AH59: 0.3712238087 | AI59: 377372.059 | AJ59: 915315.5905
B60: 1000000 | C60: 0 | D60: 1000000 | E60: Stockholm | F60: 1000000 | G60: 1000000 | H60: 0 | I60: 1 | J60: 50000 | K60: 0 | L60: 0 | M60: 5 | N60: 0.3 | O60: 780000 | P60: 1 | Q60: 0 | R60: 624000 | S60: 0.376 | T60: 395460 | U60: 0.507 | V60: 31261.09674 | W60: 534395.3931 | X60: 0.4656046069 | Y60: 780000 | Z60: 1 | AA60: 0 | AB60: 585000 | AC60: 0.415 | AD60: 267540 | AE60: 0.343 | AF60: 41660.32567 | AG60: 486211.5363 | AH60: 0.5137884637 | AI60: 374556.658 | AJ60: 829441.5804
B61: 1000000 | C61: 0 | D61: 1000000 | E61: Stockholm | F61: 1000000 | G61: 1000000 | H61: 0 | I61: 1 | J61: 50000 | K61: 5000000 | L61: 5000000 | M61: 5 | N61: 0.3 | O61: 780000 | P61: 1 | Q61: 0 | R61: 624000 | S61: 0.376 | T61: 195780 | U61: 0.251 | V61: 47494.03947 | W61: 476467.8594 | X61: 0.5235321406 | Y61: 780000 | Z61: 1 | AA61: 0 | AB61: 585000 | AC61: 0.415 | AD61: Ej Möjlig | AE61: Ej möjlig | AF61: Ej Möjlig | AG61: 0 | AH61: 1 | AI61: 569280 | AJ61: 3626519.237
B62: 1000000 | C62: 0 | D62: 1000000 | E62: Stockholm | F62: 0 | G62: 1000000 | H62: 0 | I62: 1 | J62: 50000 | K62: 1000000 | L62: 1000000 | M62: 5 | N62: 0.3 | O62: 337740 | P62: 0.433 | Q62: 35953.43175 | R62: 657210.2652 | S62: 0.3427897348 | T62: 337740 | U62: 0.433 | V62: 35953.43175 | W62: 657210.2652 | X62: 0.3427897348 | Y62: 335400 | Z62: 0.43 | AA62: 36143.66154 | AB62: 640366.37 | AC62: 0.35963363 | AD62: 213720 | AE62: 0.274 | AF62: 46035.61102 | AG62: 615751.1616 | AH62: 0.3842488384 | AI62: 427372.059 | AJ62: 1415315.59
B63: 1000000 | C63: 0 | D63: 1000000 | E63: Stockholm | F63: 0 | G63: 0 | H63: 0 | I63: 1 | J63: 50000 | K63: 1000000 | L63: 1000000 | M63: 5 | N63: 0.3 | O63: 163020 | P63: 0.209 | Q63: 50157.25663 | R63: 611965.5146 | S63: 0.3880344854 | T63: 337740 | U63: 0.433 | V63: 35953.43175 | W63: 657210.2652 | X63: 0.3427897348 | Y63: 103740 | Z63: 0.133 | AA63: 54976.41151 | AB63: 587324.7761 | AC63: 0.4126752239 | AD63: 213720 | AE63: 0.274 | AF63: 46035.61102 | AG63: 615751.1616 | AH63: 0.3842488384 | AI63: 427372.059 | AJ63: 382615.5905
B64: 1000000 | C64: 0 | D64: 1000000 | E64: Stockholm | F64: 100000 | G64: 0 | H64: 0 | I64: 1 | J64: 50000 | K64: 1000000 | L64: 1000000 | M64: 5 | N64: 0.3 | O64: 163020 | P64: 0.209 | Q64: 50157.25663 | R64: 580650.0602 | S64: 0.4193499398 | T64: 341640 | U64: 0.438 | V64: 35636.38208 | W64: 631207.5455 | X64: 0.3687924545 | Y64: 103740 | Z64: 0.133 | AA64: 54976.41151 | AB64: 556917.1154 | AC64: 0.4430828846 | AD64: 213720 | AE64: 0.274 | AF64: 46035.61102 | AG64: 585811.8377 | AH64: 0.4141881623 | AI64: 427181.8292 | AJ64: 376813.2925
B65: 1000000 | C65: 0 | D65: 1000000 | E65: Stockholm | F65: 100000 | G65: 0 | H65: 0 | I65: 1 | J65: 50000 | K65: 1000000 | L65: 1000000 | M65: 5 | N65: 0.3 | O65: 163020 | P65: 0.209 | Q65: 50157.25663 | R65: 580650.0602 | S65: 0.4193499398 | T65: 341640 | U65: 0.438 | V65: 35636.38208 | W65: 631207.5455 | X65: 0.3687924545 | Y65: 103740 | Z65: 0.133 | AA65: 54976.41151 | AB65: 556917.1154 | AC65: 0.4430828846 | AD65: 213720 | AE65: 0.274 | AF65: 46035.61102 | AG65: 585811.8377 | AH65: 0.4141881623 | AI65: 427181.8292 | AJ65: 376813.2925
B66: 1000000 | C66: 0 | D66: 1000000 | E66: Stockholm | F66: 100000 | G66: 0 | H66: 0 | I66: 1 | J66: 50000 | K66: 1000000 | L66: 1000000 | M66: 5 | N66: 0.3 | O66: 163020 | P66: 0.209 | Q66: 50157.25663 | R66: 580650.0602 | S66: 0.4193499398 | T66: 341640 | U66: 0.438 | V66: 35636.38208 | W66: 631207.5455 | X66: 0.3687924545 | Y66: 103740 | Z66: 0.133 | AA66: 54976.41151 | AB66: 556917.1154 | AC66: 0.4430828846 | AD66: 213720 | AE66: 0.274 | AF66: 46035.61102 | AG66: 585811.8377 | AH66: 0.4141881623 | AI66: 427181.8292 | AJ66: 376813.2925
B67: 1000000 | C67: 0 | D67: 1000000 | E67: Stockholm | F67: 100000 | G67: 0 | H67: 0 | I67: 1 | J67: 50000 | K67: 1000000 | L67: 1000000 | M67: 5 | N67: 0.3 | O67: 163020 | P67: 0.209 | Q67: 50157.25663 | R67: 580650.0602 | S67: 0.4193499398 | T67: 341640 | U67: 0.438 | V67: 35636.38208 | W67: 631207.5455 | X67: 0.3687924545 | Y67: 103740 | Z67: 0.133 | AA67: 54976.41151 | AB67: 556917.1154 | AC67: 0.4430828846 | AD67: 213720 | AE67: 0.274 | AF67: 46035.61102 | AG67: 585811.8377 | AH67: 0.4141881623 | AI67: 427181.8292 | AJ67: 376813.2925
B68: 1000000 | C68: 0 | D68: 1000000 | E68: Stockholm | F68: 100000 | G68: 0 | H68: 0 | I68: 1 | J68: 50000 | K68: 1000000 | L68: 1000000 | M68: 5 | N68: 0.3 | O68: 163020 | P68: 0.209 | Q68: 50157.25663 | R68: 580650.0602 | S68: 0.4193499398 | T68: 341640 | U68: 0.438 | V68: 35636.38208 | W68: 631207.5455 | X68: 0.3687924545 | Y68: 103740 | Z68: 0.133 | AA68: 54976.41151 | AB68: 556917.1154 | AC68: 0.4430828846 | AD68: 213720 | AE68: 0.274 | AF68: 46035.61102 | AG68: 585811.8377 | AH68: 0.4141881623 | AI68: 427181.8292 | AJ68: 376813.2925
B69: 1000000 | C69: 0 | D69: 1000000 | E69: Stockholm | F69: 100000 | G69: 0 | H69: 0 | I69: 1 | J69: 50000 | K69: 1000000 | L69: 1000000 | M69: 5 | N69: 0.3 | O69: 163020 | P69: 0.209 | Q69: 50157.25663 | R69: 580650.0602 | S69: 0.4193499398 | T69: 341640 | U69: 0.438 | V69: 35636.38208 | W69: 631207.5455 | X69: 0.3687924545 | Y69: 103740 | Z69: 0.133 | AA69: 54976.41151 | AB69: 556917.1154 | AC69: 0.4430828846 | AD69: 213720 | AE69: 0.274 | AF69: 46035.61102 | AG69: 585811.8377 | AH69: 0.4141881623 | AI69: 427181.8292 | AJ69: 376813.2925
B70: 1000000 | C70: 0 | D70: 1000000 | E70: Stockholm | F70: 100000 | G70: 0 | H70: 0 | I70: 1 | J70: 50000 | K70: 1000000 | L70: 1000000 | M70: 5 | N70: 0.3 | O70: 163020 | P70: 0.209 | Q70: 50157.25663 | R70: 580650.0602 | S70: 0.4193499398 | T70: 341640 | U70: 0.438 | V70: 35636.38208 | W70: 631207.5455 | X70: 0.3687924545 | Y70: 103740 | Z70: 0.133 | AA70: 54976.41151 | AB70: 556917.1154 | AC70: 0.4430828846 | AD70: 213720 | AE70: 0.274 | AF70: 46035.61102 | AG70: 585811.8377 | AH70: 0.4141881623 | AI70: 427181.8292 | AJ70: 376813.2925
B71: 1000000 | C71: 0 | D71: 1000000 | E71: Stockholm | F71: 100000 | G71: 0 | H71: 0 | I71: 1 | J71: 50000 | K71: 1000000 | L71: 1000000 | M71: 5 | N71: 0.3 | O71: 163020 | P71: 0.209 | Q71: 50157.25663 | R71: 580650.0602 | S71: 0.4193499398 | T71: 341640 | U71: 0.438 | V71: 35636.38208 | W71: 631207.5455 | X71: 0.3687924545 | Y71: 103740 | Z71: 0.133 | AA71: 54976.41151 | AB71: 556917.1154 | AC71: 0.4430828846 | AD71: 213720 | AE71: 0.274 | AF71: 46035.61102 | AG71: 585811.8377 | AH71: 0.4141881623 | AI71: 427181.8292 | AJ71: 376813.2925
B72: 200000 | C72: 670000 | D72: 1080514 | E72: Stockholm | F72: 0 | G72: 0 | H72: 0 | I72: 1 | J72: 50000 | K72: 1000000 | L72: 330000 | M72: 15 | N72: 0.3 | O72: 162660.5776 | P72: 0.193 | Q72: 55291.86311 | R72: 619781.1737 | S72: 0.4264015333 | T72: 390216.826 | U72: 0.463 | V72: 36792.72675 | W72: 689887.1484 | X72: 0.3615194727 | Y72: 103664.5132 | Z72: 0.123 | AA72: 60087.9355 | AB72: 593324.5306 | AC72: 0.4508867719 | AD72: 173616.9895 | AE72: 0.206 | AF72: 54401.16395 | AG72: 614808.046 | AH72: 0.4310040906 | AI72: 394375.6361 | AJ72: 174.5345635
B73: 200000 | C73: 670000 | D73: 1080514 | E73: Arjeplog | F73: 0 | G73: 0 | H73: 0 | I73: 1 | J73: 50000 | K73: 1000000 | L73: 330000 | M73: 15 | N73: 0.3 | O73: 162660.5776 | P73: 0.193 | Q73: 55291.86311 | R73: 587534.9591 | S73: 0.4562449361 | T73: 390216.826 | U73: 0.463 | V73: 36792.72675 | W73: 668429.6302 | X73: 0.381378094 | Y73: 103664.5132 | Z73: 0.123 | AA73: 60087.9355 | AB73: 558281.2466 | AC73: 0.4833188218 | AD73: 173616.9895 | AE73: 0.206 | AF73: 54401.16395 | AG73: 583081.2872 | AH73: 0.4603667447 | AI73: 394375.6361 | AJ73: 174.5345635
B74: 200000 | C74: 670000 | D74: 1080514 | E74: Stockholm | F74: 0 | G74: 0 | H74: 0 | I74: 1 | J74: 50000 | K74: 1000000 | L74: 330000 | M74: 15 | N74: 0.3 | O74: 162660.5776 | P74: 0.193 | Q74: 55291.86311 | R74: 619781.1737 | S74: 0.4264015333 | T74: 390216.826 | U74: 0.463 | V74: 36792.72675 | W74: 689887.1484 | X74: 0.3615194727 | Y74: 103664.5132 | Z74: 0.123 | AA74: 60087.9355 | AB74: 593324.5306 | AC74: 0.4508867719 | AD74: 173616.9895 | AE74: 0.206 | AF74: 54401.16395 | AG74: 614808.046 | AH74: 0.4310040906 | AI74: 394375.6361 | AJ74: 174.5345635
B75: 500000 | C75: 670000 | D75: 1380514 | E75: Stockholm | F75: 0 | G75: 0 | H75: 0 | I75: 1 | J75: 50000 | K75: 1000000 | L75: 330000 | M75: 15 | N75: 0.3 | O75: 162596.9389 | P75: 0.151 | Q75: 74320.01636 | R75: 722655.3546 | S75: 0.4765316726 | T75: 466254.7984 | U75: 0.433 | V75: 49634.21587 | W75: 830994.6068 | X75: 0.398054198 | Y75: 103372.8883 | Z75: 0.096 | AA75: 79134.62284 | AB75: 696154.1596 | AC75: 0.495728287 | AD75: 219667.3877 | AE75: 0.204 | AF75: 69680.48648 | AG75: 732171.176 | AH75: 0.4696387172 | AI75: 402080.5295 | AJ75: 1185.496877
B76: 500000 | C76: 670000 | D76: 1380514 | E76: Stockholm | F76: 0 | G76: 0 | H76: 0 | I76: 1 | J76: 50000 | K76: 1000000 | L76: 330000 | M76: 15 | N76: 0.3 | O76: 162596.9389 | P76: 0.151 | Q76: 74320.01636 | R76: 722655.3546 | S76: 0.4765316726 | T76: 466254.7984 | U76: 0.433 | V76: 49634.21587 | W76: 830994.6068 | X76: 0.398054198 | Y76: 103372.8883 | Z76: 0.096 | AA76: 79134.62284 | AB76: 696154.1596 | AC76: 0.495728287 | AD76: 219667.3877 | AE76: 0.204 | AF76: 69680.48648 | AG76: 732171.176 | AH76: 0.4696387172 | AI76: 402080.5295 | AJ76: 1185.496877
B77: 500000 | C77: 670000 | D77: 1380514 | E77: Stockholm | F77: 0 | G77: 0 | H77: 0 | I77: 1 | J77: 50000 | K77: 1000000 | L77: 330000 | M77: 15 | N77: 0.3 | O77: 162596.9389 | P77: 0.151 | Q77: 74320.01636 | R77: 722655.3546 | S77: 0.4765316726 | T77: 466254.7984 | U77: 0.433 | V77: 49634.21587 | W77: 830994.6068 | X77: 0.398054198 | Y77: 103372.8883 | Z77: 0.096 | AA77: 79134.62284 | AB77: 696154.1596 | AC77: 0.495728287 | AD77: 219667.3877 | AE77: 0.204 | AF77: 69680.48648 | AG77: 732171.176 | AH77: 0.4696387172 | AI77: 402080.5295 | AJ77: 1185.496877
B78: 0 | C78: 0 | D78: 500000 | E78: Stockholm | F78: 500000 | G78: 0 | H78: 500000 | I78: 1 | J78: 50000 | K78: 0 | L78: 0 | M78: 15 | N78: 0.3 | O78: 163000 | P78: 0.326 | Q78: 21369.14726 | R78: 294968.0228 | S78: 0.4100639544 | T78: 7500 | U78: 0.015 | V78: 31229.39177 | W78: 236866.1449 | X78: 0.5262677101 | Y78: 103500 | Z78: 0.207 | AA78: 25142.03825 | AB78: 267970.7935 | AC78: 0.464058413 | AD78: Ej Möjlig | AE78: Ej möjlig | AF78: Ej Möjlig | AG78: 0 | AH78: 1 | AI78: 374537.6351 | AJ78: 184511.3506
B79: 0 | C79: 0 | D79: 800000 | E79: Stockholm | F79: 500000 | G79: 0 | H79: 800000 | I79: 1 | J79: 50000 | K79: 0 | L79: 0 | M79: 15 | N79: 0.3 | O79: 162400 | P79: 0.203 | Q79: 40430.17298 | R79: 421114.2779 | S79: 0.4736071526 | T79: 223200 | U79: 0.279 | V79: 36574.84908 | W79: 443929.2654 | X79: 0.4450884183 | Y79: 103200 | Z79: 0.129 | AA79: 44184.04099 | AB79: 390329.0519 | AC79: 0.5120886851 | AD79: 68000 | AE79: 0.085 | AF79: 46416.07061 | AG79: 379737.1785 | AH79: 0.5253285269 | AI79: 377744.9095 | AJ79: 884.0945062
B80: 0 | C80: 0 | D80: 800000 | E80: Stockholm | F80: 500000 | G80: 0 | H80: 800000 | I80: 1 | J80: 50000 | K80: 0 | L80: 0 | M80: 15 | N80: 0.3 | O80: 162400 | P80: 0.203 | Q80: 40430.17298 | R80: 356975.5219 | S80: 0.5537805976 | T80: 223200 | U80: 0.279 | V80: 36574.84908 | W80: 382003.5196 | X80: 0.5224956005 | Y80: 103200 | Z80: 0.129 | AA80: 44184.04099 | AB80: 321190.2959 | AC80: 0.5985121301 | AD80: 68000 | AE80: 0.085 | AF80: 46416.07061 | AG80: 310598.4225 | AH80: 0.6117519718 | AI80: 377744.9095 | AJ80: 884.0945062
B81: 500000 | C81: 0 | D81: 650000 | E81: Stockholm | F81: 500000 | G81: 0 | H81: 800000 | I81: 0.5 | J81: 50000 | K81: 2000000 | L81: 2000000 | M81: 15 | N81: 0.3 | O81: 81250 | P81: 0.125 | Q81: 36064.39913 | R81: 265850.8259 | S81: 0.5909987294 | T81: 18850 | U81: 0.029 | V81: 40021.17892 | W81: 239189.7831 | X81: 0.6320157184 | Y81: 51350 | Z81: 0.079 | AA81: 37960.35611 | AB81: 249419.8493 | AC81: 0.616277155 | AD81: Ej Möjlig | AE81: Ej möjlig | AF81: Ej Möjlig | AG81: 0 | AH81: 1 | AI81: 479812.7074 | AJ81: 605848.5368
B82: 3000000 | C82: 0 | D82: 1900000 | E82: Stockholm | F82: 500000 | G82: 0 | H82: 800000 | I82: 0.5 | J82: 50000 | K82: 2000000 | L82: 2000000 | M82: 15 | N82: 0.3 | O82: 79800 | P82: 0.042 | Q82: 115418.7592 | R82: 699041.5575 | S82: 0.6320833908 | T82: 713404 | U82: 0.422 | V82: 69636.78791 | W82: 954710.787 | X82: 0.4975206384 | Y82: 51300 | Z82: 0.027 | AA82: 117225.9423 | AB82: 685174.5791 | AC82: 0.6393818005 | AD82: 326800 | AE82: 0.172 | AF82: 99756.50586 | AG82: 797622.8176 | AH82: 0.5801985171 | AI82: 497582.0727 | AJ82: 141.3637194
B83: 3000000 | C83: 0 | D83: 1900000 | E83: Stockholm | F83: 500000 | G83: 0 | H83: 800000 | I83: 0.5 | J83: 50000 | K83: 2000000 | L83: 2000000 | M83: 15 | N83: 0.3 | O83: 79800 | P83: 0.042 | Q83: 115418.7592 | R83: 699041.5575 | S83: 0.6320833908 | T83: 713404 | U83: 0.422 | V83: 69636.78791 | W83: 954710.787 | X83: 0.4975206384 | Y83: 51300 | Z83: 0.027 | AA83: 117225.9423 | AB83: 685174.5791 | AC83: 0.6393818005 | AD83: 326800 | AE83: 0.172 | AF83: 99756.50586 | AG83: 797622.8176 | AH83: 0.5801985171 | AI83: 497582.0727 | AJ83: 141.3637194
B84: 0 | C84: 0 | D84: 500000 | E84: Stockholm | F84: 500000 | G84: 0 | H84: 1000000 | I84: 0.5 | J84: 50000 | K84: 0 | L84: 0 | M84: 15 | N84: 0.3 | O84: 81500 | P84: 0.163 | Q84: 26537.05676 | R84: 214292.1412 | S84: 0.5714157177 | T84: 7500 | U84: 0.015 | V84: 31229.39177 | W84: 180652.0465 | X84: 0.638695907 | Y84: 51500 | Z84: 0.103 | AA84: 28439.35474 | AB84: 198216.5185 | AC84: 0.6035669629 | AD84: Ej Möjlig | AE84: Ej möjlig | AF84: Ej Möjlig | AG84: 0 | AH84: 1 | AI84: 374537.6351 | AJ84: 90823.17532
B85: 0 | C85: 0 | D85: 1000000 | E85: Stockholm | F85: 500000 | G85: 0 | H85: 2000000 | I85: 0.5 | J85: 50000 | K85: 0 | L85: 0 | M85: 15 | N85: 0.3 | O85: 81000 | P85: 0.081 | Q85: 58273.728 | R85: 384393.4005 | S85: 0.6156065995 | T85: 163000 | U85: 0.163 | V85: 53074.11353 | W85: 425784.4521 | X85: 0.5742155479 | Y85: 51000 | Z85: 0.051 | AA85: 60176.02597 | AB85: 370859.6841 | AC85: 0.6291403159 | AD85: 36000 | AE85: 0.036 | AF85: 61127.17496 | AG85: 366117.826 | AH85: 0.633882174 | AI85: 387644.4681 | AJ85: 857.3405874
B86: 0 | C86: 0 | D86: 1000000 | E86: Stockholm | F86: 500000 | G86: 200000 | H86: 2000000 | I86: 0.5 | J86: 50000 | K86: 2000000 | L86: 2000000 | M86: 15 | N86: 0.3 | O86: 288000 | P86: 0.288 | Q86: 45147.87196 | R86: 481016.5324 | S86: 0.5189834676 | T86: 369000 | U86: 0.369 | V86: 40011.66743 | W86: 519241.2775 | X86: 0.4807587225 | Y86: 258000 | Z86: 0.258 | AA86: 47050.16994 | AB86: 457589.3676 | AC86: 0.5424106324 | AD86: 293000 | AE86: 0.293 | AF86: 44830.8223 | AG86: 468121.0599 | AH86: 0.5318789401 | AI86: 479807.0005 | AJ86: 462210.0023
B87: 500000 | C87: 0 | D87: 500000 | E87: Stockholm | F87: 0 | G87: 0 | H87: 0 | I87: 1 | J87: 50000 | K87: 0 | L87: 0 | M87: 15 | N87: 0.3 | O87: 21060 | P87: 0.054 | Q87: 29992.89809 | R87: 331127.5677 | S87: 0.3377448646 | T87: 3900 | U87: 0.01 | V87: 31387.9166 | W87: 330724.1198 | X87: 0.3385517604 | Y87: 1560 | Z87: 0.004 | AA87: 31578.1464 | AB87: 330583.1609 | AC87: 0.3388336782 | AD87: Ej Möjlig | AE87: Ej möjlig | AF87: Ej Möjlig | AG87: 0 | AH87: 1 | AI87: 374632.75 | AJ87: 189062.4996
B88: 2000000 | C88: 0 | D88: 2000000 | E88: Stockholm | F88: 0 | G88: 0 | H88: 0 | I88: 1 | J88: 50000 | K88: 0 | L88: 0 | M88: 15 | N88: 0.3 | O88: 162240 | P88: 0.104 | Q88: 113630.5991 | R88: 939605.8738 | S88: 0.5301970631 | T88: 513240 | U88: 0.329 | V88: 85096.12946 | W88: 1059220.362 | X88: 0.4703898191 | Y88: 102960 | Z88: 0.066 | AA88: 118449.754 | AB88: 905216.1901 | AC88: 0.547391905 | AD88: 248040 | AE88: 0.159 | AF88: 106655.5065 | AG88: 948954.5115 | AH88: 0.5255227443 | AI88: 406857.6777 | AJ88: 1971.776746
B89: 2000000 | C89: 0 | D89: 2000000 | E89: Stockholm | F89: 0 | G89: 0 | H89: 0 | I89: 1 | J89: 50000 | K89: 0 | L89: 0 | M89: 15 | N89: 0.3 | O89: 162240 | P89: 0.104 | Q89: 113630.5991 | R89: 939605.8738 | S89: 0.5301970631 | T89: 513240 | U89: 0.329 | V89: 85096.12946 | W89: 1059220.362 | X89: 0.4703898191 | Y89: 102960 | Z89: 0.066 | AA89: 118449.754 | AB89: 905216.1901 | AC89: 0.547391905 | AD89: 248040 | AE89: 0.159 | AF89: 106655.5065 | AG89: 948954.5115 | AH89: 0.5255227443 | AI89: 406857.6777 | AJ89: 1971.776746
B90: 2000000 | C90: 0 | D90: 2000000 | E90: Stockholm | F90: 0 | G90: 0 | H90: 0 | I90: 1 | J90: 50000 | K90: 0 | L90: 0 | M90: 15 | N90: 0.3 | O90: 162240 | P90: 0.104 | Q90: 113630.5991 | R90: 939605.8738 | S90: 0.5301970631 | T90: 513240 | U90: 0.329 | V90: 85096.12946 | W90: 1059220.362 | X90: 0.4703898191 | Y90: 102960 | Z90: 0.066 | AA90: 118449.754 | AB90: 905216.1901 | AC90: 0.547391905 | AD90: 248040 | AE90: 0.159 | AF90: 106655.5065 | AG90: 948954.5115 | AH90: 0.5255227443 | AI90: 406857.6777 | AJ90: 1971.776746
B91: 2000000 | C91: 0 | D91: 2000000 | E91: Stockholm | F91: 0 | G91: 0 | H91: 0 | I91: 1 | J91: 50000 | K91: 0 | L91: 0 | M91: 15 | N91: 0.3 | O91: 162240 | P91: 0.104 | Q91: 113630.5991 | R91: 939605.8738 | S91: 0.5301970631 | T91: 513240 | U91: 0.329 | V91: 85096.12946 | W91: 1059220.362 | X91: 0.4703898191 | Y91: 102960 | Z91: 0.066 | AA91: 118449.754 | AB91: 905216.1901 | AC91: 0.547391905 | AD91: 248040 | AE91: 0.159 | AF91: 106655.5065 | AG91: 948954.5115 | AH91: 0.5255227443 | AI91: 406857.6777 | AJ91: 1971.776746
B92: 2000000 | C92: 200 | D92: 2000262.84 | E92: Stockholm | F92: 0 | G92: 0 | H92: 0 | I92: 1 | J92: 50000 | K92: 0 | L92: -200 | M92: 15 | N92: 0.3 | O92: 162261.3216 | P92: 0.104 | Q92: 113645.5324 | R92: 939723.3189 | S92: 0.5302000816 | T92: 513307.45 | U92: 0.329 | V92: 85107.31279 | W92: 1059353.527 | X92: 0.4703928377 | Y92: 102973.531 | Z92: 0.066 | AA92: 118465.3206 | AB92: 905329.1157 | AC92: 0.5473949235 | AD92: 248072.5974 | AE92: 0.159 | AF92: 106669.5232 | AG92: 949073.1852 | AH92: 0.5255257628 | AI92: 406854.3877 | AJ92: 1871.426746
B93: 2000000 | C93: 200 | D93: 2000262.84 | E93: Stockholm | F93: 0 | G93: 0 | H93: 0 | I93: 1 | J93: 50000 | K93: 0 | L93: -200 | M93: 15 | N93: 0.3 | O93: 162261.3216 | P93: 0.104 | Q93: 113645.5324 | R93: 939723.3189 | S93: 0.5302000816 | T93: 513307.45 | U93: 0.329 | V93: 85107.31279 | W93: 1059353.527 | X93: 0.4703928377 | Y93: 102973.531 | Z93: 0.066 | AA93: 118465.3206 | AB93: 905329.1157 | AC93: 0.5473949235 | AD93: 248072.5974 | AE93: 0.159 | AF93: 106669.5232 | AG93: 949073.1852 | AH93: 0.5255257628 | AI93: 406854.3877 | AJ93: 1871.426746
B94: 400000 | C94: 100 | D94: 400131.42 | E94: Stockholm | F94: 0 | G94: 0 | H94: 0 | I94: 1 | J94: 50000 | K94: 0 | L94: -100 | M94: 15 | N94: 0.3 | O94: 2184.717553 | P94: 0.007 | Q94: 25194.7002 | R94: 268432.2232 | S94: 0.329139853 | T94: Ej Möjlig | U94: Ej Möjlig | V94: Ej Möjlig | W94: 0 | X94: 1 | Y94: 0 | Z94: 0 | AA94: 25372.30635 | AB94: 268430.451 | AC94: 0.3291442822 | AD94: Ej Möjlig | AE94: Ej möjlig | AF94: Ej Möjlig | AG94: 0 | AH94: 1
B95: 400000 | C95: 100 | D95: 400131.42 | E95: Stockholm | F95: 0 | G95: 0 | H95: 0 | I95: 1 | J95: 50000 | K95: 0 | L95: -100 | M95: 15 | N95: 0.3 | O95: 2184.717553 | P95: 0.007 | Q95: 25194.7002 | R95: 268432.2232 | S95: 0.329139853 | T95: Ej Möjlig | U95: Ej Möjlig | V95: Ej Möjlig | W95: 0 | X95: 1 | Y95: 0 | Z95: 0 | AA95: 25372.30635 | AB95: 268430.451 | AC95: 0.3291442822 | AD95: Ej Möjlig | AE95: Ej möjlig | AF95: Ej Möjlig | AG95: 0 | AH95: 1
B96: 400000 | C96: 100 | D96: 400131.42 | E96: Stockholm | F96: 0 | G96: 0 | H96: 0 | I96: 1 | J96: 50000 | K96: 0 | L96: -100 | M96: 15 | N96: 0.3 | O96: 2184.717553 | P96: 0.007 | Q96: 25194.7002 | R96: 268432.2232 | S96: 0.329139853 | T96: Ej Möjlig | U96: Ej Möjlig | V96: Ej Möjlig | W96: 0 | X96: 1 | Y96: 0 | Z96: 0 | AA96: 25372.30635 | AB96: 268430.451 | AC96: 0.3291442822 | AD96: Ej Möjlig | AE96: Ej möjlig | AF96: Ej Möjlig | AG96: 0 | AH96: 1
B97: 400000 | C97: 100 | D97: 400131.42 | E97: Stockholm | F97: 0 | G97: 0 | H97: 0 | I97: 1 | J97: 50000 | K97: 0 | L97: -100 | M97: 15 | N97: 0.3 | O97: 2184.717553 | P97: 0.007 | Q97: 25194.7002 | R97: 268432.2232 | S97: 0.329139853 | T97: Ej Möjlig | U97: Ej Möjlig | V97: Ej Möjlig | W97: 0 | X97: 1 | Y97: 0 | Z97: 0 | AA97: 25372.30635 | AB97: 268430.451 | AC97: 0.3291442822 | AD97: Ej Möjlig | AE97: Ej möjlig | AF97: Ej Möjlig | AG97: 0 | AH97: 1 | AI97: 370911.8201
B98: 400000 | C98: 100 | D98: 400131.42 | E98: Stockholm | F98: 0 | G98: 0 | H98: 0 | I98: 1 | J98: 50000 | K98: 0 | L98: -100 | M98: 15 | N98: 0.3 | O98: 2184.717553 | P98: 0.007 | Q98: 25194.7002 | R98: 268432.2232 | S98: 0.329139853 | T98: Ej Möjlig | U98: Ej Möjlig | V98: Ej Möjlig | W98: 0 | X98: 1 | Y98: 0 | Z98: 0 | AA98: 25372.30635 | AB98: 268430.451 | AC98: 0.3291442822 | AD98: Ej Möjlig | AE98: Ej möjlig | AF98: Ej Möjlig | AG98: 0 | AH98: 1 | AI98: 370911.8201
B99: 600000 | C99: 100 | D99: 600131.42 | E99: Stockholm | F99: 0 | G99: 0 | H99: 0 | I99: 1 | J99: 50000 | K99: 0 | L99: -100 | M99: 15 | N99: 0.3 | O99: 101578.2441 | P99: 0.217 | Q99: 29796.5113 | R99: 393621.1147 | S99: 0.3441084709 | T99: 81917.93883 | U99: 0.175 | V99: 31394.7916 | W99: 393210.2271 | X99: 0.3447931337 | Y99: 25277.53541 | Z99: 0.054 | AA99: 35999.36104 | AB99: 390632.3364 | AC99: 0.3490886773 | AD99: Ej Möjlig | AE99: Ej möjlig | AF99: Ej Möjlig | AG99: 0 | AH99: 1 | AI99: 374631.875 | AJ99: 111035.8108
B100: 300000 | C100: 100 | D100: 300131.42 | E100: Stockholm | F100: 0 | G100: 0 | H100: 0 | I100: 1 | J100: 50000 | K100: 0 | L100: -100 | M100: 15 | N100: 0.3 | O100: 468.2050152 | P100: 0.002 | Q100: 18993.25047 | R100: 205512.5223 | S100: 0.3152582217 | T100: Ej Möjlig | U100: Ej Möjlig | V100: Ej Möjlig | W100: 0 | X100: 1 | Y100: 468.2050152 | Z100: 0.002 | AA100: 18993.25047 | AB100: 205489.112 | AC100: 0.3153362217 | AD100: Ej Möjlig | AE100: Ej möjlig | AF100: Ej Möjlig | AG100: 0 | AH100: 1 | AI100: 367190.9503
B101: 600000 | C101: 100 | D101: 600131.42 | E101: Stockholm | F101: 0 | G101: 0 | H101: 0 | I101: 1 | J101: 50000 | K101: 0 | L101: -100 | M101: 15 | N101: 0.3 | O101: 101578.2441 | P101: 0.217 | Q101: 29796.5113 | R101: 393621.1147 | S101: 0.3441084709 | T101: 81917.93883 | U101: 0.175 | V101: 31394.7916 | W101: 393210.2271 | X101: 0.3447931337 | Y101: 25277.53541 | Z101: 0.054 | AA101: 35999.36104 | AB101: 390632.3364 | AC101: 0.3490886773 | AD101: Ej Möjlig | AE101: Ej möjlig | AF101: Ej Möjlig | AG101: 0 | AH101: 1 | AI101: 374631.875 | AJ101: 111035.8108
B102: 600000 | C102: 100 | D102: 600131.42 | E102: Stockholm | F102: 0 | G102: 0 | H102: 0 | I102: 1 | J102: 50000 | K102: 0 | L102: -100 | M102: 15 | N102: 0.3 | O102: 101578.2441 | P102: 0.217 | Q102: 29796.5113 | R102: 393621.1147 | S102: 0.3441084709 | T102: 81917.93883 | U102: 0.175 | V102: 31394.7916 | W102: 393210.2271 | X102: 0.3447931337 | Y102: 25277.53541 | Z102: 0.054 | AA102: 35999.36104 | AB102: 390632.3364 | AC102: 0.3490886773 | AD102: Ej Möjlig | AE102: Ej möjlig | AF102: Ej Möjlig | AG102: 0 | AH102: 1 | AI102: 374631.875 | AJ102: 111035.8108
B103: 900000 | C103: 300000 | D103: 1294260 | E103: Stockholm | F103: 250000 | G103: 100000 | H103: 0 | I103: 1 | J103: 50000 | K103: 0 | L103: -300000 | M103: 15 | N103: 0.3 | O103: 265504.4964 | P103: 0.263 | Q103: 60484.80825 | R103: 620755.3457 | S103: 0.5203781731 | T103: 301847.3172 | U103: 0.299 | V103: 57530.32643 | W103: 632712.3124 | X103: 0.5111397151 | Y103: 206952.174 | Z103: 0.205 | AA103: 65244.80673 | AB103: 587519.9153 | AC103: 0.5460572719 | AD103: 162533.1708 | AE103: 0.161 | AF103: 68855.84005 | AG103: 569017.7445 | AH103: 0.5603528313 | AI103: 375318.1959 | AJ103: 1239.641406
B104: 900000 | C104: 300000 | D104: 844260 | E104: Stockholm | F104: 250000 | G104: 100000 | H104: 0 | I104: 0.5 | J104: 50000 | K104: 0 | L104: -300000 | M104: 15 | N104: 0.3 | O104: 184386.384 | P104: 0.28 | Q104: 38544.81814 | R104: 436190.1599 | S104: 0.4833461731 | T104: 155411.3808 | U104: 0.236 | V104: 40900.3348 | W104: 425633.1012 | X104: 0.4958506844 | Y104: 154752.858 | Z104: 0.235 | AA104: 40953.86927 | AB104: 417783.7074 | AC104: 0.5051480499 | AD104: 114582.9672 | AE104: 0.174 | AF104: 44219.47192 | AG104: 405000.4747 | AH104: 0.5202893958 | AI104: 365340.2009 | AJ104: 194.6236133
B105: 300000 | C105: 0 | D105: 150000 | E105: Stockholm | F105: 250000 | G105: 100000 | H105: 0 | I105: 0.5 | J105: 50000 | K105: 0 | L105: 0 | M105: 15 | N105: 0.3 | O105: 6786 | P105: 0.058 | Q105: 8959.823467 | R105: 94474.58511 | S105: 0.3701694326 | T105: Ej Möjlig | U105: Ej Möjlig | V105: Ej Möjlig | W105: 0 | X105: 1 | Y105: 0 | Z105: 0 | AA105: 9511.48988 | AB105: 94320.7052 | AC105: 0.3711952987 | AD105: Ej Möjlig | AE105: Ej möjlig | AF105: Ej Möjlig | AG105: 0 | AH105: 1 | AI105: 361175.8941
B106: 750000 | C106: 200000 | D106: 825340 | E106: Stockholm | F106: 250000 | G106: 100000 | H106: 0 | I106: 0.75 | J106: 50000 | K106: 0 | L106: -200000 | M106: 15 | N106: 0.3 | O106: 225317.82 | P106: 0.35 | Q106: 34017.58992 | R106: 444137.0591 | S106: 0.4618738228 | T106: 196348.386 | U106: 0.305 | V106: 36372.65383 | W106: 433587.2375 | X106: 0.4746562175 | Y106: 180898.0212 | Z106: 0.281 | AA106: 37628.68792 | AB106: 419116.6215 | AC106: 0.4921891324 | AD106: 125534.214 | AE106: 0.195 | AF106: 42129.47674 | AG106: 402165.1478 | AH106: 0.5127279088 | AI106: 367623.5923 | AJ106: 233.5562462
B107: 1000000 | C107: 0 | D107: 1000000 | E107: Stockholm | F107: 0 | G107: 0 | H107: 0 | I107: 1 | J107: 50000 | K107: 0 | L107: 0 | M107: 15 | N107: 0.3 | O107: 163020 | P107: 0.209 | Q107: 50157.25663 | R107: 591829.9559 | S107: 0.4081700441 | T107: 258180 | U107: 0.331 | V107: 42421.24486 | W107: 621140.341 | X107: 0.378859659 | Y107: 103740 | Z107: 0.133 | AA107: 54976.41151 | AB107: 565974.7903 | AC107: 0.4340252097 | AD107: 95160 | AE107: 0.122 | AF107: 55673.92076 | AG107: 563042.057 | AH107: 0.436957943 | AI107: 381252.7469 | AJ107: 982.4691828
B108: 1000000 | C108: 0 | D108: 1000000 | E108: Stockholm | F108: 0 | G108: 0 | H108: 0 | I108: 1 | J108: 50000 | K108: 0 | L108: 0 | M108: 15 | N108: 0.3 | O108: 163020 | P108: 0.209 | Q108: 50157.25663 | R108: 591829.9559 | S108: 0.4081700441 | T108: 258180 | U108: 0.331 | V108: 42421.24486 | W108: 621140.341 | X108: 0.378859659 | Y108: 103740 | Z108: 0.133 | AA108: 54976.41151 | AB108: 565974.7903 | AC108: 0.4340252097 | AD108: 99060 | AE108: 0.127 | AF108: 55356.8711 | AG108: 564469.3913 | AH108: 0.4355306087 | AI108: 381252.7469 | AJ108: 982.4691828
B109: 1000000 | C109: 0 | D109: 1000000 | E109: Stockholm | F109: 0 | G109: 0 | H109: 0 | I109: 1 | J109: 50000 | K109: 0 | L109: 0 | M109: 15 | N109: 0.3 | O109: 163020 | P109: 0.209 | Q109: 50157.25663 | R109: 591829.9559 | S109: 0.4081700441 | T109: 258180 | U109: 0.331 | V109: 42421.24486 | W109: 621140.341 | X109: 0.378859659 | Y109: 163020 | Z109: 0.209 | AA109: 50157.25663 | AB109: 583678.9559 | AC109: 0.4163210441 | AD109: 138840 | AE109: 0.178 | AF109: 52122.96454 | AG109: 576732.2316 | AH109: 0.4232677684 | AI109: 381252.7469 | AJ109: 982.4691828
B110: 4000000 | C110: 0 | D110: 1000000 | E110: Stockholm | F110: 0 | G110: 0 | H110: 0 | I110: 0.25 | J110: 50000 | K110: 4000000 | L110: 4000000 | M110: 15 | N110: 0.3 | O110: 40560 | P110: 0.052 | Q110: 60112.61604 | R110: 548217.0428 | S110: 0.4517829572 | T110: 195780 | U110: 0.251 | V110: 47494.03947 | W110: 601894.864 | X110: 0.398105136 | Y110: 40560 | Z110: 0.052 | AA110: 60112.61604 | AB110: 546189.0428 | AC110: 0.4538109572 | AD110: 195780 | AE110: 0.251 | AF110: 47494.03947 | AG110: 592105.864 | AH110: 0.407894136 | AI110: 569280 | AJ110: 380096.0592
B111: 6000000 | C111: 0 | D111: 1500000 | E111: Stockholm | F111: 0 | G111: 0 | H111: 0 | I111: 0.25 | J111: 50000 | K111: 4000000 | L111: 4000000 | M111: 15 | N111: 0.3 | O111: 39780 | P111: 0.034 | Q111: 91880.99224 | R111: 717479.7548 | S111: 0.5216801635 | T111: 576810 | U111: 0.493 | V111: 48223.25369 | W111: 910932.6486 | X111: 0.3927115676 | Y111: 39780 | Z111: 0.034 | AA111: 91880.99224 | AB111: 715490.7548 | AC111: 0.5230061635 | AD111: 313560 | AE111: 0.268 | AF111: 69624.10592 | AG111: 802168.6926 | AH111: 0.4652208716 | AI111: 569280 | AJ111: 159.8805357
B112: 800000 | C112: 0 | D112: 800000 | E112: Stockholm | F112: 0 | G112: 0 | H112: 0 | I112: 1 | J112: 50000 | K112: 0 | L112: 0 | M112: 15 | N112: 0.3 | O112: 161616 | P112: 0.259 | Q112: 37589.408 | R112: 512696.6916 | S112: 0.3591291355 | T112: 205920 | U112: 0.33 | V112: 33987.72384 | W112: 517180.5486 | X112: 0.3535243142 | Y112: 161616 | Z112: 0.259 | AA112: 37589.408 | AB112: 504615.8916 | AC112: 0.3692301355 | AD112: 102960 | AE112: 0.165 | AF112: 42357.83493 | AG112: 491802.3333 | AH112: 0.3852470834 | AI112: 376192.6343 | AJ112: 2641.343022
B113: 1500000 | C113: 0 | D113: 1500000 | E113: Stockholm | F113: 0 | G113: 0 | H113: 0 | I113: 1 | J113: 0 | K113: 1000000 | L113: 1000000 | M113: 15 | N113: 0.3 | O113: 174330 | P113: 0.149 | Q113: 80942.77888 | R113: 771721.2924 | S113: 0.4855191384 | T113: 703170 | U113: 0.601 | V113: 37950.84462 | W113: 948409.9155 | X113: 0.367726723 | Y113: 174330 | Z113: 0.149 | AA113: 80942.77888 | AB113: 763004.7924 | AC113: 0.4913301384 | AD113: 451620 | AE113: 0.386 | AF113: 58400.54786 | AG113: 848282.65 | AH113: 0.4344782333 | AI113: 454370.5068 | AJ113: 24535.06772
B114: 1000000 | C114: 0 | D114: 1000000 | E114: Stockholm | F114: 0 | G114: 0 | H114: 0 | I114: 1 | J114: 0 | K114: 0 | L114: 0 | M114: 15 | N114: 0.3 | O114: 174720 | P114: 0.224 | Q114: 49206.10764 | R114: 598460.3402 | S114: 0.4015396598 | T114: 255060 | U114: 0.327 | V114: 42674.88459 | W114: 623533.2931 | X114: 0.3764667069 | Y114: 174720 | Z114: 0.224 | AA114: 49206.10764 | AB114: 589724.3402 | AC114: 0.4102756598 | AD114: 131820 | AE114: 0.169 | AF114: 52693.65393 | AG114: 577803.5969 | AH114: 0.4221964031 | AI114: 407204.9308 | AJ114: 989.3075635
B115: 1000000 | C115: 0 | D115: 1000000 | E115: Stockholm | F115: 0 | G115: 0 | H115: 0 | I115: 1 | J115: 0 | K115: 1000000 | L115: 1000000 | M115: 15 | N115: 0.3 | O115: 174720 | P115: 0.224 | Q115: 49206.10764 | R115: 598460.3402 | S115: 0.4015396598 | T115: 312780 | U115: 0.401 | V115: 37982.54959 | W115: 636420.283 | X115: 0.363579717 | Y115: 174720 | Z115: 0.224 | AA115: 49206.10764 | AB115: 589724.3402 | AC115: 0.4102756598 | AD115: 312780 | AE115: 0.401 | AF115: 37982.54959 | AG115: 620781.283 | AH115: 0.379218717 | AI115: 454389.5298 | AJ115: 415115.2975
B116: 1000000 | C116: 0 | D116: 1000000 | E116: Stockholm | F116: 0 | G116: 0 | H116: 0 | I116: 1 | J116: 0 | K116: 3000000 | L116: 3000000 | M116: 15 | N116: 0.3 | O116: 174720 | P116: 0.224 | Q116: 49206.10764 | R116: 598460.3402 | S116: 0.4015396598 | T116: 205920 | U116: 0.264 | V116: 46669.71034 | W116: 608326.5158 | X116: 0.3916734842 | Y116: 174720 | Z116: 0.224 | AA116: 49206.10764 | AB116: 589724.3402 | AC116: 0.4102756598 | AD116: 205920 | AE116: 0.264 | AF116: 46669.71034 | AG116: 598030.5158 | AH116: 0.4019694842 | AI116: 559601.8262 | AJ116: 1574098.262
B117: 1000000 | C117: 0 | D117: 1000000 | E117: Stockholm | F117: 0 | G117: 0 | H117: 0 | I117: 1 | J117: 0 | K117: 5000000 | L117: 5000000 | M117: 15 | N117: 0.3 | O117: 174720 | P117: 0.224 | Q117: 49206.10764 | R117: 598460.3402 | S117: 0.4015396598 | T117: 153660 | U117: 0.197 | V117: 50918.17582 | W117: 592154.5706 | X117: 0.4078454294 | Y117: 174720 | Z117: 0.224 | AA117: 49206.10764 | AB117: 589724.3402 | AC117: 0.4102756598 | AD117: 153660 | AE117: 0.197 | AF117: 50918.17582 | AG117: 584471.5706 | AH117: 0.4155284294 | AI117: 610560 | AJ117: 2651849.055
B118: 1000000 | C118: 0 | D118: 1000000 | E118: Stockholm | F118: 0 | G118: 0 | H118: 0 | I118: 1 | J118: 0 | K118: 10000000 | L118: 10000000 | M118: 15 | N118: 0.3 | O118: 174720 | P118: 0.224 | Q118: 49206.10764 | R118: 598460.3402 | S118: 0.4015396598 | T118: 153660 | U118: 0.197 | V118: 50918.17582 | W118: 592154.5706 | X118: 0.4078454294 | Y118: 174720 | Z118: 0.224 | AA118: 49206.10764 | AB118: 589724.3402 | AC118: 0.4102756598 | AD118: 153660 | AE118: 0.197 | AF118: 50918.17582 | AG118: 584471.5706 | AH118: 0.4155284294 | AI118: 610560 | AJ118: 5151849.055
B119: 2000000 | C119: 0 | D119: 2000000 | E119: Stockholm | F119: 0 | G119: 0 | H119: 0 | I119: 1 | J119: 0 | K119: 3000000 | L119: 3000000 | M119: 15 | N119: 0.3 | O119: 174720 | P119: 0.112 | Q119: 112616.0402 | R119: 946101.0903 | S119: 0.5269494549 | T119: 985920 | U119: 0.632 | V119: 46669.71034 | W119: 1232326.516 | X119: 0.3838367421 | Y119: 174720 | Z119: 0.112 | AA119: 112616.0402 | AB119: 937365.0903 | AC119: 0.5313174549 | AD119: 985920 | AE119: 0.632 | AF119: 46669.71034 | AG119: 1183030.516 | AH119: 0.4084847421 | AI119: 559601.8262 | AJ119: 794098.2621
B120: 2000000 | C120: 0 | D120: 2000000 | E120: Stockholm | F120: 0 | G120: 0 | H120: 0 | I120: 1 | J120: 0 | K120: 3000000 | L120: 3000000 | M120: 15 | N120: 0.3 | O120: 174720 | P120: 0.112 | Q120: 112616.0402 | R120: 946101.0903 | S120: 0.5269494549 | T120: 985920 | U120: 0.632 | V120: 46669.71034 | W120: 1232326.516 | X120: 0.3838367421 | Y120: 174720 | Z120: 0.112 | AA120: 112616.0402 | AB120: 937365.0903 | AC120: 0.5313174549 | AD120: 985920 | AE120: 0.632 | AF120: 46669.71034 | AG120: 1183030.516 | AH120: 0.4084847421 | AI120: 559601.8262 | AJ120: 794098.2621
B121: 2000000 | C121: 0 | D121: 2000000 | E121: Stockholm | F121: 0 | G121: 0 | H121: 0 | I121: 1 | J121: 0 | K121: 5000000 | L121: 5000000 | M121: 15 | N121: 0.3 | O121: 174720 | P121: 0.112 | Q121: 112616.0402 | R121: 946101.0903 | S121: 0.5269494549 | T121: 932880 | U121: 0.598 | V121: 50981.58576 | W121: 1216053.549 | X121: 0.3919732256 | Y121: 174720 | Z121: 0.112 | AA121: 112616.0402 | AB121: 937365.0903 | AC121: 0.5313174549 | AD121: 932880 | AE121: 0.598 | AF121: 50981.58576 | AG121: 1169409.549 | AH121: 0.4152952256 | AI121: 610560 | AJ121: 1873009.515
B122: 2000000 | C122: 0 | D122: 2000000 | E122: Stockholm | F122: 0 | G122: 0 | H122: 0 | I122: 1 | J122: 0 | K122: 1000000 | L122: 1000000 | M122: 15 | N122: 0.3 | O122: 174720 | P122: 0.112 | Q122: 112616.0402 | R122: 946101.0903 | S122: 0.5269494549 | T122: 847080 | U122: 0.543 | V122: 57956.67833 | W122: 1185219.665 | X122: 0.4073901677 | Y122: 174720 | Z122: 0.112 | AA122: 112616.0402 | AB122: 937365.0903 | AC122: 0.5313174549 | AD122: 539760 | AE122: 0.346 | AF122: 82940.19175 | AG122: 1051463.459 | AH122: 0.4742682706 | AI122: 466374.007 | AJ122: 660.0700046
B123: 2000000 | C123: 0 | D123: 2000000 | E123: Stockholm | F123: 0 | G123: 0 | H123: 0 | I123: 1 | J123: 0 | K123: 0 | L123: 0 | M123: 15 | N123: 0.3 | O123: 174720 | P123: 0.112 | Q123: 112616.0402 | R123: 946101.0903 | S123: 0.5269494549 | T123: 510120 | U123: 0.327 | V123: 85349.76919 | W123: 1061852.227 | X123: 0.4690738865 | Y123: 174720 | Z123: 0.112 | AA123: 112616.0402 | AB123: 937365.0903 | AC123: 0.5313174549 | AD123: 308880 | AE123: 0.198 | AF123: 101709.5318 | AG123: 976872.322 | AH123: 0.511563839 | AI123: 432809.8615 | AJ123: 1978.615127
B124: 2000000 | C124: 0 | D124: 2000000 | E124: Stockholm | F124: 0 | G124: 0 | H124: 0 | I124: 1 | J124: 0 | K124: 0 | L124: 0 | M124: 15 | N124: 0.3 | O124: 174720 | P124: 0.112 | Q124: 112616.0402 | R124: 946101.0903 | S124: 0.5269494549 | T124: 510120 | U124: 0.327 | V124: 85349.76919 | W124: 1061852.227 | X124: 0.4690738865 | Y124: 174720 | Z124: 0.112 | AA124: 112616.0402 | AB124: 937365.0903 | AC124: 0.5313174549 | AD124: 308880 | AE124: 0.198 | AF124: 101709.5318 | AG124: 976872.322 | AH124: 0.511563839 | AI124: 432809.8615 | AJ124: 1978.615127
B125: 500000 | C125: 0 | D125: 500000 | E125: Stockholm | F125: 0 | G125: 0 | H125: 0 | I125: 1 | J125: 0 | K125: 0 | L125: 0 | M125: 15 | N125: 0.3 | O125: 21060 | P125: 0.054 | Q125: 29992.89809 | R125: 331127.5677 | S125: 0.3377448646 | T125: Ej Möjlig | U125: Ej Möjlig | V125: Ej Möjlig | W125: 0 | X125: 1 | Y125: 1560 | Z125: 0.004 | AA125: 31578.1464 | AB125: 330583.1609 | AC125: 0.3388336782 | AD125: Ej Möjlig | AE125: Ej möjlig | AF125: Ej Möjlig | AG125: 0 | AH125: 1 | AI125: 399595.7389
B126: 500000 | C126: 0 | D126: 500000 | E126: Stockholm | F126: 0 | G126: 0 | H126: 0 | I126: 1 | J126: 0 | K126: 1000000 | L126: 1000000 | M126: 15 | N126: 0.3 | O126: 21060 | P126: 0.054 | Q126: 29992.89809 | R126: 331127.5677 | S126: 0.3377448646 | T126: Ej Möjlig | U126: Ej Möjlig | V126: Ej Möjlig | W126: 0 | X126: 1 | Y126: 1560 | Z126: 0.004 | AA126: 31578.1464 | AB126: 330583.1609 | AC126: 0.3388336782 | AD126: Ej Möjlig | AE126: Ej möjlig | AF126: Ej Möjlig | AG126: 0 | AH126: 1 | AI126: 449595.7389
B127: 500000 | C127: 0 | D127: 500000 | E127: Stockholm | F127: 0 | G127: 0 | H127: 0 | I127: 1 | J127: 0 | K127: 1000000 | L127: 1000000 | M127: 15 | N127: 0.3 | O127: 21060 | P127: 0.054 | Q127: 29992.89809 | R127: 331127.5677 | S127: 0.3377448646 | T127: Ej Möjlig | U127: Ej Möjlig | V127: Ej Möjlig | W127: 0 | X127: 1 | Y127: 1560 | Z127: 0.004 | AA127: 31578.1464 | AB127: 330583.1609 | AC127: 0.3388336782 | AD127: Ej Möjlig | AE127: Ej möjlig | AF127: Ej Möjlig | AG127: 0 | AH127: 1 | AI127: 449595.7389
B128: 1500000 | C128: 0 | D128: 1500000 | E128: Stockholm | F128: 0 | G128: 0 | H128: 0 | I128: 1 | J128: 0 | K128: 0 | L128: 0 | M128: 15 | N128: 0.3 | O128: 174330 | P128: 0.149 | Q128: 80942.77888 | R128: 771721.2924 | S128: 0.4855191384 | T128: 382590 | U128: 0.327 | V128: 64012.32689 | W128: 846026.5141 | X128: 0.435982324 | Y128: 174330 | Z128: 0.149 | AA128: 80942.77888 | AB128: 763004.7924 | AC128: 0.4913301384 | AD128: 219960 | AE128: 0.188 | AF128: 77233.29782 | AG128: 776461.2809 | AH128: 0.4823591461 | AI128: 420007.3961 | AJ128: 1483.961345
B129: 1500000 | C129: 0 | D129: 1500000 | E129: Stockholm | F129: 0 | G129: 0 | H129: 0 | I129: 1 | J129: 0 | K129: 1000000 | L129: 1000000 | M129: 15 | N129: 0.3 | O129: 174330 | P129: 0.149 | Q129: 80942.77888 | R129: 771721.2924 | S129: 0.4855191384 | T129: 703170 | U129: 0.601 | V129: 37950.84462 | W129: 948409.9155 | X129: 0.367726723 | Y129: 174330 | Z129: 0.149 | AA129: 80942.77888 | AB129: 763004.7924 | AC129: 0.4913301384 | AD129: 451620 | AE129: 0.386 | AF129: 58400.54786 | AG129: 848282.65 | AH129: 0.4344782333 | AI129: 454370.5068 | AJ129: 24535.06772
B130: 1500000 | C130: 0 | D130: 1500000 | E130: Stockholm | F130: 0 | G130: 0 | H130: 0 | I130: 1 | J130: 0 | K130: 3000000 | L130: 3000000 | M130: 15 | N130: 0.3 | O130: 174330 | P130: 0.149 | Q130: 80942.77888 | R130: 771721.2924 | S130: 0.4855191384 | T130: 595530 | U130: 0.509 | V130: 46701.41531 | W130: 920282.3931 | X130: 0.3864784046 | Y130: 174330 | Z130: 0.149 | AA130: 80942.77888 | AB130: 763004.7924 | AC130: 0.4913301384 | AD130: 595530 | AE130: 0.509 | AF130: 46701.41531 | AG130: 890505.8931 | AH130: 0.4063294046 | AI130: 559620.8492 | AJ130: 1184678.492
B131: 1000000 | C131: 0 | D131: 1000000 | E131: Stockholm | F131: 0 | G131: 0 | H131: 0 | I131: 1 | J131: 0 | K131: 0 | L131: 0 | M131: 15 | N131: 0.3 | O131: 168480 | P131: 0.216 | Q131: 49713.3871 | R131: 595136.504 | S131: 0.404863496 | T131: 255060 | U131: 0.327 | V131: 42674.88459 | W131: 622017.019 | X131: 0.377982981 | Y131: 168480 | Z131: 0.216 | AA131: 49713.3871 | AB131: 586712.504 | AC131: 0.413287496 | AD131: 133380 | AE131: 0.171 | AF131: 52566.83407 | AG131: 576862.4746 | AH131: 0.4231375254 | AI131: 394604.9308 | AJ131: 989.3075635
B132: 1000000 | C132: 0 | D132: 1000000 | E132: Stockholm | F132: 0 | G132: 0 | H132: 0 | I132: 1 | J132: 0 | K132: 1000000 | L132: 1000000 | M132: 15 | N132: 0.3 | O132: 168480 | P132: 0.216 | Q132: 49713.3871 | R132: 595136.504 | S132: 0.404863496 | T132: 327600 | U132: 0.42 | V132: 36777.76087 | W132: 639640.0481 | X132: 0.3603599519 | Y132: 168480 | Z132: 0.216 | AA132: 49713.3871 | AB132: 586712.504 | AC132: 0.413287496 | AD132: 327600 | AE132: 0.42 | AF132: 36777.76087 | AG132: 623260.0481 | AH132: 0.3767399519 | AI132: 441066.6565 | AJ132: 393066.5652
B133: 1000000 | C133: 0 | D133: 1000000 | E133: Stockholm | F133: 0 | G133: 0 | H133: 0 | I133: 1 | J133: 0 | K133: 2000000 | L133: 2000000 | M133: 15 | N133: 0.3 | O133: 168480 | P133: 0.216 | Q133: 49713.3871 | R133: 595136.504 | S133: 0.404863496 | T133: 273780 | U133: 0.351 | V133: 41153.04621 | W133: 627825.5815 | X133: 0.3721744185 | Y133: 168480 | Z133: 0.216 | AA133: 49713.3871 | AB133: 586712.504 | AC133: 0.413287496 | AD133: 273780 | AE133: 0.351 | AF133: 41153.04621 | AG133: 614136.5815 | AH133: 0.3858634185 | AI133: 493691.8277 | AJ133: 973138.2773
B134: 1000000 | C134: 0 | D134: 1000000 | E134: Stockholm | F134: 0 | G134: 0 | H134: 0 | I134: 1 | J134: 0 | K134: 4000000 | L134: 4000000 | M134: 15 | N134: 0.3 | O134: 168480 | P134: 0.216 | Q134: 49713.3871 | R134: 595136.504 | S134: 0.404863496 | T134: 174720 | U134: 0.224 | V134: 49206.10764 | W134: 596833.3348 | X134: 0.4031666652 | Y134: 168480 | Z134: 0.216 | AA134: 49713.3871 | AB134: 586712.504 | AC134: 0.413287496 | AD134: 174720 | AE134: 0.224 | AF134: 49206.10764 | AG134: 588097.3348 | AH134: 0.4119026652 | AI134: 590400 | AJ134: 2120516.646
B135: 1500000 | C135: 0 | D135: 1500000 | E135: Stockholm | F135: 0 | G135: 0 | H135: 0 | I135: 1 | J135: 0 | K135: 0 | L135: 0 | M135: 15 | N135: 0.3 | O135: 168480 | P135: 0.144 | Q135: 81418.35337 | R135: 768839.5647 | S135: 0.4874402902 | T135: 382590 | U135: 0.327 | V135: 64012.32689 | W135: 844399.5086 | X135: 0.4370669942 | Y135: 168480 | Z135: 0.144 | AA135: 81418.35337 | AB135: 760415.5647 | AC135: 0.4930562902 | AD135: 221130 | AE135: 0.189 | AF135: 77138.18292 | AG135: 775394.5012 | AH135: 0.4830703326 | AI135: 407407.3961 | AJ135: 1483.961345
B136: 1500000 | C136: 0 | D136: 1500000 | E136: Stockholm | F136: 0 | G136: 0 | H136: 0 | I136: 1 | J136: 0 | K136: 1000000 | L136: 1000000 | M136: 15 | N136: 0.3 | O136: 168480 | P136: 0.144 | Q136: 81418.35337 | R136: 768839.5647 | S136: 0.4874402902 | T136: 714870 | U136: 0.611 | V136: 36999.69563 | W136: 951112.1284 | X136: 0.3659252477 | Y136: 168480 | Z136: 0.144 | AA136: 81418.35337 | AB136: 760415.5647 | AC136: 0.4930562902 | AD136: 453960 | AE136: 0.388 | AF136: 58210.31806 | AG136: 847405.5594 | AH136: 0.4350629604 | AI136: 441199.8174 | AJ136: 7128.173794
B137: 1500000 | C137: 0 | D137: 1500000 | E137: Stockholm | F137: 0 | G137: 0 | H137: 0 | I137: 1 | J137: 0 | K137: 2000000 | L137: 2000000 | M137: 15 | N137: 0.3 | O137: 168480 | P137: 0.144 | Q137: 81418.35337 | R137: 768839.5647 | S137: 0.4874402902 | T137: 663390 | U137: 0.567 | V137: 41184.75118 | W137: 939828.5288 | X137: 0.3734476475 | Y137: 168480 | Z137: 0.144 | AA137: 81418.35337 | AB137: 760415.5647 | AC137: 0.4930562902 | AD137: 663390 | AE137: 0.567 | AF137: 41184.75118 | AG137: 906659.0288 | AH137: 0.3955606475 | AI137: 493710.8507 | AJ137: 583718.5071
B138: 1500000 | C138: 0 | D138: 1500000 | E138: Stockholm | F138: 0 | G138: 0 | H138: 0 | I138: 1 | J138: 0 | K138: 4000000 | L138: 4000000 | M138: 15 | N138: 0.3 | O138: 168480 | P138: 0.144 | Q138: 81418.35337 | R138: 768839.5647 | S138: 0.4874402902 | T138: 563940 | U138: 0.482 | V138: 49269.51758 | W138: 908736.9241 | X138: 0.3941753839 | Y138: 168480 | Z138: 0.144 | AA138: 81418.35337 | AB138: 760415.5647 | AC138: 0.4930562902 | AD138: 563940 | AE138: 0.482 | AF138: 49269.51758 | AG138: 880539.9241 | AH138: 0.4129733839 | AI138: 590400 | AJ138: 1731677.105
B139: 2000000 | C139: 0 | D139: 2000000 | E139: Stockholm | F139: 0 | G139: 0 | H139: 0 | I139: 1 | J139: 0 | K139: 0 | L139: 0 | M139: 15 | N139: 0.3 | O139: 168480 | P139: 0.108 | Q139: 113123.3196 | R139: 942892.2203 | S139: 0.5285538899 | T139: 510120 | U139: 0.327 | V139: 85349.76919 | W139: 1060225.222 | X139: 0.4698873892 | Y139: 168480 | Z139: 0.108 | AA139: 113123.3196 | AB139: 934468.2203 | AC139: 0.5327658899 | AD139: 308880 | AE139: 0.198 | AF139: 101709.5318 | AG139: 975245.3166 | AH139: 0.5123773417 | AI139: 420209.8615 | AJ139: 1978.615127
B140: 2000000 | C140: 0 | D140: 2000000 | E140: Stockholm | F140: 0 | G140: 0 | H140: 0 | I140: 1 | J140: 0 | K140: 1000000 | L140: 1000000 | M140: 15 | N140: 0.3 | O140: 168480 | P140: 0.108 | Q140: 113123.3196 | R140: 942892.2203 | S140: 0.5285538899 | T140: 847080 | U140: 0.543 | V140: 57956.67833 | W140: 1183592.659 | X140: 0.4082036705 | Y140: 168480 | Z140: 0.108 | AA140: 113123.3196 | AB140: 934468.2203 | AC140: 0.5327658899 | AD140: 541320 | AE140: 0.347 | AF140: 82813.37189 | AG140: 1050093.046 | AH140: 0.474953477 | AI140: 453774.007 | AJ140: 660.0700046
B141: 2000000 | C141: 0 | D141: 2000000 | E141: Stockholm | F141: 0 | G141: 0 | H141: 0 | I141: 1 | J141: 0 | K141: 2000000 | L141: 2000000 | M141: 15 | N141: 0.3 | O141: 168480 | P141: 0.108 | Q141: 113123.3196 | R141: 942892.2203 | S141: 0.5285538899 | T141: 1051440 | U141: 0.674 | V141: 41343.27601 | W141: 1251288.182 | X141: 0.3743559089 | Y141: 168480 | Z141: 0.108 | AA141: 113123.3196 | AB141: 934468.2203 | AC141: 0.5327658899 | AD141: 773760 | AE141: 0.496 | AF141: 63917.21199 | AG141: 1118370.428 | AH141: 0.4408147858 | AI141: 493805.9656 | AJ141: 196619.6561
B142: 2000000 | C142: 0 | D142: 2000000 | E142: Stockholm | F142: 0 | G142: 0 | H142: 0 | I142: 1 | J142: 0 | K142: 4000000 | L142: 4000000 | M142: 15 | N142: 0.3 | O142: 168480 | P142: 0.108 | Q142: 113123.3196 | R142: 942892.2203 | S142: 0.5285538899 | T142: 954720 | U142: 0.612 | V142: 49206.10764 | W142: 1220833.335 | X142: 0.3895833326 | Y142: 168480 | Z142: 0.108 | AA142: 113123.3196 | AB142: 934468.2203 | AC142: 0.5327658899 | AD142: 954720 | AE142: 0.612 | AF142: 49206.10764 | AG142: 1173097.335 | AH142: 0.4134513326 | AI142: 590400 | AJ142: 1340516.646
B143: 2500000 | C143: 0 | D143: 2500000 | E143: Stockholm | F143: 0 | G143: 0 | H143: 0 | I143: 1 | J143: 0 | K143: 0 | L143: 0 | M143: 15 | N143: 0.3 | O143: 167700 | P143: 0.086 | Q143: 144891.6958 | R143: 1103666.942 | S143: 0.5585332232 | T143: 637650 | U143: 0.327 | V143: 106687.2115 | W143: 1274962.127 | X143: 0.4900151493 | Y143: 167700 | Z143: 0.086 | AA143: 144891.6958 | AB143: 1095281.942 | AC143: 0.5618872232 | AD143: 397800 | AE143: 0.204 | AF143: 126185.7657 | AG143: 1179126.916 | AH143: 0.5283492336 | AI143: 433012.3269 | AJ143: 2473.268909
B144: 2500000 | C144: 0 | D144: 2500000 | E144: Stockholm | F144: 0 | G144: 0 | H144: 0 | I144: 1 | J144: 0 | K144: 1000000 | L144: 1000000 | M144: 15 | N144: 0.3 | O144: 167700 | P144: 0.086 | Q144: 144891.6958 | R144: 1103666.942 | S144: 0.5585332232 | T144: 975000 | U144: 0.5 | V144: 79262.41566 | W144: 1400887.543 | X144: 0.439644983 | Y144: 167700 | Z144: 0.086 | AA144: 144891.6958 | AB144: 1095281.942 | AC144: 0.5618872232 | AD144: 629850 | AE144: 0.323 | AF144: 107321.3108 | AG144: 1241492.296 | AH144: 0.5034030816 | AI144: 466557.4494 | AJ144: 574.4939887
B145: 2500000 | C145: 0 | D145: 2500000 | E145: Stockholm | F145: 0 | G145: 0 | H145: 0 | I145: 1 | J145: 0 | K145: 2000000 | L145: 2000000 | M145: 15 | N145: 0.3 | O145: 167700 | P145: 0.086 | Q145: 144891.6958 | R145: 1103666.942 | S145: 0.5585332232 | T145: 1310400 | U145: 0.672 | V145: 51996.14468 | W145: 1522145.217 | X145: 0.3911419133 | Y145: 167700 | Z145: 0.086 | AA145: 144891.6958 | AB145: 1095281.942 | AC145: 0.5618872232 | AD145: 861900 | AE145: 0.442 | AF145: 88456.85588 | AG145: 1320559.852 | AH145: 0.471776059 | AI145: 500197.6868 | AJ145: 1576.868057
B146: 2500000 | C146: 0 | D146: 2500000 | E146: Stockholm | F146: 0 | G146: 0 | H146: 0 | I146: 1 | J146: 0 | K146: 4000000 | L146: 4000000 | M146: 15 | N146: 0.3 | O146: 167700 | P146: 0.086 | Q146: 144891.6958 | R146: 1103666.942 | S146: 0.5585332232 | T146: 1343550 | U146: 0.689 | V146: 49301.22254 | W146: 1532688.719 | X146: 0.3869245125 | Y146: 167700 | Z146: 0.086 | AA146: 144891.6958 | AB146: 1095281.942 | AC146: 0.5618872232 | AD146: 1343550 | AE146: 0.689 | AF146: 49301.22254 | AG146: 1465511.219 | AH146: 0.4137955125 | AI146: 590400 | AJ146: 952257.3353
B147: 1000000 | C147: 0 | D147: 1000000 | E147: Stockholm | F147: 0 | G147: 5000000 | H147: 0 | I147: 1 | J147: 0 | K147: 0 | L147: 0 | M147: 15 | N147: 0.3 | O147: 411060 | P147: 0.527 | Q147: 29992.89809 | R147: 643127.5677 | S147: 0.3568724323 | T147: 379080 | U147: 0.486 | V147: 32592.70532 | W147: 642383.6974 | X147: 0.3576163026 | Y147: 337740 | Z147: 0.433 | AA147: 35953.43175 | AB147: 624504.9894 | AC147: 0.3754950106 | AD147: 337740 | AE147: 0.433 | AF147: 35953.43175 | AG147: 624504.9894 | AH147: 0.3754950106 | AI147: 388555.6232 | AJ147: 4979976.232
B148: 1000000 | C148: 0 | D148: 1000000 | E148: Stockholm | F148: 0 | G148: 0 | H148: 0 | I148: 1 | J148: 0 | K148: 0 | L148: 0 | M148: 15 | N148: 0.3 | O148: 168480 | P148: 0.216 | Q148: 49713.3871 | R148: 595136.504 | S148: 0.404863496 | T148: 255060 | U148: 0.327 | V148: 42674.88459 | W148: 622017.019 | X148: 0.377982981 | Y148: 168480 | Z148: 0.216 | AA148: 49713.3871 | AB148: 586712.504 | AC148: 0.413287496 | AD148: 133380 | AE148: 0.171 | AF148: 52566.83407 | AG148: 576862.4746 | AH148: 0.4231375254 | AI148: 394604.9308 | AJ148: 989.3075635
B149: 800000 | C149: 0 | D149: 800000 | E149: Stockholm | F149: 0 | G149: 0 | H149: 0 | I149: 1 | J149: 0 | K149: 0 | L149: 0 | M149: 15 | N149: 0.3 | O149: 169104 | P149: 0.271 | Q149: 36980.67265 | R149: 514304.3587 | S149: 0.3571195516 | T149: 203424 | U149: 0.326 | V149: 34190.63562 | W149: 517124.881 | X149: 0.3535938988 | Y149: 169104 | Z149: 0.271 | AA149: 36980.67265 | AB149: 505849.1587 | AC149: 0.3676885516 | AD149: 97968 | AE149: 0.157 | AF149: 42763.6585 | AG149: 492215.3747 | AH149: 0.3847307816 | AI149: 389514.3814 | AJ149: 1719.813727
B150: 700000 | C150: 0 | D150: 700000 | E150: Stockholm | F150: 0 | G150: 0 | H150: 0 | I150: 1 | J150: 0 | K150: 0 | L150: 0 | M150: 15 | N150: 0.3 | O150: 167622 | P150: 0.307 | Q150: 30760.15827 | R150: 455678.6338 | S150: 0.3490305232 | T150: 145236 | U150: 0.266 | V150: 32580.02333 | W150: 455176.5442 | X150: 0.349747794 | Y150: 103194 | Z150: 0.189 | AA150: 35997.8187 | AB150: 449053.761 | AC150: 0.3584946271 | AD150: 78624 | AE150: 0.144 | AF150: 37995.23157 | AG150: 445293.23 | AH150: 0.3638668142 | AI150: 388548.014 | AJ150: 50244.14001
B151: 600000 | C151: 0 | D151: 600000 | E151: Stockholm | F151: 0 | G151: 0 | H151: 0 | I151: 1 | J151: 0 | K151: 0 | L151: 0 | M151: 15 | N151: 0.3 | O151: 101556 | P151: 0.217 | Q151: 29789.9863 | R151: 393534.9174 | S151: 0.3441084709 | T151: 69732 | U151: 0.149 | V151: 32377.11155 | W151: 392832.0344 | X151: 0.3452799427 | Y151: 25272 | Z151: 0.054 | AA151: 35991.47771 | AB151: 390546.7936 | AC151: 0.3490886773 | AD151: 25272 | AE151: 0.054 | AF151: 35991.47771 | AG151: 390546.7936 | AH151: 0.3490886773 | AI151: 388426.2669 | AJ151: 124530.6693
B152: 650000 | C152: 0 | D152: 650000 | E152: Stockholm | F152: 0 | G152: 0 | H152: 0 | I152: 1 | J152: 0 | K152: 0 | L152: 0 | M152: 15 | N152: 0.3 | O152: 140439 | P152: 0.277 | Q152: 29799.49779 | R152: 424741.0269 | S152: 0.3465522663 | T152: 108498 | U152: 0.214 | V152: 32396.13453 | W152: 424042.864 | X152: 0.3476263631 | Y152: 64389 | Z152: 0.127 | AA152: 35981.96622 | AB152: 419786.3426 | AC152: 0.3541748576 | AD152: 64389 | AE152: 0.127 | AF152: 35981.96622 | AG152: 419786.3426 | AH152: 0.3541748576 | AI152: 388437.6807 | AJ152: 85878.80718
B153: 675000 | C153: 0 | D153: 675000 | E153: Stockholm | F153: 0 | G153: 0 | H153: 0 | I153: 1 | J153: 0 | K153: 0 | L153: 0 | M153: 15 | N153: 0.3 | O153: 160056 | P153: 0.304 | Q153: 29789.9863 | R153: 440334.9174 | S153: 0.3476519742 | T153: 125833.5 | U153: 0.239 | V153: 32572.09709 | W153: 439572.0734 | X153: 0.3487821134 | Y153: 83713.5 | Z153: 0.159 | AA153: 35996.23345 | AB153: 434427.0192 | AC153: 0.356404416 | AD153: 76342.5 | AE153: 0.145 | AF153: 36595.45731 | AG153: 433567.6241 | AH153: 0.357677594 | AI153: 388543.2583 | AJ153: 69599.08256
B154: 675000 | C154: 0 | D154: 675000 | E154: Stockholm | F154: 0 | G154: 0 | H154: 0 | I154: 1 | J154: 0 | K154: 0 | L154: 0 | M154: 15 | N154: 0.3 | O154: 160056 | P154: 0.304 | Q154: 29789.9863 | R154: 440334.9174 | S154: 0.3476519742 | T154: 125833.5 | U154: 0.239 | V154: 32572.09709 | W154: 439572.0734 | X154: 0.3487821134 | Y154: 83713.5 | Z154: 0.159 | AA154: 35996.23345 | AB154: 434427.0192 | AC154: 0.356404416 | AD154: 76342.5 | AE154: 0.145 | AF154: 36595.45731 | AG154: 433567.6241 | AH154: 0.357677594 | AI154: 388543.2583 | AJ154: 69599.08256
B155: 575000 | C155: 0 | D155: 575000 | E155: Stockholm | F155: 0 | G155: 0 | H155: 0 | I155: 1 | J155: 0 | K155: 0 | L155: 0 | M155: 15 | N155: 0.3 | O155: 82075.5 | P155: 0.183 | Q155: 29788.40106 | R155: 377933.8992 | S155: 0.3427236536 | T155: 50232 | U155: 0.112 | V155: 32377.11155 | W155: 377232.0344 | X155: 0.3439442881 | Y155: 5830.5 | Z155: 0.013 | AA155: 35986.72196 | AB155: 375916.5681 | AC155: 0.3462320554 | AD155: 5830.5 | AE155: 0.013 | AF155: 35986.72196 | AG155: 375916.5681 | AH155: 0.3462320554 | AI155: 388426.2669 | AJ155: 144030.6693
B156: 550000 | C156: 0 | D156: 550000 | E156: Stockholm | F156: 0 | G156: 0 | H156: 0 | I156: 1 | J156: 0 | K156: 0 | L156: 0 | M156: 15 | N156: 0.3 | O156: 62634 | P156: 0.146 | Q156: 29783.64531 | R156: 362330.8445 | S156: 0.3412166464 | T156: 30459 | U156: 0.071 | V156: 32399.30503 | W156: 361644.6689 | X156: 0.3424642383 | Y156: 1287 | Z156: 0.003 | AA156: 34770.8365 | AB156: 360878.8005 | AC156: 0.3438567263 | AD156: 1287 | AE156: 0.003 | AF156: 34770.8365 | AG156: 360878.8005 | AH156: 0.3438567263 | AI156: 388439.583 | AJ156: 163936.8302
B157: 500000 | C157: 0 | D157: 500000 | E157: Stockholm | F157: 0 | G157: 0 | H157: 0 | I157: 1 | J157: 0 | K157: 0 | L157: 0 | M157: 15 | N157: 0.3 | O157: 21060 | P157: 0.054 | Q157: 29992.89809 | R157: 331127.5677 | S157: 0.3377448646 | T157: Ej Möjlig | U157: Ej Möjlig | V157: Ej Möjlig | W157: 0 | X157: 1 | Y157: 1560 | Z157: 0.004 | AA157: 31578.1464 | AB157: 330583.1609 | AC157: 0.3388336782 | AD157: Ej Möjlig | AE157: Ej möjlig | AF157: Ej Möjlig | AG157: 0 | AH157: 1 | AI157: 386995.7389
B158: 475000 | C158: 0 | D158: 475000 | E158: Stockholm | F158: 0 | G158: 0 | H158: 0 | I158: 1 | J158: 0 | K158: 0 | L158: 0 | M158: 15 | N158: 0.3 | O158: 4075.5 | P158: 0.011 | Q158: 29788.40106 | R158: 315533.8992 | S158: 0.335718107 | T158: Ej Möjlig | U158: Ej Möjlig | V158: Ej Möjlig | W158: 0 | X158: 1 | Y158: 1482 | Z158: 0.004 | AA158: 29999.23908 | AB158: 315457.5116 | AC158: 0.335878923 | AD158: Ej Möjlig | AE158: Ej möjlig | AF158: Ej Möjlig | AG158: 0 | AH158: 1 | AI158: 386873.0406
B159: 1400000 | C159: 0 | D159: 1400000 | E159: Stockholm | F159: 0 | G159: 0 | H159: 0 | I159: 1 | J159: 0 | K159: 0 | L159: 0 | M159: 15 | N159: 0.3 | O159: 168168 | P159: 0.154 | Q159: 75102.72409 | R159: 733013.439 | S159: 0.4764189721 | T159: 357084 | U159: 0.327 | V159: 59744.83843 | W159: 801230.7165 | X159: 0.4276923453 | Y159: 168168 | Z159: 0.154 | AA159: 75102.72409 | AB159: 724605.039 | AC159: 0.4824249721 | AD159: 204204 | AE159: 0.187 | AF159: 72173.18521 | AG159: 735939.4742 | AH159: 0.474328947 | AI159: 404846.9031 | AJ159: 1385.030589
B160: 1400000 | C160: 0 | D160: 1400000 | E160: Stockholm | F160: 0 | G160: 0 | H160: 0 | I160: 1 | J160: 0 | K160: 0 | L160: 0 | M160: 15 | N160: 0.3 | O160: 168168 | P160: 0.154 | Q160: 75102.72409 | R160: 733013.439 | S160: 0.4764189721 | T160: 357084 | U160: 0.327 | V160: 59744.83843 | W160: 801230.7165 | X160: 0.4276923453 | Y160: 168168 | Z160: 0.154 | AA160: 75102.72409 | AB160: 724605.039 | AC160: 0.4824249721 | AD160: 204204 | AE160: 0.187 | AF160: 72173.18521 | AG160: 735939.4742 | AH160: 0.474328947 | AI160: 404846.9031 | AJ160: 1385.030589
B161: 1400000 | C161: 0 | D161: 1400000 | E161: Stockholm | F161: 0 | G161: 0 | H161: 0 | I161: 1 | J161: 0 | K161: 0 | L161: 0 | M161: 15 | N161: 0.3 | O161: 168168 | P161: 0.154 | Q161: 75102.72409 | R161: 733013.439 | S161: 0.4764189721 | T161: 357084 | U161: 0.327 | V161: 59744.83843 | W161: 801230.7165 | X161: 0.4276923453 | Y161: 0 | Z161: 0 | AA161: 88773.90554 | AB161: 0 | AC161: 1 | AD161: 0 | AE161: 0 | AF161: 88773.90554 | AG161: 0 | AH161: 1 | AI161: 404846.9031 | AJ161: 1385.030589
B162: 1400000 | C162: 0 | D162: 1400000 | E162: Stockholm | F162: 0 | G162: 0 | H162: 0 | I162: 1 | J162: 0 | K162: 0 | L162: 0 | M162: 15 | N162: 0.3 | O162: 168168 | P162: 0.154 | Q162: 75102.72409 | R162: 733013.439 | S162: 0.4764189721 | T162: 357084 | U162: 0.327 | V162: 59744.83843 | W162: 801230.7165 | X162: 0.4276923453 | Y162: 0 | Z162: 0 | AA162: 0 | AB162: 0 | AC162: 1 | AD162: Ej Möjlig | AE162: Ej möjlig | AF162: Ej Möjlig | AG162: 0 | AH162: 1 | AI162: 404846.9031 | AJ162: 1385.030589
B163: 1400000 | C163: 0 | D163: 1400000 | E163: Stockholm | F163: 0 | G163: 0 | H163: 0 | I163: 1 | J163: 0 | K163: 0 | L163: 0 | M163: 15 | N163: 0.3 | O163: 168168 | P163: 0.154 | Q163: 75102.72409 | R163: 733013.439 | S163: 0.4764189721 | T163: 357084 | U163: 0.327 | V163: 59744.83843 | W163: 801230.7165 | X163: 0.4276923453 | Y163: 0 | Z163: 0 | AA163: 0 | AB163: 0 | AC163: 1 | AD163: Ej Möjlig | AE163: Ej möjlig | AF163: Ej Möjlig | AG163: 0 | AH163: 1 | AI163: 404846.9031 | AJ163: 1385.030589
B164: 1400000 | C164: 0 | D164: 1400000 | E164: Stockholm | F164: 0 | G164: 0 | H164: 0 | I164: 1 | J164: 0 | K164: 0 | L164: 0 | M164: 15 | N164: 0.3 | O164: 168168 | P164: 0.154 | Q164: 75102.72409 | R164: 733013.439 | S164: 0.4764189721 | T164: 357084 | U164: 0.327 | V164: 59744.83843 | W164: 801230.7165 | X164: 0.4276923453 | Y164: 0 | Z164: 0 | AA164: 0 | AB164: 0 | AC164: 1 | AD164: Ej Möjlig | AE164: Ej möjlig | AF164: Ej Möjlig | AG164: 0 | AH164: 1 | AI164: 404846.9031 | AJ164: 1385.030589
B165: 1400000 | C165: 0 | D165: 1400000 | E165: Stockholm | F165: 0 | G165: 0 | H165: 0 | I165: 1 | J165: 0 | K165: 0 | L165: 0 | M165: 15 | N165: 0.3 | O165: 168168 | P165: 0.154 | Q165: 75102.72409 | R165: 733013.439 | S165: 0.4764189721 | T165: 357084 | U165: 0.327 | V165: 59744.83843 | W165: 801230.7165 | X165: 0.4276923453 | Y165: 404846.9031 | Z165: 1385.030589
B166: 1400000 | C166: 400000 | D166: 1925680 | E166: Stockholm | F166: 0 | G166: 0 | H166: 0 | I166: 1 | J166: 0 | K166: 400000 | L166: 0 | M166: 15 | N166: 0.3 | O166: 168227.4048 | P166: 0.112 | Q166: 108431.2281 | R166: 911148.0281 | S166: 0.52684349 | T166: 491163.9408 | U166: 0.327 | V166: 82178.17176 | W166: 1032459.233 | X166: 0.4638469355 | Y166: 418306.9031 | Z166: 1905.089789
B167: 1400000 | C167: 400000 | D167: 1925680 | E167: Stockholm | F167: 0 | G167: 0 | H167: 0 | I167: 1 | J167: 0 | K167: 400000 | L167: 0 | M167: 15 | N167: 0.3 | O167: 168227.4048 | P167: 0.112 | Q167: 108431.2281 | R167: 911148.0281 | S167: 0.52684349 | T167: 491163.9408 | U167: 0.327 | V167: 82178.17176 | W167: 1032459.233 | X167: 0.4638469355 | Y167: 418306.9031 | Z167: 1905.089789
B168: 800000 | C168: 0 | D168: 800000 | E168: Stockholm | F168: 0 | G168: 0 | H168: 0 | I168: 1 | J168: 0 | K168: 400000 | L168: 400000 | M168: 15 | N168: 0.3 | O168: 169104 | P168: 0.271 | Q168: 36980.67265 | R168: 514304.3587 | S168: 0.3571195516 | T168: 203424 | U168: 0.326 | V168: 34190.63562 | W168: 517124.881 | X168: 0.3535938988 | Y168: 409514.3814 | Z168: 201719.8137
B169: 1500000 | C169: 0 | D169: 1500000 | E169: Stockholm | F169: 0 | G169: 0 | H169: 0 | I169: 1 | J169: 0 | K169: 400000 | L169: 400000 | M169: 15 | N169: 0.3 | O169: 168480 | P169: 0.144 | Q169: 81418.35337 | R169: 768839.5647 | S169: 0.4874402902 | T169: 517140 | U169: 0.442 | V169: 53074.11353 | W169: 893027.8236 | X169: 0.4046481176 | Y169: 420844.4681 | Z169: 1304.681175
B170: 1500000 | C170: 0 | D170: 1500000 | E170: Nordmaling | F170: 0 | G170: 0 | H170: 0 | I170: 1 | J170: 0 | K170: 400000 | L170: 400000 | M170: 15 | N170: 0.3 | O170: 168480 | P170: 0.144 | Q170: 81418.35337 | R170: 728586.3307 | S170: 0.5142757795 | T170: 517140 | U170: 0.442 | V170: 53074.11353 | W170: 866787.9819 | X170: 0.4221413454 | Y170: 420844.4681 | Z170: 1304.681175
B171: 1500000 | C171: 0 | D171: 1500000 | E171: Nordmaling | F171: 0 | G171: 0 | H171: 0 | I171: 1 | J171: 0 | K171: 400000 | L171: 400000 | M171: 15 | N171: 0.3 | O171: 168480 | P171: 0.144 | Q171: 81418.35337 | R171: 728586.3307 | S171: 0.5142757795 | T171: 517140 | U171: 0.442 | V171: 53074.11353 | W171: 866787.9819 | X171: 0.4221413454 | Y171: 420844.4681 | Z171: 1304.681175
B172: 1500000 | C172: 0 | D172: 1500000 | E172: Nordmaling | F172: 0 | G172: 0 | H172: 0 | I172: 1 | J172: 0 | K172: 400000 | L172: 400000 | M172: 15 | N172: 0.3 | O172: 168480 | P172: 0.144 | Q172: 81418.35337 | R172: 728586.3307 | S172: 0.5142757795 | T172: 517140 | U172: 0.442 | V172: 53074.11353 | W172: 866787.9819 | X172: 0.4221413454 | Y172: 420844.4681 | Z172: 1304.681175
B173: 1500000 | C173: 0 | D173: 1500000 | E173: Nordmaling | F173: 0 | G173: 0 | H173: 0 | I173: 1 | J173: 0 | K173: 400000 | L173: 400000 | M173: 15 | N173: 0.3 | O173: 168480 | P173: 0.144 | Q173: 81418.35337 | R173: 728586.3307 | S173: 0.5142757795 | T173: 517140 | U173: 0.442 | V173: 53074.11353 | W173: 866787.9819 | X173: 0.4221413454 | Y173: 420844.4681 | Z173: 1304.681175
B174: 700000 | C174: 0 | D174: 700000 | E174: Nordmaling | F174: 0 | G174: 0 | H174: 0 | I174: 1 | J174: 0 | K174: 400000 | L174: 400000 | M174: 15 | N174: 0.3 | O174: 167622 | P174: 0.307 | Q174: 30760.15827 | R174: 440470.8115 | S174: 0.3707559836 | T174: 125580 | U174: 0.23 | V174: 34177.95363 | W174: 437820.652 | X174: 0.3745419257 | Y174: 409506.7722 | Z174: 279487.7218
B175: 900000 | C175: 0 | D175: 900000 | E175: Nordmaling | F175: 0 | G175: 0 | H175: 0 | I175: 1 | J175: 0 | K175: 400000 | L175: 400000 | M175: 15 | N175: 0.3 | O175: 168480 | P175: 0.24 | Q175: 43372.39385 | R175: 535758.3272 | S175: 0.4047129697 | T175: 281502 | U175: 0.401 | V175: 34184.29463 | W175: 562620.8414 | X175: 0.3748657318 | Y175: 409510.5768 | Z175: 123603.7678
B176: 1200000 | C176: 0 | D176: 1200000 | E176: Nordmaling | F176: 0 | G176: 250000 | H176: 0 | I176: 1 | J176: 0 | K176: 400000 | L176: 400000 | M176: 15 | N176: 0.3 | O176: 426816 | P176: 0.456 | Q176: 41394.00396 | R176: 731586.4063 | S176: 0.3903446614 | T176: 515736 | U176: 0.551 | V176: 34165.27165 | W176: 749820.2733 | X176: 0.3751497723 | Y176: 409499.163 | Z176: 147430.6299
B177: 500000 | C177: 0 | D177: 500000 | E177: Nordmaling | F177: 0 | G177: 0 | H177: 0 | I177: 1 | J177: 0 | K177: 400000 | L177: 400000 | M177: 15 | N177: 0.3 | O177: 168870 | P177: 0.433 | Q177: 17976.71587 | R177: 321240.09 | S177: 0.35751982 | T177: Ej Möjlig | U177: Ej Möjlig | V177: Ej Möjlig | W177: 0 | X177: 1 | Y177: 399786.0295
B178: 500000 | C178: 0 | D178: 500000 | E178: Nordmaling | F178: 0 | G178: 0 | H178: 0 | I178: 1 | J178: 50000 | K178: 400000 | L178: 400000 | M178: 15 | N178: 0.3 | O178: 168870 | P178: 0.433 | Q178: 17976.71587 | R178: 321240.09 | S178: 0.35751982 | T178: Ej Möjlig | U178: Ej Möjlig | V178: Ej Möjlig | W178: 0 | X178: 1 | Y178: 399786.0295
B179: 1000000 | C179: 0 | D179: 1000000 | E179: Nordmaling | F179: 0 | G179: 0 | H179: 0 | I179: 1 | J179: 50000 | K179: 400000 | L179: 400000 | M179: 15 | N179: 0.3 | O179: 168480 | P179: 0.216 | Q179: 49713.3871 | R179: 570558.2055 | S179: 0.4294417945 | T179: 359580 | U179: 0.461 | V179: 34177.95363 | W179: 625020.652 | X179: 0.374979348 | Y179: 409506.7722 | Z179: 45917.38631
B180: 1000000 | C180: 0 | D180: 1100000 | E180: Nordmaling | F180: 0 | G180: 0 | H180: 100000 | I180: 1 | J180: 50000 | K180: 400000 | L180: 400000 | M180: 15 | N180: 0.3 | O180: 168718 | P180: 0.171 | Q180: 57823.51748 | R180: 611262.1696 | S180: 0.4443071185 | T180: 422686 | U180: 0.467 | V180: 37177.24344 | W180: 700185.6549 | X180: 0.3634675865 | Y180: 411306.3461 | Z180: 807.1251605
B181: 1000000 | C181: 0 | D181: 1000000 | E181: Nordmaling | F181: 100000 | G181: 0 | H181: 0 | I181: 1 | J181: 50000 | K181: 400000 | L181: 400000 | M181: 15 | N181: 0.3 | O181: 168480 | P181: 0.216 | Q181: 49713.3871 | R181: 519083.2817 | S181: 0.4809167183 | T181: 359580 | U181: 0.461 | V181: 34177.95363 | W181: 590586.3258 | X181: 0.4094136742 | Y181: 409506.7722 | Z181: 45917.38631
B182: 1000000 | C182: 0 | D182: 1000000 | E182: Nordmaling | F182: 0 | G182: 100000 | H182: 0 | I182: 1 | J182: 50000 | K182: 400000 | L182: 400000 | M182: 15 | N182: 0.3 | O182: 272220 | P182: 0.349 | Q182: 41279.86608 | R182: 606874.3731 | S182: 0.3931256269 | T182: 359580 | U182: 0.461 | V182: 34177.95363 | W182: 625020.652 | X182: 0.374979348 | Y182: 409506.7722 | Z182: 149187.3863
B183: 1000000 | C183: 0 | D183: 500000 | E183: Nordmaling | F183: 0 | G183: 0 | H183: 0 | I183: 0.5 | J183: 50000 | K183: 400000 | L183: 400000 | M183: 15 | N183: 0.3 | O183: 82680 | P183: 0.212 | Q183: 24983.51342 | R183: 318375.207 | S183: 0.3632495859 | T183: Ej Möjlig | U183: Ej Möjlig | V183: Ej Möjlig | W183: 0 | X183: 1 | Y183: 403990.1081
B184: 2000000 | C184: 0 | D184: 1100000 | E184: Nordmaling | F184: 200000 | G184: 200000 | H184: 200000 | I184: 0.5 | J184: 50000 | K184: 400000 | L184: 400000 | M184: 15 | N184: 0.3 | O184: 290554 | P184: 0.313 | Q184: 47918.88601 | R184: 568549.0714 | S184: 0.4831372078 | T184: 419254 | U184: 0.463 | V184: 37456.24715 | W184: 619984.3007 | X184: 0.4363779084 | Y184: 411473.7483 | Z184: 84.40593966
B185: 3000000 | C185: 0 | D185: 787500 | E185: Nybro | F185: 150000 | G185: 150000 | H185: 150000 | I185: 0.25 | J185: 50000 | K185: 1000000 | L185: 1000000 | M185: 10 | N185: 0.3 | O185: 196824.75 | P185: 0.307 | Q185: 34605.17806 | R185: 448714.2667 | S185: 0.4302041058 | T185: 169797.75 | U185: 0.263 | V185: 36802.33222 | W185: 439303.7032 | X185: 0.4421540277 | Y185: 441081.3993 | Z185: 165740.4128
B186: 1000000 | C186: 0 | D186: 1000000 | E186: Nybro | F186: 0 | G186: 0 | H186: 0 | I186: 1 | J186: 50000 | K186: 0 | L186: 0 | M186: 10 | N186: 0.3 | O186: 168480 | P186: 0.216 | Q186: 49713.3871 | R186: 576684.6633 | S186: 0.4233153367 | T186: 255840 | U186: 0.328 | V186: 42611.47466 | W186: 606809.2178 | X186: 0.3931907822 | Y186: 394566.8848 | Z186: 258.5124683
B187: 1000000 | C187: 0 | D187: 1000000 | E187: Nybro | F187: 0 | G187: 0 | H187: 0 | I187: 1 | J187: 50000 | K187: 0 | L187: 0 | M187: 10 | N187: 0.3 | O187: 168480 | P187: 0.216 | Q187: 49713.3871 | R187: 576684.6633 | S187: 0.4233153367 | T187: 255840 | U187: 0.328 | V187: 42611.47466 | W187: 606809.2178 | X187: 0.3931907822 | Y187: 394566.8848 | Z187: 258.5124683
B188: 1000000 | C188: 0 | D188: 1000000 | E188: Nybro | F188: 0 | G188: 0 | H188: 0 | I188: 1 | J188: 50000 | K188: 0 | L188: 0 | M188: 10 | N188: 0.3 | O188: 168480 | P188: 0.216 | Q188: 49713.3871 | R188: 576684.6633 | S188: 0.4233153367 | T188: 255840 | U188: 0.328 | V188: 42611.47466 | W188: 606809.2178 | X188: 0.3931907822 | Y188: 394566.8848 | Z188: 258.5124683
B189: 1000000 | C189: 0 | D189: 1000000 | E189: Nybro | F189: 0 | G189: 0 | H189: 0 | I189: 1 | J189: 50000 | K189: 0 | L189: 0 | M189: 10 | N189: 0.3 | O189: 168480 | P189: 0.216 | Q189: 49713.3871 | R189: 576684.6633 | S189: 0.4233153367 | T189: 255840 | U189: 0.328 | V189: 42611.47466 | W189: 606809.2178 | X189: 0.3931907822 | Y189: 394566.8848 | Z189: 258.5124683
B190: 500000 | C190: 0 | D190: 500000 | E190: Nybro | F190: 0 | G190: 0 | H190: 0 | I190: 1 | J190: 50000 | K190: 0 | L190: 0 | M190: 10 | N190: 0.3 | O190: 168870 | P190: 0.433 | Q190: 17976.71587 | R190: 323728.6691 | S190: 0.3525426618 | T190: Ej Möjlig | U190: Ej Möjlig | V190: Ej Möjlig | W190: 0 | X190: 1 | Y190: 379786.0295
B191: 1000000 | C191: 0 | D191: 1000000 | E191: Nybro | F191: 0 | G191: 0 | H191: 0 | I191: 1 | J191: 50000 | K191: 0 | L191: 0 | M191: 10 | N191: 0.3 | O191: 168480 | P191: 0.216 | Q191: 49713.3871 | R191: 576684.6633 | S191: 0.4233153367 | T191: 255840 | U191: 0.328 | V191: 42611.47466 | W191: 606809.2178 | X191: 0.3931907822 | Y191: 394566.8848 | Z191: 258.5124683
B192: 1000000 | C192: 0 | D192: 1000000 | E192: Nybro | F192: 0 | G192: 0 | H192: 0 | I192: 1 | J192: 50000 | K192: 0 | L192: 0 | M192: 10 | N192: 0.3 | O192: 168480 | P192: 0.216 | Q192: 49713.3871 | R192: 576684.6633 | S192: 0.4233153367 | T192: 255840 | U192: 0.328 | V192: 42611.47466 | W192: 606809.2178 | X192: 0.3931907822 | Y192: 394566.8848 | Z192: 258.5124683
B193: 500000 | C193: 0 | D193: 500000 | E193: Nybro | F193: 0 | G193: 0 | H193: 0 | I193: 1 | J193: 50000 | K193: 0 | L193: 0 | M193: 10 | N193: 0.3 | O193: 168870 | P193: 0.433 | Q193: 17976.71587 | R193: 323728.6691 | S193: 0.3525426618 | T193: Ej Möjlig | U193: Ej Möjlig | V193: Ej Möjlig | W193: 0 | X193: 1 | Y193: 379786.0295
B194: 172855 | C194: 300000 | D194: 567115 | E194: Stockholm | F194: 0 | G194: 0 | H194: 0 | I194: 1 | J194: 50000 | K194: 469000 | L194: 169000 | M194: 10 | N194: 0.3 | O194: 73430.0502 | P194: 0.166 | Q194: 29991.24372 | R194: 375718.4848 | S194: 0.3374915408 | T194: 34060.9269 | U194: 0.077 | V194: 33191.74815 | W194: 375092.9311 | X194: 0.3385945864 | Y194: 397365.0489 | Z194: 250019.2265
B195: 172855 | C195: 300000 | D195: 567115 | E195: Stockholm | F195: 0 | G195: 0 | H195: 0 | I195: 1 | J195: 50000 | K195: 469000 | L195: 169000 | M195: 10 | N195: 0.3 | O195: 73430.0502 | P195: 0.166 | Q195: 29991.24372 | R195: 375718.4848 | S195: 0.3374915408 | T195: 34060.9269 | U195: 0.077 | V195: 33191.74815 | W195: 375092.9311 | X195: 0.3385945864 | Y195: 397365.0489 | Z195: 250019.2265
B196: 20000000 | C196: 300000 | D196: 20394260 | E196: Stockholm | F196: 0 | G196: 0 | H196: 0 | I196: 1 | J196: 50000 | K196: 469000 | L196: 169000 | M196: 10 | N196: 0.3 | O196: 159075.228 | P196: 0.01 | Q196: 1280266.664 | R196: 7556057.039 | S196: 0.6295007988 | T196: 5265390.047 | U196: 0.331 | V196: 865149.8973 | W196: 9249040.037 | X196: 0.5464880787 | Y196: 590400 | Z196: 10439.00136
B197: 1000000 | C197: 300000 | D197: 100394260 | E197: Stockholm | F197: 0 | G197: 0 | H197: 0 | I197: 100 | J197: 50000 | K197: 469000 | L197: 169000 | M197: 10 | N197: 0.3 | O197: 16836117.4 | P197: 0.215 | Q197: 4997304.704 | R197: 42316750.78 | S197: 0.5784943205 | T197: 76897987.39 | U197: 0.982 | V197: 114587.8786 | W197: 62340083.7 | X197: 0.379047331 | Y197: 446202.7271 | Z197: 305169.4093
B198: 1000000 | C198: 300000 | D198: 1394260 | E198: Stockholm | F198: 0 | G198: 0 | H198: 0 | I198: 1 | J198: 50000 | K198: 469000 | L198: 169000 | M198: 10 | N198: 0.3 | O198: 168566.034 | P198: 0.155 | Q198: 74706.39299 | R198: 734937.0634 | S198: 0.4728837782 | T198: 413258.664 | U198: 0.38 | V198: 54814.15817 | W198: 822916.2646 | X198: 0.4097827775 | Y198: 410338.4949 | Z198: 555.9495184
B199: 1000000 | C199: 300000 | D199: 1394260 | E199: Stockholm | F199: 0 | G199: 0 | H199: 0 | I199: 1 | J199: 50000 | K199: 469000 | L199: 169000 | M199: 10 | N199: 0.3 | O199: 168566.034 | P199: 0.155 | Q199: 74706.39299 | R199: 734937.0634 | S199: 0.4728837782 | T199: 413258.664 | U199: 0.38 | V199: 54814.15817 | W199: 822916.2646 | X199: 0.4097827775 | Y199: 410338.4949 | Z199: 555.9495184
B200: 1000000 | C200: 300000 | D200: 1394260 | E200: Stockholm | F200: 0 | G200: 0 | H200: 0 | I200: 1 | J200: 50000 | K200: 469000 | L200: 169000 | M200: 10 | N200: 0.3 | O200: 168566.034 | P200: 0.155 | Q200: 88753.56249 | R200: 814829.2897 | S200: 0.4155829689 | T200: 622063.0416 | U200: 0.572 | V200: 89678.03792 | W200: 1173413.036 | X200: 0.1583972601 | Y200: 431256.8228 | Z200: 934.8504417
B201: 1000000 | C201: 300000 | D201: 1394260 | E201: Stockholm | F201: 0 | G201: 0 | H201: 0 | I201: 1 | J201: 50000 | K201: 469000 | L201: 169000 | M201: 10 | N201: 0.3 | O201: 168566.034 | P201: 0.155 | Q201: 74706.39299 | R201: 734937.0634 | S201: 0.4728837782 | T201: 413258.664 | U201: 0.38 | V201: 54814.15817 | W201: 822916.2646 | X201: 0.4097827775 | Y201: 410338.4949 | Z201: 555.9495184
... 38 more rows

Sheet Pe (hidden)
B2: Pension: Hur mycket pension får man på marginalen för ett års arbete?
B6: inkomstbasbelopp | C6: =Admin!C10 -> 61500
B7: Minimum för pensionsgrundande 0,423 inkomstbasbelopp | C7: 0.423
B8: Minimum för pensionsgrundande | C8: =C7*C6 -> 26014.5
B9: Max för pensionsgrundande 8,07 inkomstbasbelopp | C9: 8.07
B10: Max för vad som är pensionsgrundande | C10: =C6*C9 -> 496305
B11: Allmänna pensionsavgiften | C11: 0.07
B13: Inkomst (måste ligga mellan minimum och max) | C13: =MAX(MIN('Process Manuell version'!$C$17,C10)-' Manuell version 312 Modellen'!C15,0) -> 407853
B14: Pensionsgrundande inkomst | C14: =C13-(C11*C13) -> 379303.29
B16: Pensionsavsättning | C16: 0.185
B17: Inkomstpension | C17: 0.16
B18: Premiepension | C18: 0.025
B20: Hur många år har du kvar tills pension? | C20: =' Manuell version 312 Modellen'!C23 -> 10
B21: Estimerad inflation fram tills pension? | C21: =Admin!C12 -> 0.015
B22: schablon inkomstskatt vid pension | C22: =' Manuell version 312 Modellen'!C24 -> 0.3
B24: Totalt cash flow i pension INNAN skatt och diskontering för inflation som fördelas efter beräknad livslängd från 65 år | C24: =(C16*C14) -> 70171.10865
B25: Totalt cash flow diskonterat för inflation | C25: =C24*(1-C21)^C20 -> 60328.23827
B26: Totalt cash flow efter en schablonskatt för inkomstskatt samt inflation | C26: =(1-C22)*C25 -> 42229.76679
B28: Estimerat fördelningsbelopp (=18 år)
B29: Cash flow per år efter 65 (i 18 år) | C29: =C26/18 -> 2346.098155
B30: Cash flow per månad efter 65 (i 18 år) | C30: =C29/12 -> 195.5081796
B34: Allmän pensionsavgift (Så här fungerar den)
B35: Du betalar själv en allmän pensionsavgift på 7 procent av din lön och av ersättningar från social- och arbetslöshetsförsäkringarna (sjuk- och aktivitetsersättning är undantaget).
B36: Inbetalningen görs som en del av preliminärskatteavdraget. Avgiften betalas på inkomster upp till 8,07 inkomstbasbelopp. I samband med taxeringen får du ett avdrag på din skatt som motsvarar den allmänna pensionsavgiften. Det innebär i praktiken att du inte betalar någon avgift utan den allmänna pensionsavgiften finansieras med allmänna skatter.
B38: Företagare betalar arbetsgivaravgift och egenavgift
B39: Arbetsgivare betalar en pensionsavgift på 10,21 procent för varje anställds lön. För dig som egenföretagare motsvaras detta av egenavgiften. Avgiften betalas på hela inkomsten, även för inkomster som överstiger 8,07 i inkomstbasbelopp.
B41: Inkomster som överstiger 8,07 i inkomstbasbelopp ger inte pensionsrätt. Den delen av avgiften förs till stadsbudgeten och betraktas som en skatt.
B42: För dig som egenföretagare
B44: Staten betalar ålderspensionsavgift
B45: Har du pensionsgrundande ersättningar från social- och arbetslöshetsförsäkringen betalar staten en pensionsavgift på 10,21 procent. För dig som har sjuk- och aktivitetsersättning betalar staten hela avgiften på 18,5 procent.
B46: Om du har tillgodoräknats pensionsgrundande belopp för barn eller studier betalar staten hela avgiften på 18,5 procent. Den statliga ålderspensionsavgiften finansieras med allmänna skattemedel.
B47: Pensionsavgift och pensionsrätt – hur går det ihop?
B48: De avgifter på dina inkomster som går till pensionen är sammanlagt 17,21 procent. Samtidigt sägs det att pensionsavgiften och pensionsrätten är 18,5 procent av pensionsunderlaget. Hur går det ihop?
B49: Det beror på att den pensionsgrundande inkomsten är inkomsten efter avdrag för den allmänna pensionsavgiften på 7 procent. Det är på den pensionsgrundande inkomsten som avgiften är 18,5 procent. 18,5 procent av inkomsten efter avdraget på 7 procent motsvarar en avgift på 17,21 procent av hela inkomsten.
B50: Den högsta inkomst som du behöver betala pensionsavgift för är 8,07 inkomstbasbelopp. Det betyder att det högsta möjliga pensionsgrundande inkomsten blir 93 procent av 8,07 inkomstbasbelopp, det vill säga 7,5 inkomstbasbelopp.

Sheet PensionsBeräkning (hidden)
B1: Tillbaka till 3:12 modellen, klicka här!!
B2: Pension: Hur mycket pension får man på marginalen för ett års arbete?
B6: inkomstbasbelopp | C6: =Admin!C10 -> 61500
B7: Minimum för pensionsgrundande 0,423 inkomstbasbelopp | C7: 0.423
B8: Minimum för pensionsgrundande | C8: =C7*C6 -> 26014.5
B9: Max för pensionsgrundande 8,07 inkomstbasbelopp | C9: 8.07
B10: Max för vad som är pensionsgrundande | C10: =C6*C9 -> 496305
B11: Allmänna pensionsavgiften | C11: 0.07
B13: Inkomst (måste ligga mellan minimum och max) | C13: =MAX(MIN(Process!$C$16,C10)-Input!C10,0) -> 420944.7573
B14: Pensionsgrundande inkomst | C14: =C13-(C11*C13) -> 391478.6243
B16: Pensionsavsättning | C16: 0.185
B17: Inkomstpension | C17: 0.16
B18: Premiepension | C18: 0.025
B20: Hur många år har du kvar tills pension? | C20: =Input!C19 -> 10
B21: Estimerad inflation fram tills pension? | C21: =Admin!C12 -> 0.015
B22: schablon inkomstskatt vid pension | C22: =Input!C20 -> 0.3
B24: Totalt cash flow i pension INNAN skatt och diskontering för inflation som fördelas efter beräknad livslängd från 65 år | C24: =(C16*C14) -> 72423.54549
B25: Totalt cash flow diskonterat för inflation | C25: =C24*(1-C21)^C20 -> 62264.72679
B26: Totalt cash flow efter en schablonskatt för inkomstskatt samt inflation | C26: =(1-C22)*C25 -> 43585.30875
B28: Estimerat fördelningsbelopp (=18 år)
B29: Cash flow per år efter 65 (i 18 år) | C29: =C26/18 -> 2421.406042
B30: Cash flow per månad efter 65 (i 18 år) | C30: =C29/12 -> 201.7838368
B34: Allmän pensionsavgift (Så här fungerar den)
B35: Du betalar själv en allmän pensionsavgift på 7 procent av din lön och av ersättningar från social- och arbetslöshetsförsäkringarna (sjuk- och aktivitetsersättning är undantaget).
B36: Inbetalningen görs som en del av preliminärskatteavdraget. Avgiften betalas på inkomster upp till 8,07 inkomstbasbelopp. I samband med taxeringen får du ett avdrag på din skatt som motsvarar den allmänna pensionsavgiften. Det innebär i praktiken att du inte betalar någon avgift utan den allmänna pensionsavgiften finansieras med allmänna skatter.
B38: Företagare betalar arbetsgivaravgift och egenavgift
B39: Arbetsgivare betalar en pensionsavgift på 10,21 procent för varje anställds lön. För dig som egenföretagare motsvaras detta av egenavgiften. Avgiften betalas på hela inkomsten, även för inkomster som överstiger 8,07 i inkomstbasbelopp.
B41: Inkomster som överstiger 8,07 i inkomstbasbelopp ger inte pensionsrätt. Den delen av avgiften förs till stadsbudgeten och betraktas som en skatt.
B42: För dig som egenföretagare
B44: Staten betalar ålderspensionsavgift
B45: Har du pensionsgrundande ersättningar från social- och arbetslöshetsförsäkringen betalar staten en pensionsavgift på 10,21 procent. För dig som har sjuk- och aktivitetsersättning betalar staten hela avgiften på 18,5 procent.
B46: Om du har tillgodoräknats pensionsgrundande belopp för barn eller studier betalar staten hela avgiften på 18,5 procent. Den statliga ålderspensionsavgiften finansieras med allmänna skattemedel.
B47: Pensionsavgift och pensionsrätt – hur går det ihop?
B48: De avgifter på dina inkomster som går till pensionen är sammanlagt 17,21 procent. Samtidigt sägs det att pensionsavgiften och pensionsrätten är 18,5 procent av pensionsunderlaget. Hur går det ihop?
B49: Det beror på att den pensionsgrundande inkomsten är inkomsten efter avdrag för den allmänna pensionsavgiften på 7 procent. Det är på den pensionsgrundande inkomsten som avgiften är 18,5 procent. 18,5 procent av inkomsten efter avdraget på 7 procent motsvarar en avgift på 17,21 procent av hela inkomsten.
B50: Den högsta inkomst som du behöver betala pensionsavgift för är 8,07 inkomstbasbelopp. Det betyder att det högsta möjliga pensionsgrundande inkomsten blir 93 procent av 8,07 inkomstbasbelopp, det vill säga 7,5 inkomstbasbelopp.

Sheet Förklaring 312 (hidden)
B2: Tillbaka till 3:12 Modellen, klicka här!
B4: I bilderna nedan ser du vilka belopp du ska fylla i respektive ruta. Sedan klickar du på den oranga knappen "kalkylera" så hittar modellen ett förslag på optimal fördelning mellan lön och utdelning.
B36: Total uppskattad vinst i bolaget 2017 | C36: 0
B37: Din uttagna årslön hittills under 2017 | C37: 0
B39: Ditt totala uppskattade rörelseöverskott för 2016 | C39: 0
B41: Kommun | C41: Storfors
B42: Din lön i andra bolag under 2017 | C42: 0
B43: Ditt sparade utdelningsutrymme | C43: 0
B44: Balanserad vinst vid ingången av 2016 | C44: 0
B45: Ägarandel | C45: 1
B46: Omkostnadsbelopp | C46: 50000
B47: Total lön hela bolaget under 2017 (inkl. din lön i c5) | C47: 0
B48: Total lön hela bolaget (exkl. din lön) | C48: =C47-C37 -> 0
B51: År till pension | C51: 10
B52: Uppskattad skatt vid pension | C52: 0.3

Sheet Förklaring manuell version (hidden)
B2: Tillbaka till Manuella versionen, klicka här!
B4: I bilderna nedan ser du utifrån färgerna på inringade belopp vad som ska fylla i respektive ruta. OBS att du sedan själv väljer vilken lön du ska fylla i c7 utifrån beloppet i c6, "max möjlig bruttolön". Sedan fyller du i utdelning i c9 utifrån vad som finns tillgänligt i c8. OBS att du måste fylla i lön först eftersom "max möjlig utdelning enligt räkenskaperna" anpassar sig efer vald lön. "max möjlig bruttolön" är konstant.

Sheet Förklaring Diagram (hidden)
